Unique Reference Number,Vendor name,Subject Mapping 1 (Higher level),Subject Mapping 2 (lower level),Subjective  Desc,Net amount,Capital/Revenue,GL Posting Date,Directorate
WC57 - 0001,11KBW,Third Party Payments,Private Contractor Fees,73014-LEGAL FEES-PRIV CONTRACTOR FEES,900.00,Revenue,03/06/2015,Social Care & Inclusion
WC57 - 0002,1ST HAND CARE LTD,Third Party Payments,Private Contractor Fees,73372-DOMICILIARY CARE,310.50,Revenue,12/06/2015,Social Care & Inclusion
WC57 - 0003,1ST HAND CARE LTD,Third Party Payments,Private Contractor Fees,73372-DOMICILIARY CARE,448.50,Revenue,12/06/2015,Social Care & Inclusion
WC57 - 0004,1ST HAND CARE LTD,Third Party Payments,Private Contractor Fees,73372-DOMICILIARY CARE,534.75,Revenue,12/06/2015,Social Care & Inclusion
WC57 - 0005,1ST HAND CARE LTD,Third Party Payments,Private Contractor Fees,73372-DOMICILIARY CARE,690.00,Revenue,12/06/2015,Social Care & Inclusion
WC57 - 0006,1ST HAND CARE LTD,Third Party Payments,Private Contractor Fees,73372-DOMICILIARY CARE,724.50,Revenue,12/06/2015,Social Care & Inclusion
WC57 - 0007,1ST HAND CARE LTD,Supplies & Services,Services,63000-PROFESSIONAL FEES AND SERVICES,"1,272.00",Revenue,02/06/2015,Childrens
WC57 - 0008,1ST HAND CARE LTD,Third Party Payments,Private Contractor Fees,73372-DOMICILIARY CARE,"2,599.00",Revenue,23/06/2015,Social Care & Inclusion
WC57 - 0009,247 CARS (WILLENHALL) LIMITED,Transport,Hire,52000-WITH DRIVER-HIRE OF VEHICLES,336.00,Revenue,26/06/2015,Childrens
WC57 - 0010,247 CARS (WILLENHALL) LIMITED,Transport,Hire,52000-WITH DRIVER-HIRE OF VEHICLES,540.00,Revenue,24/06/2015,Childrens
WC57 - 0011,247 CARS (WILLENHALL) LIMITED,Transport,Hire,52000-WITH DRIVER-HIRE OF VEHICLES,637.00,Revenue,03/06/2015,Childrens
WC57 - 0012,2SIMPLE SOFTWARE LTD,Supplies & Services,Communications & Computing,63800-COMPUTER EQUIPMENT AND SUPPLIES,300.00,Revenue,02/06/2015,Childrens
WC57 - 0013,2SIMPLE SOFTWARE LTD,Supplies & Services,Communications & Computing,63800-COMPUTER EQUIPMENT AND SUPPLIES,"1,500.00",Revenue,02/06/2015,Childrens
WC57 - 0014,5 CARE SERVICES LTD,Third Party Payments,Private Contractor Fees,73372-DOMICILIARY CARE,"27,676.12",Revenue,23/06/2015,Social Care & Inclusion
WC57 - 0015,A 2 Z TAXIS (A2Z CARS),Transport,Hire,52000-WITH DRIVER-HIRE OF VEHICLES,"1,785.00",Revenue,29/06/2015,Childrens
WC57 - 0016,A D T FIRE AND SECURITY PLC,Premises,Premises-Repairs & Maintenance,"40000-REPAIRS,ALTERATIONS & MAINTENANCE-PREM",323.00,Revenue,24/06/2015,Resources
WC57 - 0017,A D T FIRE AND SECURITY PLC,Supplies & Services,"Equip,Furniture & Materials",60008-MAINTENANCE-FURNITURE & EQUIPMENT,444.51,Revenue,02/06/2015,Economy & Environment
WC57 - 0018,A D T FIRE AND SECURITY PLC,Supplies & Services,"Equip,Furniture & Materials",60008-MAINTENANCE-FURNITURE & EQUIPMENT,884.00,Revenue,24/06/2015,Economy & Environment
WC57 - 0019,A D T FIRE AND SECURITY PLC,Supplies & Services,"Equip,Furniture & Materials",60008-MAINTENANCE-FURNITURE & EQUIPMENT,927.20,Revenue,24/06/2015,Social Care & Inclusion
WC57 - 0020,A D T FIRE AND SECURITY PLC,Third Party Payments,Private Contractor Fees,73002-SECURITY-PRIV CONTRACTOR FEES,"1,012.66",Revenue,08/06/2015,Economy & Environment
WC57 - 0021,A D T FIRE AND SECURITY PLC,Supplies & Services,"Equip,Furniture & Materials",60008-MAINTENANCE-FURNITURE & EQUIPMENT,"4,050.00",Revenue,24/06/2015,Social Care & Inclusion
WC57 - 0022,A F BLAKEMORE & SON LTD,Supplies & Services,Provisions,61305-CATERING,78.29,Revenue,24/06/2015,Resources
WC57 - 0023,A F BLAKEMORE & SON LTD,Supplies & Services,Provisions,61305-CATERING,189.60,Revenue,24/06/2015,Resources
WC57 - 0024,A F BLAKEMORE & SON LTD,Supplies & Services,Provisions,61305-CATERING,252.65,Revenue,24/06/2015,Resources
WC57 - 0025,A F BLAKEMORE & SON LTD,Supplies & Services,Provisions,61305-CATERING,272.52,Revenue,24/06/2015,Resources
WC57 - 0026,A F BLAKEMORE & SON LTD,Supplies & Services,Provisions,61305-CATERING,280.33,Revenue,24/06/2015,Resources
WC57 - 0027,A F BLAKEMORE & SON LTD,Supplies & Services,Provisions,61016-FOOD AND BEVERAGES-PROVISIONS,281.67,Revenue,03/06/2015,Economy & Environment
WC57 - 0028,A F BLAKEMORE & SON LTD,Supplies & Services,Provisions,61305-CATERING,282.09,Revenue,24/06/2015,Resources
WC57 - 0029,A F BLAKEMORE & SON LTD,Supplies & Services,Provisions,61305-CATERING,314.39,Revenue,09/06/2015,Social Care & Inclusion
WC57 - 0030,A F BLAKEMORE & SON LTD,Supplies & Services,Provisions,61016-FOOD AND BEVERAGES-PROVISIONS,314.86,Revenue,10/06/2015,Social Care & Inclusion
WC57 - 0031,A F BLAKEMORE & SON LTD,Supplies & Services,"Equip,Furniture & Materials",60500-GENERAL MATERIALS,363.61,Revenue,08/06/2015,Economy & Environment
WC57 - 0032,A F BLAKEMORE & SON LTD,Supplies & Services,Provisions,61305-CATERING,404.26,Revenue,24/06/2015,Resources
WC57 - 0033,A F BLAKEMORE & SON LTD,Supplies & Services,Provisions,61008-CONFECTIONERY/SNACKS-PROVISIONS,805.73,Revenue,15/06/2015,Economy & Environment
WC57 - 0034,A F BLAKEMORE & SON LTD,Supplies & Services,Provisions,61016-FOOD AND BEVERAGES-PROVISIONS,806.58,Revenue,22/06/2015,Social Care & Inclusion
WC57 - 0035,A F BLAKEMORE & SON LTD,Supplies & Services,Provisions,61008-CONFECTIONERY/SNACKS-PROVISIONS,809.27,Revenue,05/06/2015,Economy & Environment
WC57 - 0036,A F BLAKEMORE & SON LTD,Supplies & Services,Provisions,61008-CONFECTIONERY/SNACKS-PROVISIONS,843.97,Revenue,01/06/2015,Economy & Environment
WC57 - 0037,A F BLAKEMORE & SON LTD,Supplies & Services,Provisions,61008-CONFECTIONERY/SNACKS-PROVISIONS,"1,164.97",Revenue,01/06/2015,Economy & Environment
WC57 - 0038,REDACTED,Third Party Payments,Private Contractor Fees,74006-HOLIDAY/CHRISTMAS ALLOWANCE-FOSTER CARERS-OTH AGENCY PROVISION,349.76,Revenue,08/06/2015,Childrens
WC57 - 0039,REDACTED,Supplies & Services,Other Supplies & Services,62515-MISCELLANEOUS SUPPLIES,906.76,Revenue,22/06/2015,Childrens
WC57 - 0040,REDACTED,Third Party Payments,Private Contractor Fees,74006-HOLIDAY/CHRISTMAS ALLOWANCE-FOSTER CARERS-OTH AGENCY PROVISION,985.76,Revenue,22/06/2015,Childrens
WC57 - 0041,AAINA ASIAN WOMENS GROUP,Supplies & Services,Other Supplies & Services,63115-HIRE OF ROOM (duplicate please use 63128)-SERVICES-FEES,480.00,Revenue,17/06/2015,Resources
WC57 - 0042,AAINA ASIAN WOMENS GROUP,Supplies & Services,Other Supplies & Services,63115-HIRE OF ROOM (duplicate please use 63128)-SERVICES-FEES,640.00,Revenue,17/06/2015,Resources
WC57 - 0043,REDACTED,Transfer Payments,Transfer Payments,76422-DIRECT PAYMENTS TO SOCIAL SERVICES CLIENTS,431.55,Revenue,17/06/2015,Childrens
WC57 - 0044,ABACUS FOSTERING LTD,Third Party Payments,Private Contractor Fees,74037-INDEPENDENT FOSTER CARE-OTH AGENCY PROVISION,"1,600.00",Revenue,03/06/2015,Childrens
WC57 - 0045,REDACTED,Third Party Payments,Private Contractor Fees,74006-HOLIDAY/CHRISTMAS ALLOWANCE-FOSTER CARERS-OTH AGENCY PROVISION,650.92,Revenue,08/06/2015,Childrens
WC57 - 0046,ABBEY COURT NURSING & RESIDEN,Third Party Payments,Private Contractor Fees,73373-RESIDENTIAL & NURSING CARE PLACEMENTS,"1,494.00",Revenue,23/06/2015,Social Care & Inclusion
WC57 - 0047,ABBEY COURT NURSING & RESIDEN,Third Party Payments,Private Contractor Fees,73373-RESIDENTIAL & NURSING CARE PLACEMENTS,"1,494.00",Revenue,23/06/2015,Social Care & Inclusion
WC57 - 0048,ABBEY HEALTHCARE HOMES LTD,Third Party Payments,Private Contractor Fees,73373-RESIDENTIAL & NURSING CARE PLACEMENTS,"1,661.88",Revenue,16/06/2015,Social Care & Inclusion
WC57 - 0049,ABBEY HEALTHCARE HOMES LTD,Third Party Payments,Private Contractor Fees,73373-RESIDENTIAL & NURSING CARE PLACEMENTS,"2,243.60",Revenue,16/06/2015,Social Care & Inclusion
WC57 - 0050,ABBEYMERE CARE CENTRE,Third Party Payments,Private Contractor Fees,73373-RESIDENTIAL & NURSING CARE PLACEMENTS,"1,528.87",Revenue,09/06/2015,Social Care & Inclusion
WC57 - 0051,ABC FOSTERING,Third Party Payments,Private Contractor Fees,74037-INDEPENDENT FOSTER CARE-OTH AGENCY PROVISION,"2,884.20",Revenue,24/06/2015,Childrens
WC57 - 0052,ABC FOSTERING,Third Party Payments,Private Contractor Fees,74037-INDEPENDENT FOSTER CARE-OTH AGENCY PROVISION,"3,036.00",Revenue,24/06/2015,Childrens
WC57 - 0053,ABC TEACHERS LIMITED,Employees,Agency,34305-AGENCY STAFF-EMPLOYEES,-763.95,Revenue,01/06/2015,Childrens
WC57 - 0054,ABC TEACHERS LIMITED,Employees,Agency,34305-AGENCY STAFF-EMPLOYEES,-719.95,Revenue,01/06/2015,Childrens
WC57 - 0055,ABC TEACHERS LIMITED,Employees,Agency,34305-AGENCY STAFF-EMPLOYEES,604.95,Revenue,04/06/2015,Childrens
WC57 - 0056,ABC TEACHERS LIMITED,Employees,Agency,34305-AGENCY STAFF-EMPLOYEES,719.95,Revenue,05/06/2015,Childrens
WC57 - 0057,ABC TEACHERS LIMITED,Employees,Agency,34305-AGENCY STAFF-EMPLOYEES,763.95,Revenue,05/06/2015,Childrens
WC57 - 0058,ABC TEACHERS LIMITED,Employees,Agency,34305-AGENCY STAFF-EMPLOYEES,"1,021.93",Revenue,02/06/2015,Childrens
WC57 - 0059,ABC TEACHERS LIMITED,Employees,Agency,34305-AGENCY STAFF-EMPLOYEES,"1,025.94",Revenue,18/06/2015,Childrens
WC57 - 0060,ABC TEACHERS LIMITED,Employees,Agency,34305-AGENCY STAFF-EMPLOYEES,"1,150.93",Revenue,04/06/2015,Childrens
WC57 - 0061,ABC TEACHERS LIMITED,Employees,Agency,34305-AGENCY STAFF-EMPLOYEES,"1,251.93",Revenue,02/06/2015,Childrens
WC57 - 0062,ABC TEACHERS LIMITED,Employees,Agency,34305-AGENCY STAFF-EMPLOYEES,"1,251.93",Revenue,24/06/2015,Childrens
WC57 - 0063,ABEL ALARM CO LTD,Premises,Premises-Repairs & Maintenance,"40000-REPAIRS,ALTERATIONS & MAINTENANCE-PREM",346.00,Revenue,08/06/2015,Resources
WC57 - 0064,REDACTED,Transfer Payments,Transfer Payments,76422-DIRECT PAYMENTS TO SOCIAL SERVICES CLIENTS,"2,947.49",Revenue,17/06/2015,Social Care & Inclusion
WC57 - 0065,ABLEWELL CARS,Transport,Hire,52000-WITH DRIVER-HIRE OF VEHICLES,265.00,Revenue,15/06/2015,Childrens
WC57 - 0066,ABLEWELL CARS,Transport,Hire,52000-WITH DRIVER-HIRE OF VEHICLES,392.60,Revenue,02/06/2015,Childrens
WC57 - 0067,ABLEWELL CARS,Transport,Hire,52000-WITH DRIVER-HIRE OF VEHICLES,420.00,Revenue,02/06/2015,Childrens
WC57 - 0068,ABLEWELL CARS,Transport,Hire,52000-WITH DRIVER-HIRE OF VEHICLES,462.00,Revenue,02/06/2015,Childrens
WC57 - 0069,ABLEWELL CARS,Transport,Hire,52000-WITH DRIVER-HIRE OF VEHICLES,462.00,Revenue,02/06/2015,Childrens
WC57 - 0070,ACCORD HOUSING ASSOCIATION LTD#135,Third Party Payments,Private Contractor Fees,73372-DOMICILIARY CARE,321.76,Revenue,22/06/2015,Social Care & Inclusion
WC57 - 0071,ACCORD HOUSING ASSOCIATION LTD#135,Third Party Payments,Private Contractor Fees,73374-SUPPORTED & OTHER ACCOMMODATION,411.20,Revenue,10/06/2015,Social Care & Inclusion
WC57 - 0072,ACCORD HOUSING ASSOCIATION LTD#135,Third Party Payments,Private Contractor Fees,73372-DOMICILIARY CARE,411.92,Revenue,22/06/2015,Social Care & Inclusion
WC57 - 0073,ACCORD HOUSING ASSOCIATION LTD#135,Third Party Payments,Private Contractor Fees,73372-DOMICILIARY CARE,450.80,Revenue,17/06/2015,Social Care & Inclusion
WC57 - 0074,ACCORD HOUSING ASSOCIATION LTD#135,Third Party Payments,Private Contractor Fees,73372-DOMICILIARY CARE,463.60,Revenue,10/06/2015,Social Care & Inclusion
WC57 - 0075,ACCORD HOUSING ASSOCIATION LTD#135,Third Party Payments,Private Contractor Fees,73373-RESIDENTIAL & NURSING CARE PLACEMENTS,476.94,Revenue,30/06/2015,Social Care & Inclusion
WC57 - 0076,ACCORD HOUSING ASSOCIATION LTD#135,Third Party Payments,Private Contractor Fees,73373-RESIDENTIAL & NURSING CARE PLACEMENTS,476.94,Revenue,30/06/2015,Social Care & Inclusion
WC57 - 0077,ACCORD HOUSING ASSOCIATION LTD#135,Third Party Payments,Private Contractor Fees,73372-DOMICILIARY CARE,492.40,Revenue,22/06/2015,Social Care & Inclusion
WC57 - 0078,ACCORD HOUSING ASSOCIATION LTD#135,Third Party Payments,Private Contractor Fees,73372-DOMICILIARY CARE,502.32,Revenue,11/06/2015,Social Care & Inclusion
WC57 - 0079,ACCORD HOUSING ASSOCIATION LTD#135,Third Party Payments,Private Contractor Fees,73372-DOMICILIARY CARE,595.44,Revenue,22/06/2015,Social Care & Inclusion
WC57 - 0080,ACCORD HOUSING ASSOCIATION LTD#135,Third Party Payments,Private Contractor Fees,73372-DOMICILIARY CARE,697.64,Revenue,10/06/2015,Social Care & Inclusion
WC57 - 0081,ACCORD HOUSING ASSOCIATION LTD#135,Third Party Payments,Private Contractor Fees,73372-DOMICILIARY CARE,721.28,Revenue,12/06/2015,Social Care & Inclusion
WC57 - 0082,ACCORD HOUSING ASSOCIATION LTD#135,Transfer Payments,Transfer Payments,76422-DIRECT PAYMENTS TO SOCIAL SERVICES CLIENTS,746.94,Revenue,03/06/2015,Childrens
WC57 - 0083,ACCORD HOUSING ASSOCIATION LTD#135,Third Party Payments,Private Contractor Fees,73372-DOMICILIARY CARE,775.76,Revenue,22/06/2015,Social Care & Inclusion
WC57 - 0084,ACCORD HOUSING ASSOCIATION LTD#135,Third Party Payments,Private Contractor Fees,73372-DOMICILIARY CARE,850.08,Revenue,12/06/2015,Social Care & Inclusion
WC57 - 0085,ACCORD HOUSING ASSOCIATION LTD#135,Third Party Payments,Private Contractor Fees,73372-DOMICILIARY CARE,"1,133.20",Revenue,11/06/2015,Social Care & Inclusion
WC57 - 0086,ACCORD HOUSING ASSOCIATION LTD#135,Third Party Payments,Private Contractor Fees,73372-DOMICILIARY CARE,"1,133.20",Revenue,22/06/2015,Social Care & Inclusion
WC57 - 0087,ACCORD HOUSING ASSOCIATION LTD#135,Third Party Payments,Private Contractor Fees,73372-DOMICILIARY CARE,"1,144.04",Revenue,10/06/2015,Social Care & Inclusion
WC57 - 0088,ACCORD HOUSING ASSOCIATION LTD#135,Third Party Payments,Private Contractor Fees,73372-DOMICILIARY CARE,"1,144.04",Revenue,17/06/2015,Social Care & Inclusion
WC57 - 0089,ACCORD HOUSING ASSOCIATION LTD#135,Third Party Payments,Private Contractor Fees,73372-DOMICILIARY CARE,"1,183.96",Revenue,22/06/2015,Social Care & Inclusion
WC57 - 0090,ACCORD HOUSING ASSOCIATION LTD#135,Third Party Payments,Private Contractor Fees,73372-DOMICILIARY CARE,"1,184.72",Revenue,22/06/2015,Social Care & Inclusion
WC57 - 0091,ACCORD HOUSING ASSOCIATION LTD#135,Third Party Payments,Private Contractor Fees,73372-DOMICILIARY CARE,"1,416.56",Revenue,22/06/2015,Social Care & Inclusion
WC57 - 0092,ACCORD HOUSING ASSOCIATION LTD#135,Third Party Payments,Private Contractor Fees,73372-DOMICILIARY CARE,"1,457.36",Revenue,11/06/2015,Social Care & Inclusion
WC57 - 0093,ACCORD HOUSING ASSOCIATION LTD#135,Third Party Payments,Private Contractor Fees,73372-DOMICILIARY CARE,"1,538.68",Revenue,22/06/2015,Social Care & Inclusion
WC57 - 0094,ACCORD HOUSING ASSOCIATION LTD#135,Third Party Payments,Private Contractor Fees,73372-DOMICILIARY CARE,"1,663.64",Revenue,15/06/2015,Social Care & Inclusion
WC57 - 0095,ACCORD HOUSING ASSOCIATION LTD#135,Third Party Payments,Private Contractor Fees,73372-DOMICILIARY CARE,"2,408.32",Revenue,10/06/2015,Social Care & Inclusion
WC57 - 0096,ACCORD HOUSING ASSOCIATION LTD#135,Third Party Payments,Private Contractor Fees,73373-RESIDENTIAL & NURSING CARE PLACEMENTS,"4,640.48",Revenue,16/06/2015,Social Care & Inclusion
WC57 - 0097,ACCORD HOUSING ASSOCIATION LTD#135,Third Party Payments,Private Contractor Fees,73373-RESIDENTIAL & NURSING CARE PLACEMENTS,"4,640.48",Revenue,16/06/2015,Social Care & Inclusion
WC57 - 0098,ACCORD HOUSING ASSOCIATION LTD#135,Third Party Payments,Private Contractor Fees,73373-RESIDENTIAL & NURSING CARE PLACEMENTS,"4,640.48",Revenue,16/06/2015,Social Care & Inclusion
WC57 - 0099,ACCORD HOUSING ASSOCIATION LTD#135,Third Party Payments,Private Contractor Fees,73373-RESIDENTIAL & NURSING CARE PLACEMENTS,"4,640.48",Revenue,16/06/2015,Social Care & Inclusion
WC57 - 0100,ACCORD HOUSING ASSOCIATION LTD#135,Third Party Payments,Private Contractor Fees,73373-RESIDENTIAL & NURSING CARE PLACEMENTS,"6,476.61",Revenue,16/06/2015,Social Care & Inclusion
WC57 - 0101,ACCORD HOUSING ASSOCIATION LTD#135,Third Party Payments,Private Contractor Fees,73373-RESIDENTIAL & NURSING CARE PLACEMENTS,"6,476.61",Revenue,16/06/2015,Social Care & Inclusion
WC57 - 0102,ACCORD HOUSING ASSOCIATION LTD#135,Third Party Payments,Private Contractor Fees,73373-RESIDENTIAL & NURSING CARE PLACEMENTS,"6,476.61",Revenue,16/06/2015,Social Care & Inclusion
WC57 - 0103,ACCORD HOUSING ASSOCIATION LTD#135,Third Party Payments,Grants to Other Orgs,66500-GRANTS TO OTHER ORGS,"17,325.46",Revenue,23/06/2015,Economy & Environment
WC57 - 0104,ACCORD HOUSING ASSOCIATION LTD#135,Supplies & Services,Services,63000-PROFESSIONAL FEES AND SERVICES,"68,846.01",Revenue,24/06/2015,Economy & Environment
WC57 - 0105,ACE CARE AGENCY,Third Party Payments,Private Contractor Fees,73372-DOMICILIARY CARE,323.76,Revenue,18/06/2015,Social Care & Inclusion
WC57 - 0106,ACE CARE AGENCY,Third Party Payments,Private Contractor Fees,73372-DOMICILIARY CARE,323.76,Revenue,26/06/2015,Social Care & Inclusion
WC57 - 0107,ACE CARE AGENCY,Third Party Payments,Private Contractor Fees,73372-DOMICILIARY CARE,607.05,Revenue,18/06/2015,Social Care & Inclusion
WC57 - 0108,ACE CARE AGENCY,Third Party Payments,Private Contractor Fees,73372-DOMICILIARY CARE,647.52,Revenue,26/06/2015,Social Care & Inclusion
WC57 - 0109,ACE CARE AGENCY,Third Party Payments,Private Contractor Fees,73372-DOMICILIARY CARE,"1,019.76",Revenue,18/06/2015,Social Care & Inclusion
WC57 - 0110,ACE RADIO CARS,Transport,Hire,52000-WITH DRIVER-HIRE OF VEHICLES,"1,464.30",Revenue,16/06/2015,Childrens
WC57 - 0111,ACE REMOVALS,Transfer Payments,Transfer Payments,76422-DIRECT PAYMENTS TO SOCIAL SERVICES CLIENTS,285.00,Revenue,23/06/2015,Childrens
WC57 - 0112,ACE REMOVALS,Supplies & Services,"Equip,Furniture & Materials",60104-REMOVAL OF FURNITURE,325.00,Revenue,18/06/2015,Resources
WC57 - 0113,ACEPAY LTD (COTTAGE NUR HOME),Third Party Payments,Private Contractor Fees,73373-RESIDENTIAL & NURSING CARE PLACEMENTS,"1,937.16",Revenue,09/06/2015,Social Care & Inclusion
WC57 - 0114,ACEPAY LTD (COTTAGE NUR HOME),Third Party Payments,Private Contractor Fees,73373-RESIDENTIAL & NURSING CARE PLACEMENTS,"1,949.61",Revenue,16/06/2015,Social Care & Inclusion
WC57 - 0115,ACEPAY LTD (COTTAGE NUR HOME),Third Party Payments,Private Contractor Fees,73373-RESIDENTIAL & NURSING CARE PLACEMENTS,"1,979.20",Revenue,09/06/2015,Social Care & Inclusion
WC57 - 0116,ACEPAY LTD (COTTAGE NUR HOME),Third Party Payments,Private Contractor Fees,73373-RESIDENTIAL & NURSING CARE PLACEMENTS,"1,979.20",Revenue,09/06/2015,Social Care & Inclusion
WC57 - 0117,ACEPAY LTD (COTTAGE NUR HOME),Third Party Payments,Private Contractor Fees,73373-RESIDENTIAL & NURSING CARE PLACEMENTS,"1,979.20",Revenue,09/06/2015,Social Care & Inclusion
WC57 - 0118,ACORN CARE LTD,Third Party Payments,Private Contractor Fees,73373-RESIDENTIAL & NURSING CARE PLACEMENTS,"14,361.60",Revenue,09/06/2015,Social Care & Inclusion
WC57 - 0119,ACORN ENVIRONMENTAL MANAGEMENT GROUP,Supplies & Services,"Equip,Furniture & Materials",60500-GENERAL MATERIALS,815.00,Revenue,29/06/2015,Economy & Environment
WC57 - 0120,ACORN ENVIRONMENTAL MANAGEMENT GROUP,Supplies & Services,"Equip,Furniture & Materials",60500-GENERAL MATERIALS,815.00,Revenue,29/06/2015,Economy & Environment
WC57 - 0121,ACORN FOSTERING SERVICES LTD,Third Party Payments,Private Contractor Fees,74037-INDEPENDENT FOSTER CARE-OTH AGENCY PROVISION,"3,239.50",Revenue,16/06/2015,Childrens
WC57 - 0122,ACORN FOSTERING SERVICES LTD,Third Party Payments,Private Contractor Fees,74037-INDEPENDENT FOSTER CARE-OTH AGENCY PROVISION,"3,410.00",Revenue,01/06/2015,Childrens
WC57 - 0123,ACORN HOUSE FOSTERING SERVICES LTD,Third Party Payments,Private Contractor Fees,74037-INDEPENDENT FOSTER CARE-OTH AGENCY PROVISION,"3,636.92",Revenue,03/06/2015,Childrens
WC57 - 0124,ACORN HOUSE FOSTERING SERVICES LTD,Third Party Payments,Private Contractor Fees,74037-INDEPENDENT FOSTER CARE-OTH AGENCY PROVISION,"3,711.01",Revenue,03/06/2015,Childrens
WC57 - 0125,ACORN REST HOME,Third Party Payments,Private Contractor Fees,73373-RESIDENTIAL & NURSING CARE PLACEMENTS,"1,460.40",Revenue,09/06/2015,Social Care & Inclusion
WC57 - 0126,ACORNS CHILDRENS HOSPICE TRUST,Supplies & Services,Services,63000-PROFESSIONAL FEES AND SERVICES,750.00,Revenue,15/06/2015,Childrens
WC57 - 0127,ACTION FOR CHILDREN,Third Party Payments,Private Contractor Fees,74037-INDEPENDENT FOSTER CARE-OTH AGENCY PROVISION,"3,518.85",Revenue,03/06/2015,Childrens
WC57 - 0128,ACTION ON ELDER ABUSE,Employees,Training,30030-EXTERNAL TRAINING,324.00,Revenue,05/06/2015,Social Care & Inclusion
WC57 - 0129,ACTION ON HEARING LOSS,Third Party Payments,Private Contractor Fees,73374-SUPPORTED & OTHER ACCOMMODATION,479.28,Revenue,26/06/2015,Social Care & Inclusion
WC57 - 0130,ACTION ON HEARING LOSS,Supplies & Services,"Equip,Furniture & Materials",60006-NEW-FURNITURE & EQUIPMENT,673.01,Revenue,03/06/2015,Social Care & Inclusion
WC57 - 0131,ACTION ON HEARING LOSS,Supplies & Services,"Equip,Furniture & Materials",60006-NEW-FURNITURE & EQUIPMENT,"1,861.80",Revenue,03/06/2015,Social Care & Inclusion
WC57 - 0132,ACTIVE ASSISTANCE,Supplies & Services,Services,63000-PROFESSIONAL FEES AND SERVICES,"2,032.00",Revenue,24/06/2015,Childrens
WC57 - 0133,ACTIVE ASSISTANCE,Supplies & Services,Services,63000-PROFESSIONAL FEES AND SERVICES,"2,346.96",Revenue,24/06/2015,Childrens
WC57 - 0134,REDACTED,Capital,Capital,01023-TECHNICAL ASSISTANTS TIME,330.00,Capital,22/06/2015,Economy & Environment
WC57 - 0135,REDACTED,Transfer Payments,Transfer Payments,76422-DIRECT PAYMENTS TO SOCIAL SERVICES CLIENTS,609.50,Revenue,17/06/2015,Childrens
WC57 - 0136,REDACTED,Transfer Payments,Transfer Payments,76422-DIRECT PAYMENTS TO SOCIAL SERVICES CLIENTS,"1,015.00",Revenue,17/06/2015,Social Care & Inclusion
WC57 - 0137,ADEPT,Supplies & Services,Subscriptions,64500-PUBLICATIONS/ORGANISATIONS-SUBSCRIPTIONS,995.00,Revenue,18/06/2015,Economy & Environment
WC57 - 0138,REDACTED,Transfer Payments,Transfer Payments,76422-DIRECT PAYMENTS TO SOCIAL SERVICES CLIENTS,"1,075.00",Revenue,17/06/2015,Social Care & Inclusion
WC57 - 0139,ADMIRAL SELF STORAGE LTD,Supplies & Services,Services,63000-PROFESSIONAL FEES AND SERVICES,419.32,Revenue,01/06/2015,Resources
WC57 - 0140,ADMIRAL SELF STORAGE LTD,Supplies & Services,Services,63000-PROFESSIONAL FEES AND SERVICES,419.32,Revenue,08/06/2015,Resources
WC57 - 0141,ADMIRAL SELF STORAGE LTD,Supplies & Services,Services,63000-PROFESSIONAL FEES AND SERVICES,783.90,Revenue,29/06/2015,Social Care & Inclusion
WC57 - 0142,REDACTED,Supplies & Services,Services,63000-PROFESSIONAL FEES AND SERVICES,250.00,Revenue,04/06/2015,Economy & Environment
WC57 - 0143,ADVANCE HEALTH CARE (UK) LTD,Third Party Payments,Private Contractor Fees,74000-OTHER AGENCY FEES,341.25,Revenue,29/06/2015,Social Care & Inclusion
WC57 - 0144,ADVANCE HEALTH CARE (UK) LTD,Third Party Payments,Private Contractor Fees,73372-DOMICILIARY CARE,402.72,Revenue,03/06/2015,Social Care & Inclusion
WC57 - 0145,ADVANCE HEALTH CARE (UK) LTD,Third Party Payments,Private Contractor Fees,73372-DOMICILIARY CARE,436.62,Revenue,03/06/2015,Social Care & Inclusion
WC57 - 0146,ADVANCE HEALTH CARE (UK) LTD,Employees,Agency,34305-AGENCY STAFF-EMPLOYEES,494.00,Revenue,01/06/2015,Social Care & Inclusion
WC57 - 0147,ADVANCE HEALTH CARE (UK) LTD,Third Party Payments,Private Contractor Fees,73025-PROFESSIONAL SERVICES-PRIV CONTRACTOR & OTHER AGENCIES,516.75,Revenue,01/06/2015,Social Care & Inclusion
WC57 - 0148,ADVANCE HEALTH CARE (UK) LTD,Employees,Agency,34305-AGENCY STAFF-EMPLOYEES,552.50,Revenue,01/06/2015,Social Care & Inclusion
WC57 - 0149,ADVANCE HEALTH CARE (UK) LTD,Third Party Payments,Private Contractor Fees,73372-DOMICILIARY CARE,574.50,Revenue,01/06/2015,Social Care & Inclusion
WC57 - 0150,ADVANCE HEALTH CARE (UK) LTD,Third Party Payments,Private Contractor Fees,74000-OTHER AGENCY FEES,598.00,Revenue,29/06/2015,Social Care & Inclusion
WC57 - 0151,ADVANCE HEALTH CARE (UK) LTD,Third Party Payments,Private Contractor Fees,73372-DOMICILIARY CARE,723.87,Revenue,01/06/2015,Social Care & Inclusion
WC57 - 0152,ADVANCE HEALTH CARE (UK) LTD,Third Party Payments,Private Contractor Fees,74000-OTHER AGENCY FEES,903.50,Revenue,29/06/2015,Social Care & Inclusion
WC57 - 0153,ADVANCE HEALTH CARE (UK) LTD,Third Party Payments,Private Contractor Fees,73372-DOMICILIARY CARE,"1,137.51",Revenue,03/06/2015,Social Care & Inclusion
WC57 - 0154,ADVANCE HEALTH CARE (UK) LTD,Third Party Payments,Private Contractor Fees,73372-DOMICILIARY CARE,"38,759.79",Revenue,23/06/2015,Social Care & Inclusion
WC57 - 0155,ADVANCE PHARMA LTD T/A PLECK PHARMACY,Supplies & Services,Services,63000-PROFESSIONAL FEES AND SERVICES,130.00,Revenue,15/06/2015,Economy & Environment
WC57 - 0156,ADVANCE PHARMA LTD T/A PLECK PHARMACY,Third Party Payments,Joint Arrangements,71007-CONTRIBUTION TO PCT,289.02,Revenue,01/06/2015,Economy & Environment
WC57 - 0157,ADVANCE PHARMA LTD T/A PLECK PHARMACY,Third Party Payments,Joint Arrangements,71007-CONTRIBUTION TO PCT,415.38,Revenue,15/06/2015,Economy & Environment
WC57 - 0158,ADVANTAGE RESTORATION LTD,Premises,Premises-Repairs & Maintenance,"40000-REPAIRS,ALTERATIONS & MAINTENANCE-PREM",592.08,Revenue,24/06/2015,Economy & Environment
WC57 - 0159,AGE UK WALSALL,Third Party Payments,Grants to Other Orgs,70004-GRANTS TO VOLUNTARY BODIES,"20,000.00",Revenue,03/06/2015,Resources
WC57 - 0160,AGINCARE UK LTD,Third Party Payments,Private Contractor Fees,73372-DOMICILIARY CARE,308.00,Revenue,03/06/2015,Social Care & Inclusion
WC57 - 0161,AGINCARE UK LTD,Third Party Payments,Private Contractor Fees,73372-DOMICILIARY CARE,"1,713.60",Revenue,03/06/2015,Social Care & Inclusion
WC57 - 0162,AGINCARE UK LTD,Third Party Payments,Private Contractor Fees,73372-DOMICILIARY CARE,"2,006.28",Revenue,03/06/2015,Social Care & Inclusion
WC57 - 0163,AGRIPA LTD,Supplies & Services,Communications & Computing,68001-PUBLICITY & ADVERTISING (NOT STAFF ADVERTISING),"1,445.00",Revenue,17/06/2015,Economy & Environment
WC57 - 0164,AGRIPA LTD,Supplies & Services,Communications & Computing,68001-PUBLICITY & ADVERTISING (NOT STAFF ADVERTISING),"1,700.00",Revenue,29/06/2015,Economy & Environment
WC57 - 0165,REDACTED,Transfer Payments,Transfer Payments,76422-DIRECT PAYMENTS TO SOCIAL SERVICES CLIENTS,"2,352.50",Revenue,17/06/2015,Social Care & Inclusion
WC57 - 0166,REDACTED,Transfer Payments,Transfer Payments,76422-DIRECT PAYMENTS TO SOCIAL SERVICES CLIENTS,"1,170.65",Revenue,17/06/2015,Social Care & Inclusion
WC57 - 0167,REDACTED,Transfer Payments,Transfer Payments,76422-DIRECT PAYMENTS TO SOCIAL SERVICES CLIENTS,834.75,Revenue,17/06/2015,Social Care & Inclusion
WC57 - 0168,ALBERT PRITCHARD INFANT AND WOOD GREEN JUNIOR FEDERATED SCHOOLS,Transfer Payments,Transfer Payments,77300-ISB-FORMULA ALLOCATION,428.99,Revenue,08/06/2015,Childrens
WC57 - 0169,ALDERGROVE MANOR CARE HOME,Third Party Payments,Private Contractor Fees,73373-RESIDENTIAL & NURSING CARE PLACEMENTS,"1,799.20",Revenue,23/06/2015,Social Care & Inclusion
WC57 - 0170,ALDRIDGE & BARONS LIMITED,Transport,Hire,52001-HIRE OF VEHICLES,275.80,Revenue,11/06/2015,Social Care & Inclusion
WC57 - 0171,ALDRIDGE & BARONS LIMITED,Transport,Hire,52001-HIRE OF VEHICLES,400.00,Revenue,12/06/2015,Social Care & Inclusion
WC57 - 0172,ALDRIDGE & BARONS LIMITED,Transport,Hire,52000-WITH DRIVER-HIRE OF VEHICLES,805.00,Revenue,10/06/2015,Childrens
WC57 - 0173,ALDRIDGE & BARONS LIMITED,Transport,Hire,52000-WITH DRIVER-HIRE OF VEHICLES,841.00,Revenue,10/06/2015,Childrens
WC57 - 0174,ALDRIDGE & BARONS LIMITED,Transport,Hire,52001-HIRE OF VEHICLES,856.00,Revenue,12/06/2015,Social Care & Inclusion
WC57 - 0175,ALDRIDGE & BARONS LIMITED,Transport,Hire,52000-WITH DRIVER-HIRE OF VEHICLES,978.75,Revenue,08/06/2015,Childrens
WC57 - 0176,ALDRIDGE & BARONS LIMITED,Transport,Hire,52000-WITH DRIVER-HIRE OF VEHICLES,979.04,Revenue,19/06/2015,Childrens
WC57 - 0177,ALDRIDGE & BARONS LIMITED,Transport,Hire,52001-HIRE OF VEHICLES,"1,250.00",Revenue,11/06/2015,Social Care & Inclusion
WC57 - 0178,ALDRIDGE & BARONS LIMITED,Transport,Hire,52000-WITH DRIVER-HIRE OF VEHICLES,"1,443.68",Revenue,10/06/2015,Childrens
WC57 - 0179,ALDRIDGE & BARONS LIMITED,Transport,Hire,52000-WITH DRIVER-HIRE OF VEHICLES,"1,495.24",Revenue,10/06/2015,Childrens
WC57 - 0180,ALDRIDGE & BARONS LIMITED,Transport,Hire,52000-WITH DRIVER-HIRE OF VEHICLES,"1,676.20",Revenue,19/06/2015,Childrens
WC57 - 0181,ALDRIDGE & BARONS LIMITED,Transport,Hire,52000-WITH DRIVER-HIRE OF VEHICLES,"1,914.00",Revenue,19/06/2015,Childrens
WC57 - 0182,ALDRIDGE & BARONS LIMITED,Transport,Hire,52000-WITH DRIVER-HIRE OF VEHICLES,"1,985.86",Revenue,10/06/2015,Childrens
WC57 - 0183,ALDRIDGE & BARONS LIMITED,Transport,Hire,52000-WITH DRIVER-HIRE OF VEHICLES,"2,038.70",Revenue,19/06/2015,Childrens
WC57 - 0184,ALDRIDGE & BARONS LIMITED,Transport,Hire,52000-WITH DRIVER-HIRE OF VEHICLES,"2,256.20",Revenue,10/06/2015,Childrens
WC57 - 0185,ALDRIDGE & BARONS LIMITED,Transport,Hire,52000-WITH DRIVER-HIRE OF VEHICLES,"2,256.20",Revenue,19/06/2015,Childrens
WC57 - 0186,ALDRIDGE & BARONS LIMITED,Transport,Hire,52000-WITH DRIVER-HIRE OF VEHICLES,"2,436.00",Revenue,10/06/2015,Childrens
WC57 - 0187,ALDRIDGE & BARONS LIMITED,Transport,Hire,52000-WITH DRIVER-HIRE OF VEHICLES,"2,610.00",Revenue,10/06/2015,Childrens
WC57 - 0188,ALDRIDGE & BARONS LIMITED,Transport,Hire,52000-WITH DRIVER-HIRE OF VEHICLES,"2,784.00",Revenue,10/06/2015,Childrens
WC57 - 0189,ALDRIDGE & BARONS LIMITED,Transport,Hire,52000-WITH DRIVER-HIRE OF VEHICLES,"3,248.00",Revenue,10/06/2015,Childrens
WC57 - 0190,ALDRIDGE & BARONS LIMITED,Transport,Hire,52000-WITH DRIVER-HIRE OF VEHICLES,"3,348.00",Revenue,08/06/2015,Childrens
WC57 - 0191,ALDRIDGE & BARONS LIMITED,Transport,Hire,52000-WITH DRIVER-HIRE OF VEHICLES,"3,561.20",Revenue,19/06/2015,Childrens
WC57 - 0192,ALDRIDGE METHODIST CHURCH 001,Supplies & Services,Other Supplies & Services,63128-HIRE OF ROOM-SERVICES-FEES,290.00,Revenue,05/06/2015,Resources
WC57 - 0193,ALDRIDGE SCHOOL A SCIENCE COLLEGE.,Transfer Payments,Transfer Payments,77300-ISB-FORMULA ALLOCATION,285.00,Revenue,19/06/2015,Childrens
WC57 - 0194,ALDRIDGE SCHOOL A SCIENCE COLLEGE.,Transfer Payments,Transfer Payments,77300-ISB-FORMULA ALLOCATION,900.00,Revenue,08/06/2015,Childrens
WC57 - 0195,ALDRIDGE SCHOOL A SCIENCE COLLEGE.,Transfer Payments,Transfer Payments,77300-ISB-FORMULA ALLOCATION,960.00,Revenue,08/06/2015,Childrens
WC57 - 0196,REDACTED,Transfer Payments,Transfer Payments,76422-DIRECT PAYMENTS TO SOCIAL SERVICES CLIENTS,"1,505.00",Revenue,17/06/2015,Social Care & Inclusion
WC57 - 0197,REDACTED,Supplies & Services,Services,63000-PROFESSIONAL FEES AND SERVICES,337.50,Revenue,26/06/2015,Economy & Environment
WC57 - 0198,REDACTED,Third Party Payments,Private Contractor Fees,63239-EXTERNAL WORKS-PAYMENT TO CONTRACTOR,251.94,Revenue,04/06/2015,Economy & Environment
WC57 - 0199,ALEXANDRA HOUSE CARE SERVICES LTD T/A STONEBRIDGE NURSING HOME,Third Party Payments,Private Contractor Fees,73373-RESIDENTIAL & NURSING CARE PLACEMENTS,"1,740.21",Revenue,09/06/2015,Social Care & Inclusion
WC57 - 0200,ALEXANDRA HOUSE CARE SERVICES LTD T/A STONEBRIDGE NURSING HOME,Third Party Payments,Private Contractor Fees,73373-RESIDENTIAL & NURSING CARE PLACEMENTS,"5,220.63",Revenue,09/06/2015,Social Care & Inclusion
WC57 - 0201,ALEXANDRA HOUSE CARE SERVICES LTD T/A STONEBRIDGE NURSING HOME,Third Party Payments,Private Contractor Fees,73373-RESIDENTIAL & NURSING CARE PLACEMENTS,"6,960.84",Revenue,09/06/2015,Social Care & Inclusion
WC57 - 0202,ALEXANDRA HOUSE CARE SERVICES LTD T/A STONEBRIDGE NURSING HOME,Third Party Payments,Private Contractor Fees,73373-RESIDENTIAL & NURSING CARE PLACEMENTS,"6,960.84",Revenue,09/06/2015,Social Care & Inclusion
WC57 - 0203,ALEXANDRA HOUSE CARE SERVICES LTD T/A STONEBRIDGE NURSING HOME,Third Party Payments,Private Contractor Fees,73373-RESIDENTIAL & NURSING CARE PLACEMENTS,"6,960.84",Revenue,30/06/2015,Social Care & Inclusion
WC57 - 0204,REDACTED,Transfer Payments,Transfer Payments,76422-DIRECT PAYMENTS TO SOCIAL SERVICES CLIENTS,728.33,Revenue,17/06/2015,Childrens
WC57 - 0205,REDACTED,Transfer Payments,Transfer Payments,76422-DIRECT PAYMENTS TO SOCIAL SERVICES CLIENTS,"1,067.50",Revenue,17/06/2015,Social Care & Inclusion
WC57 - 0206,ALIGNED ASSETS LTD,Supplies & Services,Communications & Computing,63820-RECHARGE FOR MAINTENANCE/APPLICATION COSTS-COMPUTER,"6,735.45",Revenue,18/06/2015,Resources
WC57 - 0207,REDACTED,Transfer Payments,Transfer Payments,76422-DIRECT PAYMENTS TO SOCIAL SERVICES CLIENTS,411.00,Revenue,17/06/2015,Social Care & Inclusion
WC57 - 0208,REDACTED,Third Party Payments,Private Contractor Fees,74006-HOLIDAY/CHRISTMAS ALLOWANCE-FOSTER CARERS-OTH AGENCY PROVISION,985.76,Revenue,22/06/2015,Childrens
WC57 - 0209,REDACTED,Supplies & Services,Other Supplies & Services,62515-MISCELLANEOUS SUPPLIES,"1,445.32",Revenue,22/06/2015,Childrens
WC57 - 0210,REDACTED,Third Party Payments,Private Contractor Fees,74006-HOLIDAY/CHRISTMAS ALLOWANCE-FOSTER CARERS-OTH AGENCY PROVISION,552.96,Revenue,08/06/2015,Childrens
WC57 - 0211,ALL SAINTS CHURCH C/O MISS I M TAYLOR,Supplies & Services,Other Supplies & Services,63128-HIRE OF ROOM-SERVICES-FEES,"1,485.00",Revenue,25/06/2015,Economy & Environment
WC57 - 0212,ALLPACK GROUP,Supplies & Services,"Printing, Stationery & Office Exp",62001-STATIONERY & GENERAL SUPPLIES-OFFICE EXP,593.40,Revenue,11/06/2015,Social Care & Inclusion
WC57 - 0213,ALLSORTS OFFICE SUPPLIES LTD,Supplies & Services,"Equip,Furniture & Materials",60520-HEALTH & SAFETY-MATERIALS,272.00,Revenue,01/06/2015,Economy & Environment
WC57 - 0214,ALLSORTS OFFICE SUPPLIES LTD,Premises,Premises-Repairs & Maintenance,"40000-REPAIRS,ALTERATIONS & MAINTENANCE-PREM","1,284.00",Revenue,24/06/2015,Economy & Environment
WC57 - 0215,ALLSORTS OFFICE SUPPLIES LTD,Supplies & Services,"Equip,Furniture & Materials",60006-NEW-FURNITURE & EQUIPMENT,"2,688.00",Revenue,01/06/2015,Social Care & Inclusion
WC57 - 0216,ALPHA HAIR DESIGN ACADEMY,Third Party Payments,Grants to Other Orgs,66502-TOP UP FUNDING -GRANTS TO SCHOOLS,"1,560.00",Revenue,22/06/2015,Childrens
WC57 - 0217,ALPHA HEALTH CARE LTD,Third Party Payments,Private Contractor Fees,73373-RESIDENTIAL & NURSING CARE PLACEMENTS,-640.29,Revenue,30/06/2015,Social Care & Inclusion
WC57 - 0218,ALPHA HEALTH CARE LTD,Third Party Payments,Private Contractor Fees,73373-RESIDENTIAL & NURSING CARE PLACEMENTS,277.43,Revenue,09/06/2015,Social Care & Inclusion
WC57 - 0219,ALPHA HEALTH CARE LTD,Third Party Payments,Private Contractor Fees,73373-RESIDENTIAL & NURSING CARE PLACEMENTS,485.50,Revenue,09/06/2015,Social Care & Inclusion
WC57 - 0220,ALPHA HEALTH CARE LTD,Third Party Payments,Private Contractor Fees,73373-RESIDENTIAL & NURSING CARE PLACEMENTS,832.29,Revenue,09/06/2015,Social Care & Inclusion
WC57 - 0221,ALPHA HEALTH CARE LTD,Third Party Payments,Private Contractor Fees,73373-RESIDENTIAL & NURSING CARE PLACEMENTS,851.20,Revenue,16/06/2015,Social Care & Inclusion
WC57 - 0222,ALPHA HEALTH CARE LTD,Third Party Payments,Private Contractor Fees,73373-RESIDENTIAL & NURSING CARE PLACEMENTS,"1,317.79",Revenue,09/06/2015,Social Care & Inclusion
WC57 - 0223,ALPHA HEALTH CARE LTD,Third Party Payments,Private Contractor Fees,73373-RESIDENTIAL & NURSING CARE PLACEMENTS,"1,375.60",Revenue,16/06/2015,Social Care & Inclusion
WC57 - 0224,ALPHA HEALTH CARE LTD,Third Party Payments,Private Contractor Fees,73373-RESIDENTIAL & NURSING CARE PLACEMENTS,"1,382.00",Revenue,16/06/2015,Social Care & Inclusion
WC57 - 0225,ALPHA HEALTH CARE LTD,Third Party Payments,Private Contractor Fees,73373-RESIDENTIAL & NURSING CARE PLACEMENTS,"1,460.40",Revenue,16/06/2015,Social Care & Inclusion
WC57 - 0226,ALPHA HEALTH CARE LTD,Third Party Payments,Private Contractor Fees,73373-RESIDENTIAL & NURSING CARE PLACEMENTS,"1,476.84",Revenue,16/06/2015,Social Care & Inclusion
WC57 - 0227,ALPHA HEALTH CARE LTD,Third Party Payments,Private Contractor Fees,73373-RESIDENTIAL & NURSING CARE PLACEMENTS,"1,476.84",Revenue,16/06/2015,Social Care & Inclusion
WC57 - 0228,ALPHA HEALTH CARE LTD,Third Party Payments,Private Contractor Fees,73373-RESIDENTIAL & NURSING CARE PLACEMENTS,"1,476.84",Revenue,16/06/2015,Social Care & Inclusion
WC57 - 0229,ALPHA HEALTH CARE LTD,Third Party Payments,Private Contractor Fees,73373-RESIDENTIAL & NURSING CARE PLACEMENTS,"1,494.00",Revenue,16/06/2015,Social Care & Inclusion
WC57 - 0230,ALPHA HEALTH CARE LTD,Third Party Payments,Private Contractor Fees,73373-RESIDENTIAL & NURSING CARE PLACEMENTS,"1,494.00",Revenue,16/06/2015,Social Care & Inclusion
WC57 - 0231,ALPHA HEALTH CARE LTD,Third Party Payments,Private Contractor Fees,73373-RESIDENTIAL & NURSING CARE PLACEMENTS,"1,494.00",Revenue,16/06/2015,Social Care & Inclusion
WC57 - 0232,ALPHA HEALTH CARE LTD,Third Party Payments,Private Contractor Fees,73373-RESIDENTIAL & NURSING CARE PLACEMENTS,"1,494.00",Revenue,16/06/2015,Social Care & Inclusion
WC57 - 0233,ALPHA HEALTH CARE LTD,Third Party Payments,Private Contractor Fees,73373-RESIDENTIAL & NURSING CARE PLACEMENTS,"1,494.00",Revenue,16/06/2015,Social Care & Inclusion
WC57 - 0234,ALPHA HEALTH CARE LTD,Third Party Payments,Private Contractor Fees,73373-RESIDENTIAL & NURSING CARE PLACEMENTS,"1,494.00",Revenue,16/06/2015,Social Care & Inclusion
WC57 - 0235,ALPHA HEALTH CARE LTD,Third Party Payments,Private Contractor Fees,73373-RESIDENTIAL & NURSING CARE PLACEMENTS,"1,494.00",Revenue,16/06/2015,Social Care & Inclusion
WC57 - 0236,ALPHA HEALTH CARE LTD,Third Party Payments,Private Contractor Fees,73373-RESIDENTIAL & NURSING CARE PLACEMENTS,"1,494.00",Revenue,16/06/2015,Social Care & Inclusion
WC57 - 0237,ALPHA HEALTH CARE LTD,Third Party Payments,Private Contractor Fees,73373-RESIDENTIAL & NURSING CARE PLACEMENTS,"1,494.00",Revenue,16/06/2015,Social Care & Inclusion
WC57 - 0238,ALPHA HEALTH CARE LTD,Third Party Payments,Private Contractor Fees,73373-RESIDENTIAL & NURSING CARE PLACEMENTS,"1,494.00",Revenue,16/06/2015,Social Care & Inclusion
WC57 - 0239,ALPHA HEALTH CARE LTD,Third Party Payments,Private Contractor Fees,73373-RESIDENTIAL & NURSING CARE PLACEMENTS,"1,494.00",Revenue,16/06/2015,Social Care & Inclusion
WC57 - 0240,ALPHA HEALTH CARE LTD,Third Party Payments,Private Contractor Fees,73373-RESIDENTIAL & NURSING CARE PLACEMENTS,"1,494.04",Revenue,16/06/2015,Social Care & Inclusion
WC57 - 0241,ALPHA HEALTH CARE LTD,Third Party Payments,Private Contractor Fees,73373-RESIDENTIAL & NURSING CARE PLACEMENTS,"1,534.12",Revenue,16/06/2015,Social Care & Inclusion
WC57 - 0242,ALPHA HEALTH CARE LTD,Third Party Payments,Private Contractor Fees,73373-RESIDENTIAL & NURSING CARE PLACEMENTS,"1,534.12",Revenue,16/06/2015,Social Care & Inclusion
WC57 - 0243,ALPHA HEALTH CARE LTD,Third Party Payments,Private Contractor Fees,73373-RESIDENTIAL & NURSING CARE PLACEMENTS,"1,534.12",Revenue,16/06/2015,Social Care & Inclusion
WC57 - 0244,ALPHA HEALTH CARE LTD,Third Party Payments,Private Contractor Fees,73373-RESIDENTIAL & NURSING CARE PLACEMENTS,"1,534.12",Revenue,16/06/2015,Social Care & Inclusion
WC57 - 0245,ALPHA HEALTH CARE LTD,Third Party Payments,Private Contractor Fees,73373-RESIDENTIAL & NURSING CARE PLACEMENTS,"1,534.12",Revenue,16/06/2015,Social Care & Inclusion
WC57 - 0246,ALPHA HEALTH CARE LTD,Third Party Payments,Private Contractor Fees,73373-RESIDENTIAL & NURSING CARE PLACEMENTS,"1,534.28",Revenue,16/06/2015,Social Care & Inclusion
WC57 - 0247,ALPHA HEALTH CARE LTD,Third Party Payments,Private Contractor Fees,73373-RESIDENTIAL & NURSING CARE PLACEMENTS,"1,594.72",Revenue,16/06/2015,Social Care & Inclusion
WC57 - 0248,ALPHA HEALTH CARE LTD,Third Party Payments,Private Contractor Fees,73373-RESIDENTIAL & NURSING CARE PLACEMENTS,"2,012.60",Revenue,16/06/2015,Social Care & Inclusion
WC57 - 0249,ALPHA HEALTH CARE LTD,Third Party Payments,Private Contractor Fees,73373-RESIDENTIAL & NURSING CARE PLACEMENTS,"2,080.71",Revenue,30/06/2015,Social Care & Inclusion
WC57 - 0250,ALPHA HEALTH CARE LTD,Third Party Payments,Private Contractor Fees,73373-RESIDENTIAL & NURSING CARE PLACEMENTS,"2,113.84",Revenue,16/06/2015,Social Care & Inclusion
WC57 - 0251,ALPHA HEALTH CARE LTD,Third Party Payments,Private Contractor Fees,73373-RESIDENTIAL & NURSING CARE PLACEMENTS,"5,300.00",Revenue,16/06/2015,Social Care & Inclusion
WC57 - 0252,ALPHA HEALTH CARE LTD,Third Party Payments,Private Contractor Fees,73373-RESIDENTIAL & NURSING CARE PLACEMENTS,"5,304.44",Revenue,16/06/2015,Social Care & Inclusion
WC57 - 0253,ALPHA HEALTH CARE LTD,Third Party Payments,Private Contractor Fees,73373-RESIDENTIAL & NURSING CARE PLACEMENTS,"5,431.12",Revenue,16/06/2015,Social Care & Inclusion
WC57 - 0254,ALPHA HEALTH CARE LTD,Third Party Payments,Private Contractor Fees,73373-RESIDENTIAL & NURSING CARE PLACEMENTS,"5,604.44",Revenue,16/06/2015,Social Care & Inclusion
WC57 - 0255,ALPHA HEALTH CARE LTD,Third Party Payments,Private Contractor Fees,73373-RESIDENTIAL & NURSING CARE PLACEMENTS,"5,760.00",Revenue,30/06/2015,Social Care & Inclusion
WC57 - 0256,ALPHA HEALTH CARE LTD,Third Party Payments,Private Contractor Fees,73373-RESIDENTIAL & NURSING CARE PLACEMENTS,"8,928.00",Revenue,30/06/2015,Social Care & Inclusion
WC57 - 0257,ALPHABIOLABS,Transfer Payments,Transfer Payments,76010-ACCOMMODATION AND RELATED COSTS-ASSISTANCE TO S/S CLIENTS,465.00,Revenue,19/06/2015,Childrens
WC57 - 0258,ALTODIGITAL NETWORKS LTD,Supplies & Services,"Equip,Furniture & Materials",60009-LEASING/HIRE/RENTAL-EQUIPMENT,723.72,Revenue,29/06/2015,Social Care & Inclusion
WC57 - 0259,ALTODIGITAL NETWORKS LTD,Supplies & Services,"Equip,Furniture & Materials",60009-LEASING/HIRE/RENTAL-EQUIPMENT,778.16,Revenue,03/06/2015,Childrens
WC57 - 0260,REDACTED,Transfer Payments,Transfer Payments,76422-DIRECT PAYMENTS TO SOCIAL SERVICES CLIENTS,400.00,Revenue,17/06/2015,Social Care & Inclusion
WC57 - 0261,REDACTED,Third Party Payments,Private Contractor Fees,74006-HOLIDAY/CHRISTMAS ALLOWANCE-FOSTER CARERS-OTH AGENCY PROVISION,"1,500.88",Revenue,08/06/2015,Childrens
WC57 - 0262,REDACTED,Supplies & Services,Other Supplies & Services,62515-MISCELLANEOUS SUPPLIES,354.48,Revenue,22/06/2015,Childrens
WC57 - 0263,REDACTED,Third Party Payments,Private Contractor Fees,74006-HOLIDAY/CHRISTMAS ALLOWANCE-FOSTER CARERS-OTH AGENCY PROVISION,571.44,Revenue,22/06/2015,Childrens
WC57 - 0264,REDACTED,Transfer Payments,Transfer Payments,76422-DIRECT PAYMENTS TO SOCIAL SERVICES CLIENTS,818.13,Revenue,17/06/2015,Social Care & Inclusion
WC57 - 0265,REDACTED,Transfer Payments,Transfer Payments,76422-DIRECT PAYMENTS TO SOCIAL SERVICES CLIENTS,391.15,Revenue,17/06/2015,Childrens
WC57 - 0266,AMELIX LIMITED,Supplies & Services,Other Supplies & Services,62515-MISCELLANEOUS SUPPLIES,"1,984.50",Revenue,08/06/2015,Economy & Environment
WC57 - 0267,AMEY LG LIMITED,Third Party Payments,Private Contractor Fees,73025-PROFESSIONAL SERVICES-PRIV CONTRACTOR & OTHER AGENCIES,430.23,Revenue,09/06/2015,Economy & Environment
WC57 - 0268,AMEY LG LIMITED,Third Party Payments,Private Contractor Fees,73025-PROFESSIONAL SERVICES-PRIV CONTRACTOR & OTHER AGENCIES,892.72,Revenue,01/06/2015,Economy & Environment
WC57 - 0269,AMEY LG LIMITED,Third Party Payments,Private Contractor Fees,73025-PROFESSIONAL SERVICES-PRIV CONTRACTOR & OTHER AGENCIES,"1,281.90",Revenue,26/06/2015,Economy & Environment
WC57 - 0270,AMEY LG LIMITED,Capital,Capital,01006-SITE WORKS MAIN CONTRACTORS,"3,020.98",Capital,26/06/2015,Economy & Environment
WC57 - 0271,AMEY LG LIMITED,Capital,Capital,01006-SITE WORKS MAIN CONTRACTORS,"3,851.72",Capital,26/06/2015,Economy & Environment
WC57 - 0272,AMEY LG LIMITED,Supplies & Services,"Equip,Furniture & Materials",60009-LEASING/HIRE/RENTAL-EQUIPMENT,"5,043.47",Revenue,04/06/2015,Resources
WC57 - 0273,AMEY LG LIMITED,Third Party Payments,Private Contractor Fees,73025-PROFESSIONAL SERVICES-PRIV CONTRACTOR & OTHER AGENCIES,"8,696.04",Revenue,01/06/2015,Economy & Environment
WC57 - 0274,AMEY LG LIMITED,Third Party Payments,Private Contractor Fees,73025-PROFESSIONAL SERVICES-PRIV CONTRACTOR & OTHER AGENCIES,"10,735.91",Revenue,26/06/2015,Economy & Environment
WC57 - 0275,AMEY METERING LTD,Third Party Payments,Private Contractor Fees,73025-PROFESSIONAL SERVICES-PRIV CONTRACTOR & OTHER AGENCIES,"2,500.00",Revenue,01/06/2015,Economy & Environment
WC57 - 0276,AMG NURSING CARE SERVICES,Third Party Payments,Private Contractor Fees,74036-EXTERNAL RESIDENTIAL CARE-OTH AGENCY PROVISION,"1,088.88",Revenue,02/06/2015,Childrens
WC57 - 0277,AMG NURSING CARE SERVICES,Third Party Payments,Private Contractor Fees,74036-EXTERNAL RESIDENTIAL CARE-OTH AGENCY PROVISION,"2,229.76",Revenue,17/06/2015,Childrens
WC57 - 0278,AMG NURSING CARE SERVICES,Third Party Payments,Private Contractor Fees,74036-EXTERNAL RESIDENTIAL CARE-OTH AGENCY PROVISION,"2,257.46",Revenue,02/06/2015,Childrens
WC57 - 0279,AMG NURSING CARE SERVICES,Third Party Payments,Private Contractor Fees,74036-EXTERNAL RESIDENTIAL CARE-OTH AGENCY PROVISION,"2,278.40",Revenue,19/06/2015,Childrens
WC57 - 0280,REDACTED,Transfer Payments,Transfer Payments,76422-DIRECT PAYMENTS TO SOCIAL SERVICES CLIENTS,"1,114.05",Revenue,17/06/2015,Social Care & Inclusion
WC57 - 0281,REDACTED,Third Party Payments,Private Contractor Fees,74006-HOLIDAY/CHRISTMAS ALLOWANCE-FOSTER CARERS-OTH AGENCY PROVISION,425.08,Revenue,08/06/2015,Childrens
WC57 - 0282,REDACTED,Transfer Payments,Transfer Payments,76422-DIRECT PAYMENTS TO SOCIAL SERVICES CLIENTS,680.00,Revenue,17/06/2015,Social Care & Inclusion
WC57 - 0283,REDACTED,Third Party Payments,Private Contractor Fees,74006-HOLIDAY/CHRISTMAS ALLOWANCE-FOSTER CARERS-OTH AGENCY PROVISION,"1,383.21",Revenue,22/06/2015,Childrens
WC57 - 0284,REDACTED,Supplies & Services,Other Supplies & Services,62515-MISCELLANEOUS SUPPLIES,"1,812.08",Revenue,22/06/2015,Childrens
WC57 - 0285,REDACTED,Transfer Payments,Transfer Payments,76422-DIRECT PAYMENTS TO SOCIAL SERVICES CLIENTS,472.50,Revenue,17/06/2015,Social Care & Inclusion
WC57 - 0286,REDACTED,Supplies & Services,Other Supplies & Services,62515-MISCELLANEOUS SUPPLIES,906.76,Revenue,22/06/2015,Childrens
WC57 - 0287,REDACTED,Third Party Payments,Private Contractor Fees,74006-HOLIDAY/CHRISTMAS ALLOWANCE-FOSTER CARERS-OTH AGENCY PROVISION,985.76,Revenue,22/06/2015,Childrens
WC57 - 0288,ANDREWS ELECTRICAL LTD,Capital,Capital,01006-SITE WORKS MAIN CONTRACTORS,"14,896.00",Capital,24/06/2015,Childrens
WC57 - 0289,ANDREWS ELECTRICAL LTD,Capital,Capital,01006-SITE WORKS MAIN CONTRACTORS,"22,845.60",Capital,15/06/2015,Economy & Environment
WC57 - 0290,ANGEL COURT RESIDENTIAL CARE HOME,Third Party Payments,Private Contractor Fees,73373-RESIDENTIAL & NURSING CARE PLACEMENTS,"1,784.44",Revenue,30/06/2015,Social Care & Inclusion
WC57 - 0291,REDACTED,Third Party Payments,Private Contractor Fees,74006-HOLIDAY/CHRISTMAS ALLOWANCE-FOSTER CARERS-OTH AGENCY PROVISION,"1,952.76",Revenue,08/06/2015,Childrens
WC57 - 0292,ANGLIA STAIRLIFTS LTD,Capital,Capital,01045-PRIVATE GRANTS,"3,695.00",Capital,15/06/2015,Resources
WC57 - 0293,ANGLIA STAIRLIFTS LTD,Capital,Capital,01045-PRIVATE GRANTS,"3,715.00",Capital,15/06/2015,Resources
WC57 - 0294,ANGLIA STAIRLIFTS LTD,Capital,Capital,01045-PRIVATE GRANTS,"3,785.00",Capital,17/06/2015,Resources
WC57 - 0295,ANGLIA STAIRLIFTS LTD,Capital,Capital,01045-PRIVATE GRANTS,"3,930.00",Capital,17/06/2015,Resources
WC57 - 0296,ANGLIA STAIRLIFTS LTD,Capital,Capital,01045-PRIVATE GRANTS,"4,105.00",Capital,03/06/2015,Resources
WC57 - 0297,ANGLIA STAIRLIFTS LTD,Capital,Capital,01045-PRIVATE GRANTS,"4,185.00",Capital,25/06/2015,Resources
WC57 - 0298,ANGLIA STAIRLIFTS LTD,Capital,Capital,01045-PRIVATE GRANTS,"4,225.00",Capital,26/06/2015,Resources
WC57 - 0299,ANGLIA STAIRLIFTS LTD,Capital,Capital,01045-PRIVATE GRANTS,"4,765.00",Capital,26/06/2015,Resources
WC57 - 0300,REDACTED,Supplies & Services,Other Supplies & Services,62515-MISCELLANEOUS SUPPLIES,"1,322.04",Revenue,22/06/2015,Childrens
WC57 - 0301,REDACTED,Third Party Payments,Private Contractor Fees,74006-HOLIDAY/CHRISTMAS ALLOWANCE-FOSTER CARERS-OTH AGENCY PROVISION,"2,366.86",Revenue,22/06/2015,Childrens
WC57 - 0302,REDACTED,Transfer Payments,Transfer Payments,76422-DIRECT PAYMENTS TO SOCIAL SERVICES CLIENTS,397.50,Revenue,17/06/2015,Social Care & Inclusion
WC57 - 0303,REDACTED,Supplies & Services,Services,63000-PROFESSIONAL FEES AND SERVICES,250.00,Revenue,18/06/2015,Economy & Environment
WC57 - 0304,REDACTED,Third Party Payments,Private Contractor Fees,73374-SUPPORTED & OTHER ACCOMMODATION,801.00,Revenue,19/06/2015,Social Care & Inclusion
WC57 - 0305,ANSON COURT RESIDENTIAL HOME,Third Party Payments,Private Contractor Fees,73373-RESIDENTIAL & NURSING CARE PLACEMENTS,"1,369.75",Revenue,16/06/2015,Social Care & Inclusion
WC57 - 0306,ANSON COURT RESIDENTIAL HOME,Third Party Payments,Private Contractor Fees,73373-RESIDENTIAL & NURSING CARE PLACEMENTS,"1,532.52",Revenue,02/06/2015,Social Care & Inclusion
WC57 - 0307,ANSON COURT RESIDENTIAL HOME,Third Party Payments,Private Contractor Fees,73373-RESIDENTIAL & NURSING CARE PLACEMENTS,"1,532.52",Revenue,30/06/2015,Social Care & Inclusion
WC57 - 0308,ANSON COURT RESIDENTIAL HOME,Third Party Payments,Private Contractor Fees,73373-RESIDENTIAL & NURSING CARE PLACEMENTS,"1,534.12",Revenue,02/06/2015,Social Care & Inclusion
WC57 - 0309,ANSON COURT RESIDENTIAL HOME,Third Party Payments,Private Contractor Fees,73373-RESIDENTIAL & NURSING CARE PLACEMENTS,"1,534.12",Revenue,02/06/2015,Social Care & Inclusion
WC57 - 0310,ANSON COURT RESIDENTIAL HOME,Third Party Payments,Private Contractor Fees,73373-RESIDENTIAL & NURSING CARE PLACEMENTS,"1,534.12",Revenue,02/06/2015,Social Care & Inclusion
WC57 - 0311,ANSON COURT RESIDENTIAL HOME,Third Party Payments,Private Contractor Fees,73373-RESIDENTIAL & NURSING CARE PLACEMENTS,"1,534.12",Revenue,02/06/2015,Social Care & Inclusion
WC57 - 0312,ANSON COURT RESIDENTIAL HOME,Third Party Payments,Private Contractor Fees,73373-RESIDENTIAL & NURSING CARE PLACEMENTS,"1,534.12",Revenue,02/06/2015,Social Care & Inclusion
WC57 - 0313,ANSON COURT RESIDENTIAL HOME,Third Party Payments,Private Contractor Fees,73373-RESIDENTIAL & NURSING CARE PLACEMENTS,"1,534.12",Revenue,02/06/2015,Social Care & Inclusion
WC57 - 0314,ANSON COURT RESIDENTIAL HOME,Third Party Payments,Private Contractor Fees,73373-RESIDENTIAL & NURSING CARE PLACEMENTS,"1,534.12",Revenue,02/06/2015,Social Care & Inclusion
WC57 - 0315,ANSON COURT RESIDENTIAL HOME,Third Party Payments,Private Contractor Fees,73373-RESIDENTIAL & NURSING CARE PLACEMENTS,"1,534.12",Revenue,02/06/2015,Social Care & Inclusion
WC57 - 0316,ANSON COURT RESIDENTIAL HOME,Third Party Payments,Private Contractor Fees,73373-RESIDENTIAL & NURSING CARE PLACEMENTS,"1,534.12",Revenue,02/06/2015,Social Care & Inclusion
WC57 - 0317,ANSON COURT RESIDENTIAL HOME,Third Party Payments,Private Contractor Fees,73373-RESIDENTIAL & NURSING CARE PLACEMENTS,"1,534.12",Revenue,02/06/2015,Social Care & Inclusion
WC57 - 0318,ANSON COURT RESIDENTIAL HOME,Third Party Payments,Private Contractor Fees,73373-RESIDENTIAL & NURSING CARE PLACEMENTS,"1,534.12",Revenue,02/06/2015,Social Care & Inclusion
WC57 - 0319,ANSON COURT RESIDENTIAL HOME,Third Party Payments,Private Contractor Fees,73373-RESIDENTIAL & NURSING CARE PLACEMENTS,"1,534.12",Revenue,16/06/2015,Social Care & Inclusion
WC57 - 0320,ANSON COURT RESIDENTIAL HOME,Third Party Payments,Private Contractor Fees,73373-RESIDENTIAL & NURSING CARE PLACEMENTS,"1,534.12",Revenue,16/06/2015,Social Care & Inclusion
WC57 - 0321,ANSON COURT RESIDENTIAL HOME,Third Party Payments,Private Contractor Fees,73373-RESIDENTIAL & NURSING CARE PLACEMENTS,"1,534.12",Revenue,16/06/2015,Social Care & Inclusion
WC57 - 0322,ANSON COURT RESIDENTIAL HOME,Third Party Payments,Private Contractor Fees,73373-RESIDENTIAL & NURSING CARE PLACEMENTS,"1,534.12",Revenue,16/06/2015,Social Care & Inclusion
WC57 - 0323,ANSON COURT RESIDENTIAL HOME,Third Party Payments,Private Contractor Fees,73373-RESIDENTIAL & NURSING CARE PLACEMENTS,"1,534.12",Revenue,30/06/2015,Social Care & Inclusion
WC57 - 0324,ANSON COURT RESIDENTIAL HOME,Third Party Payments,Private Contractor Fees,73373-RESIDENTIAL & NURSING CARE PLACEMENTS,"1,534.12",Revenue,30/06/2015,Social Care & Inclusion
WC57 - 0325,ANSON COURT RESIDENTIAL HOME,Third Party Payments,Private Contractor Fees,73373-RESIDENTIAL & NURSING CARE PLACEMENTS,"1,534.12",Revenue,30/06/2015,Social Care & Inclusion
WC57 - 0326,ANSON COURT RESIDENTIAL HOME,Third Party Payments,Private Contractor Fees,73373-RESIDENTIAL & NURSING CARE PLACEMENTS,"1,534.12",Revenue,30/06/2015,Social Care & Inclusion
WC57 - 0327,ANSON COURT RESIDENTIAL HOME,Third Party Payments,Private Contractor Fees,73373-RESIDENTIAL & NURSING CARE PLACEMENTS,"1,534.12",Revenue,30/06/2015,Social Care & Inclusion
WC57 - 0328,ANSON COURT RESIDENTIAL HOME,Third Party Payments,Private Contractor Fees,73373-RESIDENTIAL & NURSING CARE PLACEMENTS,"1,534.12",Revenue,30/06/2015,Social Care & Inclusion
WC57 - 0329,ANSON COURT RESIDENTIAL HOME,Third Party Payments,Private Contractor Fees,73373-RESIDENTIAL & NURSING CARE PLACEMENTS,"1,534.12",Revenue,30/06/2015,Social Care & Inclusion
WC57 - 0330,ANSON COURT RESIDENTIAL HOME,Third Party Payments,Private Contractor Fees,73373-RESIDENTIAL & NURSING CARE PLACEMENTS,"1,534.12",Revenue,30/06/2015,Social Care & Inclusion
WC57 - 0331,ANSON COURT RESIDENTIAL HOME,Third Party Payments,Private Contractor Fees,73373-RESIDENTIAL & NURSING CARE PLACEMENTS,"1,534.12",Revenue,30/06/2015,Social Care & Inclusion
WC57 - 0332,ANSON COURT RESIDENTIAL HOME,Third Party Payments,Private Contractor Fees,73373-RESIDENTIAL & NURSING CARE PLACEMENTS,"1,534.12",Revenue,30/06/2015,Social Care & Inclusion
WC57 - 0333,ANSON COURT RESIDENTIAL HOME,Third Party Payments,Private Contractor Fees,73373-RESIDENTIAL & NURSING CARE PLACEMENTS,"1,534.12",Revenue,30/06/2015,Social Care & Inclusion
WC57 - 0334,ANSON COURT RESIDENTIAL HOME,Third Party Payments,Private Contractor Fees,73373-RESIDENTIAL & NURSING CARE PLACEMENTS,"1,534.12",Revenue,30/06/2015,Social Care & Inclusion
WC57 - 0335,ANSON COURT RESIDENTIAL HOME,Third Party Payments,Private Contractor Fees,73373-RESIDENTIAL & NURSING CARE PLACEMENTS,"1,534.72",Revenue,02/06/2015,Social Care & Inclusion
WC57 - 0336,ANSON COURT RESIDENTIAL HOME,Third Party Payments,Private Contractor Fees,73373-RESIDENTIAL & NURSING CARE PLACEMENTS,"1,612.92",Revenue,02/06/2015,Social Care & Inclusion
WC57 - 0337,ANSON COURT RESIDENTIAL HOME,Third Party Payments,Private Contractor Fees,73373-RESIDENTIAL & NURSING CARE PLACEMENTS,"1,612.92",Revenue,30/06/2015,Social Care & Inclusion
WC57 - 0338,ANSON COURT RESIDENTIAL HOME,Third Party Payments,Private Contractor Fees,73373-RESIDENTIAL & NURSING CARE PLACEMENTS,"1,614.12",Revenue,02/06/2015,Social Care & Inclusion
WC57 - 0339,ANSON COURT RESIDENTIAL HOME,Third Party Payments,Private Contractor Fees,73373-RESIDENTIAL & NURSING CARE PLACEMENTS,"1,614.12",Revenue,02/06/2015,Social Care & Inclusion
WC57 - 0340,ANSON COURT RESIDENTIAL HOME,Third Party Payments,Private Contractor Fees,73373-RESIDENTIAL & NURSING CARE PLACEMENTS,"1,614.12",Revenue,30/06/2015,Social Care & Inclusion
WC57 - 0341,ANSON COURT RESIDENTIAL HOME,Third Party Payments,Private Contractor Fees,73373-RESIDENTIAL & NURSING CARE PLACEMENTS,"1,614.72",Revenue,02/06/2015,Social Care & Inclusion
WC57 - 0342,ANSON COURT RESIDENTIAL HOME,Third Party Payments,Private Contractor Fees,73373-RESIDENTIAL & NURSING CARE PLACEMENTS,"1,614.72",Revenue,02/06/2015,Social Care & Inclusion
WC57 - 0343,ANSON COURT RESIDENTIAL HOME,Third Party Payments,Private Contractor Fees,73373-RESIDENTIAL & NURSING CARE PLACEMENTS,"1,614.72",Revenue,30/06/2015,Social Care & Inclusion
WC57 - 0344,ANSON COURT RESIDENTIAL HOME,Third Party Payments,Private Contractor Fees,73373-RESIDENTIAL & NURSING CARE PLACEMENTS,"1,614.72",Revenue,30/06/2015,Social Care & Inclusion
WC57 - 0345,ANSON COURT RESIDENTIAL HOME,Third Party Payments,Private Contractor Fees,73373-RESIDENTIAL & NURSING CARE PLACEMENTS,"3,068.24",Revenue,16/06/2015,Social Care & Inclusion
WC57 - 0346,REDACTED,Third Party Payments,Private Contractor Fees,74006-HOLIDAY/CHRISTMAS ALLOWANCE-FOSTER CARERS-OTH AGENCY PROVISION,"1,369.84",Revenue,08/06/2015,Childrens
WC57 - 0347,REDACTED,Third Party Payments,Private Contractor Fees,74006-HOLIDAY/CHRISTMAS ALLOWANCE-FOSTER CARERS-OTH AGENCY PROVISION,571.44,Revenue,08/06/2015,Childrens
WC57 - 0348,APCOA PARKING SERVICES (UK) LTD,Third Party Payments,Private Contractor Fees,73025-PROFESSIONAL SERVICES-PRIV CONTRACTOR & OTHER AGENCIES,"43,657.14",Revenue,11/06/2015,Economy & Environment
WC57 - 0349,APNA HOUSE LTD,Third Party Payments,Private Contractor Fees,73373-RESIDENTIAL & NURSING CARE PLACEMENTS,"5,464.00",Revenue,16/06/2015,Social Care & Inclusion
WC57 - 0350,APNA HOUSE LTD,Third Party Payments,Private Contractor Fees,73373-RESIDENTIAL & NURSING CARE PLACEMENTS,"5,464.00",Revenue,30/06/2015,Social Care & Inclusion
WC57 - 0351,APPLE TRANSCRIPTION LIMITED,Third Party Payments,Private Contractor Fees,73014-LEGAL FEES-PRIV CONTRACTOR FEES,281.05,Revenue,02/06/2015,Childrens
WC57 - 0352,ARBORETUM NURSING HOME.,Third Party Payments,Private Contractor Fees,73373-RESIDENTIAL & NURSING CARE PLACEMENTS,"1,907.54",Revenue,16/06/2015,Social Care & Inclusion
WC57 - 0353,ARBORETUM NURSING HOME.,Third Party Payments,Private Contractor Fees,73373-RESIDENTIAL & NURSING CARE PLACEMENTS,"1,937.56",Revenue,09/06/2015,Social Care & Inclusion
WC57 - 0354,ARBORETUM NURSING HOME.,Third Party Payments,Private Contractor Fees,73373-RESIDENTIAL & NURSING CARE PLACEMENTS,"1,942.00",Revenue,16/06/2015,Social Care & Inclusion
WC57 - 0355,ARBORETUM NURSING HOME.,Third Party Payments,Private Contractor Fees,73373-RESIDENTIAL & NURSING CARE PLACEMENTS,"1,942.00",Revenue,16/06/2015,Social Care & Inclusion
WC57 - 0356,ARBORETUM NURSING HOME.,Third Party Payments,Private Contractor Fees,73373-RESIDENTIAL & NURSING CARE PLACEMENTS,"1,942.00",Revenue,16/06/2015,Social Care & Inclusion
WC57 - 0357,ARBORETUM NURSING HOME.,Third Party Payments,Private Contractor Fees,73373-RESIDENTIAL & NURSING CARE PLACEMENTS,"1,990.76",Revenue,09/06/2015,Social Care & Inclusion
WC57 - 0358,ARBORETUM NURSING HOME.,Third Party Payments,Private Contractor Fees,73373-RESIDENTIAL & NURSING CARE PLACEMENTS,"2,427.50",Revenue,16/06/2015,Social Care & Inclusion
WC57 - 0359,ARBORETUM NURSING HOME.,Third Party Payments,Private Contractor Fees,73373-RESIDENTIAL & NURSING CARE PLACEMENTS,"2,427.50",Revenue,16/06/2015,Social Care & Inclusion
WC57 - 0360,ARBORETUM NURSING HOME.,Third Party Payments,Private Contractor Fees,73373-RESIDENTIAL & NURSING CARE PLACEMENTS,"2,488.45",Revenue,16/06/2015,Social Care & Inclusion
WC57 - 0361,ARBORETUM NURSING HOME.,Third Party Payments,Private Contractor Fees,73373-RESIDENTIAL & NURSING CARE PLACEMENTS,"2,488.45",Revenue,16/06/2015,Social Care & Inclusion
WC57 - 0362,ARBORETUM NURSING HOME.,Third Party Payments,Private Contractor Fees,73019-PSE'S-PRIV CONTRACTOR FEES,"15,000.00",Revenue,18/06/2015,Social Care & Inclusion
WC57 - 0363,ARRIVA MIDLANDS LTD,Transport,Hire,52000-WITH DRIVER-HIRE OF VEHICLES,314.00,Revenue,29/06/2015,Childrens
WC57 - 0364,ASA AWARDS,Supplies & Services,"Equip,Furniture & Materials",60006-NEW-FURNITURE & EQUIPMENT,256.80,Revenue,15/06/2015,Economy & Environment
WC57 - 0365,ASA AWARDS,Supplies & Services,"Equip,Furniture & Materials",60500-GENERAL MATERIALS,362.60,Revenue,18/06/2015,Economy & Environment
WC57 - 0366,ASA AWARDS,Supplies & Services,"Equip,Furniture & Materials",60006-NEW-FURNITURE & EQUIPMENT,414.80,Revenue,01/06/2015,Economy & Environment
WC57 - 0367,ASDA PHARMACY,Supplies & Services,Services,63000-PROFESSIONAL FEES AND SERVICES,42.00,Revenue,15/06/2015,Economy & Environment
WC57 - 0368,ASDA PHARMACY,Supplies & Services,Services,63000-PROFESSIONAL FEES AND SERVICES,106.20,Revenue,03/06/2015,Economy & Environment
WC57 - 0369,ASDA PHARMACY,Supplies & Services,Services,63000-PROFESSIONAL FEES AND SERVICES,112.50,Revenue,15/06/2015,Economy & Environment
WC57 - 0370,ASDA PHARMACY,Supplies & Services,Services,63000-PROFESSIONAL FEES AND SERVICES,115.00,Revenue,01/06/2015,Economy & Environment
WC57 - 0371,ASDA PHARMACY,Supplies & Services,Services,63000-PROFESSIONAL FEES AND SERVICES,115.00,Revenue,15/06/2015,Economy & Environment
WC57 - 0372,ASDA PHARMACY,Supplies & Services,Services,63000-PROFESSIONAL FEES AND SERVICES,141.60,Revenue,15/06/2015,Economy & Environment
WC57 - 0373,ASDA PHARMACY,Supplies & Services,Services,63000-PROFESSIONAL FEES AND SERVICES,194.70,Revenue,01/06/2015,Economy & Environment
WC57 - 0374,ASDA PHARMACY,Third Party Payments,Joint Arrangements,71007-CONTRIBUTION TO PCT,359.09,Revenue,03/06/2015,Economy & Environment
WC57 - 0375,ASDA PHARMACY,Third Party Payments,Joint Arrangements,71007-CONTRIBUTION TO PCT,460.71,Revenue,15/06/2015,Economy & Environment
WC57 - 0376,ASH GRANGE CARE HOME,Third Party Payments,Private Contractor Fees,73373-RESIDENTIAL & NURSING CARE PLACEMENTS,278.55,Revenue,16/06/2015,Social Care & Inclusion
WC57 - 0377,ASH GRANGE CARE HOME,Third Party Payments,Private Contractor Fees,73373-RESIDENTIAL & NURSING CARE PLACEMENTS,345.99,Revenue,09/06/2015,Social Care & Inclusion
WC57 - 0378,ASH GRANGE CARE HOME,Third Party Payments,Private Contractor Fees,73373-RESIDENTIAL & NURSING CARE PLACEMENTS,365.10,Revenue,09/06/2015,Social Care & Inclusion
WC57 - 0379,ASH GRANGE CARE HOME,Third Party Payments,Private Contractor Fees,73373-RESIDENTIAL & NURSING CARE PLACEMENTS,368.11,Revenue,02/06/2015,Social Care & Inclusion
WC57 - 0380,ASH GRANGE CARE HOME,Third Party Payments,Private Contractor Fees,73373-RESIDENTIAL & NURSING CARE PLACEMENTS,488.58,Revenue,16/06/2015,Social Care & Inclusion
WC57 - 0381,ASH GRANGE CARE HOME,Third Party Payments,Private Contractor Fees,73373-RESIDENTIAL & NURSING CARE PLACEMENTS,631.05,Revenue,30/06/2015,Social Care & Inclusion
WC57 - 0382,ASH GRANGE CARE HOME,Third Party Payments,Private Contractor Fees,73373-RESIDENTIAL & NURSING CARE PLACEMENTS,736.22,Revenue,16/06/2015,Social Care & Inclusion
WC57 - 0383,ASH GRANGE CARE HOME,Third Party Payments,Private Contractor Fees,73373-RESIDENTIAL & NURSING CARE PLACEMENTS,766.02,Revenue,16/06/2015,Social Care & Inclusion
WC57 - 0384,ASH GRANGE CARE HOME,Third Party Payments,Private Contractor Fees,73373-RESIDENTIAL & NURSING CARE PLACEMENTS,818.72,Revenue,16/06/2015,Social Care & Inclusion
WC57 - 0385,ASH GRANGE CARE HOME,Third Party Payments,Private Contractor Fees,73373-RESIDENTIAL & NURSING CARE PLACEMENTS,841.39,Revenue,02/06/2015,Social Care & Inclusion
WC57 - 0386,ASH GRANGE CARE HOME,Third Party Payments,Private Contractor Fees,73373-RESIDENTIAL & NURSING CARE PLACEMENTS,"1,046.96",Revenue,09/06/2015,Social Care & Inclusion
WC57 - 0387,ASH GRANGE CARE HOME,Third Party Payments,Private Contractor Fees,73373-RESIDENTIAL & NURSING CARE PLACEMENTS,"1,104.33",Revenue,02/06/2015,Social Care & Inclusion
WC57 - 0388,ASH GRANGE CARE HOME,Third Party Payments,Private Contractor Fees,73373-RESIDENTIAL & NURSING CARE PLACEMENTS,"1,251.77",Revenue,09/06/2015,Social Care & Inclusion
WC57 - 0389,ASH GRANGE CARE HOME,Third Party Payments,Private Contractor Fees,73373-RESIDENTIAL & NURSING CARE PLACEMENTS,"1,355.09",Revenue,16/06/2015,Social Care & Inclusion
WC57 - 0390,ASH GRANGE CARE HOME,Third Party Payments,Private Contractor Fees,73373-RESIDENTIAL & NURSING CARE PLACEMENTS,"1,460.40",Revenue,09/06/2015,Social Care & Inclusion
WC57 - 0391,ASH GRANGE CARE HOME,Third Party Payments,Private Contractor Fees,73373-RESIDENTIAL & NURSING CARE PLACEMENTS,"1,472.44",Revenue,02/06/2015,Social Care & Inclusion
WC57 - 0392,ASH GRANGE CARE HOME,Third Party Payments,Private Contractor Fees,73373-RESIDENTIAL & NURSING CARE PLACEMENTS,"1,472.44",Revenue,02/06/2015,Social Care & Inclusion
WC57 - 0393,ASH GRANGE CARE HOME,Third Party Payments,Private Contractor Fees,73373-RESIDENTIAL & NURSING CARE PLACEMENTS,"1,472.44",Revenue,23/06/2015,Social Care & Inclusion
WC57 - 0394,ASH GRANGE CARE HOME,Third Party Payments,Private Contractor Fees,73373-RESIDENTIAL & NURSING CARE PLACEMENTS,"1,472.44",Revenue,23/06/2015,Social Care & Inclusion
WC57 - 0395,ASH GRANGE CARE HOME,Third Party Payments,Private Contractor Fees,73373-RESIDENTIAL & NURSING CARE PLACEMENTS,"1,472.44",Revenue,23/06/2015,Social Care & Inclusion
WC57 - 0396,ASH GRANGE CARE HOME,Third Party Payments,Private Contractor Fees,73373-RESIDENTIAL & NURSING CARE PLACEMENTS,"1,954.32",Revenue,09/06/2015,Social Care & Inclusion
WC57 - 0397,ASH GRANGE CARE HOME,Third Party Payments,Private Contractor Fees,73373-RESIDENTIAL & NURSING CARE PLACEMENTS,"1,954.32",Revenue,09/06/2015,Social Care & Inclusion
WC57 - 0398,ASH GRANGE CARE HOME,Third Party Payments,Private Contractor Fees,73373-RESIDENTIAL & NURSING CARE PLACEMENTS,"1,954.32",Revenue,09/06/2015,Social Care & Inclusion
WC57 - 0399,ASH GRANGE CARE HOME,Third Party Payments,Private Contractor Fees,73373-RESIDENTIAL & NURSING CARE PLACEMENTS,"1,954.32",Revenue,09/06/2015,Social Care & Inclusion
WC57 - 0400,ASH GRANGE CARE HOME,Third Party Payments,Private Contractor Fees,73373-RESIDENTIAL & NURSING CARE PLACEMENTS,"1,954.32",Revenue,23/06/2015,Social Care & Inclusion
WC57 - 0401,ASH GRANGE CARE HOME,Third Party Payments,Private Contractor Fees,73373-RESIDENTIAL & NURSING CARE PLACEMENTS,"1,954.32",Revenue,23/06/2015,Social Care & Inclusion
WC57 - 0402,ASH GRANGE CARE HOME,Third Party Payments,Private Contractor Fees,73373-RESIDENTIAL & NURSING CARE PLACEMENTS,"1,954.32",Revenue,23/06/2015,Social Care & Inclusion
WC57 - 0403,ASH GRANGE CARE HOME,Third Party Payments,Private Contractor Fees,73373-RESIDENTIAL & NURSING CARE PLACEMENTS,"1,954.32",Revenue,23/06/2015,Social Care & Inclusion
WC57 - 0404,ASH GRANGE CARE HOME,Third Party Payments,Private Contractor Fees,73373-RESIDENTIAL & NURSING CARE PLACEMENTS,"1,954.32",Revenue,23/06/2015,Social Care & Inclusion
WC57 - 0405,ASH GRANGE CARE HOME,Third Party Payments,Private Contractor Fees,73373-RESIDENTIAL & NURSING CARE PLACEMENTS,"1,954.32",Revenue,23/06/2015,Social Care & Inclusion
WC57 - 0406,ASH GRANGE CARE HOME,Third Party Payments,Private Contractor Fees,73373-RESIDENTIAL & NURSING CARE PLACEMENTS,"1,954.32",Revenue,23/06/2015,Social Care & Inclusion
WC57 - 0407,ASH GRANGE CARE HOME,Third Party Payments,Private Contractor Fees,73373-RESIDENTIAL & NURSING CARE PLACEMENTS,"1,954.32",Revenue,30/06/2015,Social Care & Inclusion
WC57 - 0408,ASH GRANGE CARE HOME,Third Party Payments,Private Contractor Fees,73373-RESIDENTIAL & NURSING CARE PLACEMENTS,"2,025.60",Revenue,09/06/2015,Social Care & Inclusion
WC57 - 0409,ASH GRANGE CARE HOME,Third Party Payments,Private Contractor Fees,73373-RESIDENTIAL & NURSING CARE PLACEMENTS,"2,030.04",Revenue,30/06/2015,Social Care & Inclusion
WC57 - 0410,ASH GRANGE CARE HOME,Third Party Payments,Private Contractor Fees,73373-RESIDENTIAL & NURSING CARE PLACEMENTS,"2,158.79",Revenue,09/06/2015,Social Care & Inclusion
WC57 - 0411,ASH GRANGE CARE HOME,Third Party Payments,Private Contractor Fees,73373-RESIDENTIAL & NURSING CARE PLACEMENTS,"2,470.35",Revenue,02/06/2015,Social Care & Inclusion
WC57 - 0412,ASH GRANGE CARE HOME,Third Party Payments,Private Contractor Fees,73373-RESIDENTIAL & NURSING CARE PLACEMENTS,"2,888.80",Revenue,23/06/2015,Social Care & Inclusion
WC57 - 0413,ASH GRANGE CARE HOME,Third Party Payments,Private Contractor Fees,73373-RESIDENTIAL & NURSING CARE PLACEMENTS,"3,424.50",Revenue,02/06/2015,Social Care & Inclusion
WC57 - 0414,ASH GRANGE CARE HOME,Third Party Payments,Private Contractor Fees,73019-PSE'S-PRIV CONTRACTOR FEES,"14,700.00",Revenue,01/06/2015,Social Care & Inclusion
WC57 - 0415,ASH GRANGE CARE HOME,Third Party Payments,Private Contractor Fees,73019-PSE'S-PRIV CONTRACTOR FEES,"14,700.00",Revenue,19/06/2015,Social Care & Inclusion
WC57 - 0416,ASHBOURNE LODGE,Third Party Payments,Private Contractor Fees,73373-RESIDENTIAL & NURSING CARE PLACEMENTS,"2,057.57",Revenue,02/06/2015,Social Care & Inclusion
WC57 - 0417,ASKEWS AND HOLTS LIBRARY SERVICES LTD,Supplies & Services,"Equip,Furniture & Materials",60501-LIBRARY BOOKS,257.40,Revenue,03/06/2015,Economy & Environment
WC57 - 0418,ASKEWS AND HOLTS LIBRARY SERVICES LTD,Supplies & Services,"Equip,Furniture & Materials",60501-LIBRARY BOOKS,278.48,Revenue,17/06/2015,Economy & Environment
WC57 - 0419,ASKEWS AND HOLTS LIBRARY SERVICES LTD,Supplies & Services,"Equip,Furniture & Materials",60501-LIBRARY BOOKS,285.30,Revenue,03/06/2015,Economy & Environment
WC57 - 0420,ASKEWS AND HOLTS LIBRARY SERVICES LTD,Supplies & Services,"Equip,Furniture & Materials",60501-LIBRARY BOOKS,309.54,Revenue,19/06/2015,Economy & Environment
WC57 - 0421,ASKEWS AND HOLTS LIBRARY SERVICES LTD,Supplies & Services,"Equip,Furniture & Materials",60501-LIBRARY BOOKS,349.55,Revenue,16/06/2015,Economy & Environment
WC57 - 0422,ASKEWS AND HOLTS LIBRARY SERVICES LTD,Supplies & Services,"Equip,Furniture & Materials",60501-LIBRARY BOOKS,593.33,Revenue,03/06/2015,Economy & Environment
WC57 - 0423,REDACTED,Transfer Payments,Transfer Payments,76422-DIRECT PAYMENTS TO SOCIAL SERVICES CLIENTS,616.25,Revenue,17/06/2015,Social Care & Inclusion
WC57 - 0424,ASN FIRST AID & HYGIENE LTD,Supplies & Services,"Equip,Furniture & Materials",61502-PROTECTIVE CLOTHING & UNIFORM,357.50,Revenue,02/06/2015,Social Care & Inclusion
WC57 - 0425,ASSOCIATION OF ELECTORAL ADMINISTRATORS,Employees,Training,30030-EXTERNAL TRAINING,713.00,Revenue,05/06/2015,Resources
WC57 - 0426,A-STAT OFFICE TECHNOLOGY LTD,Supplies & Services,"Printing, Stationery & Office Exp",62000-EXTERNAL PRINTING SERVICES,304.47,Revenue,12/06/2015,Childrens
WC57 - 0427,ASTON CHILDRENS CARE,Third Party Payments,Private Contractor Fees,74036-EXTERNAL RESIDENTIAL CARE-OTH AGENCY PROVISION,"10,285.50",Revenue,18/06/2015,Childrens
WC57 - 0428,ATHWAL NEWS LTD,Supplies & Services,"Equip,Furniture & Materials",60501-LIBRARY BOOKS,639.00,Revenue,15/06/2015,Economy & Environment
WC57 - 0429,AURORA GRAPHICS & DISPLAYS LTD,Supplies & Services,"Printing, Stationery & Office Exp",62008-OUTWORK-PRINT ROOM,396.00,Revenue,01/06/2015,Resources
WC57 - 0430,AURORA GRAPHICS & DISPLAYS LTD,Supplies & Services,"Printing, Stationery & Office Exp",62008-OUTWORK-PRINT ROOM,534.50,Revenue,01/06/2015,Resources
WC57 - 0431,AURORA GRAPHICS & DISPLAYS LTD,Supplies & Services,"Printing, Stationery & Office Exp",62008-OUTWORK-PRINT ROOM,995.00,Revenue,19/06/2015,Resources
WC57 - 0432,AURORA GRAPHICS & DISPLAYS LTD,Supplies & Services,"Printing, Stationery & Office Exp",62008-OUTWORK-PRINT ROOM,"1,959.10",Revenue,16/06/2015,Resources
WC57 - 0433,AUTISM WEST MIDLANDS,Third Party Payments,Private Contractor Fees,73373-RESIDENTIAL & NURSING CARE PLACEMENTS,"7,078.49",Revenue,16/06/2015,Social Care & Inclusion
WC57 - 0434,AUTISM WEST MIDLANDS,Third Party Payments,Private Contractor Fees,73373-RESIDENTIAL & NURSING CARE PLACEMENTS,"7,078.49",Revenue,23/06/2015,Social Care & Inclusion
WC57 - 0435,AUTISM WEST MIDLANDS 001,Third Party Payments,Private Contractor Fees,73373-RESIDENTIAL & NURSING CARE PLACEMENTS,"4,731.60",Revenue,16/06/2015,Social Care & Inclusion
WC57 - 0436,AVANTGARDE PHARMA LTD T/A AL-SHAFA PHARMACY,Supplies & Services,Services,63000-PROFESSIONAL FEES AND SERVICES,100.00,Revenue,03/06/2015,Economy & Environment
WC57 - 0437,AVANTGARDE PHARMA LTD T/A AL-SHAFA PHARMACY,Supplies & Services,Services,63000-PROFESSIONAL FEES AND SERVICES,105.00,Revenue,12/06/2015,Economy & Environment
WC57 - 0438,AVANTGARDE PHARMA LTD T/A AL-SHAFA PHARMACY,Third Party Payments,Joint Arrangements,71007-CONTRIBUTION TO PCT,725.66,Revenue,03/06/2015,Economy & Environment
WC57 - 0439,AVANTGARDE PHARMA LTD T/A AL-SHAFA PHARMACY,Third Party Payments,Joint Arrangements,71007-CONTRIBUTION TO PCT,725.66,Revenue,12/06/2015,Economy & Environment
WC57 - 0440,REDACTED,Transfer Payments,Transfer Payments,76422-DIRECT PAYMENTS TO SOCIAL SERVICES CLIENTS,"1,188.25",Revenue,17/06/2015,Social Care & Inclusion
WC57 - 0441,AXIELL ALM LIMITED,Supplies & Services,Communications & Computing,63809-LICENCES-COMPUTER,667.89,Revenue,10/06/2015,Economy & Environment
WC57 - 0442,REDACTED,Transfer Payments,Transfer Payments,76422-DIRECT PAYMENTS TO SOCIAL SERVICES CLIENTS,"3,315.00",Revenue,17/06/2015,Social Care & Inclusion
WC57 - 0443,B & S CHAINS LTD,Supplies & Services,"Equip,Furniture & Materials",60500-GENERAL MATERIALS,495.00,Revenue,29/06/2015,Economy & Environment
WC57 - 0444,REDACTED,Supplies & Services,Other Supplies & Services,62515-MISCELLANEOUS SUPPLIES,983.70,Revenue,22/06/2015,Childrens
WC57 - 0445,REDACTED,Third Party Payments,Private Contractor Fees,74006-HOLIDAY/CHRISTMAS ALLOWANCE-FOSTER CARERS-OTH AGENCY PROVISION,"1,271.87",Revenue,22/06/2015,Childrens
WC57 - 0446,REDACTED,Supplies & Services,Other Supplies & Services,62515-MISCELLANEOUS SUPPLIES,"1,445.32",Revenue,22/06/2015,Childrens
WC57 - 0447,REDACTED,Third Party Payments,Private Contractor Fees,74006-HOLIDAY/CHRISTMAS ALLOWANCE-FOSTER CARERS-OTH AGENCY PROVISION,"1,971.52",Revenue,22/06/2015,Childrens
WC57 - 0448,BAAF,Supplies & Services,Communications & Computing,68001-PUBLICITY & ADVERTISING (NOT STAFF ADVERTISING),371.45,Revenue,03/06/2015,Childrens
WC57 - 0449,BAAF,Supplies & Services,Communications & Computing,68001-PUBLICITY & ADVERTISING (NOT STAFF ADVERTISING),"1,008.00",Revenue,22/06/2015,Childrens
WC57 - 0450,BABCOCK 4S LTD,Employees,Training,30030-EXTERNAL TRAINING,720.00,Revenue,26/06/2015,Resources
WC57 - 0451,REDACTED,Transfer Payments,Transfer Payments,76422-DIRECT PAYMENTS TO SOCIAL SERVICES CLIENTS,"1,079.00",Revenue,17/06/2015,Social Care & Inclusion
WC57 - 0452,BACHES SOLICITORS,Third Party Payments,Private Contractor Fees,73014-LEGAL FEES-PRIV CONTRACTOR FEES,657.92,Revenue,05/06/2015,Childrens
WC57 - 0453,BACK CARE SOLUTIONS LTD,Supplies & Services,"Equip,Furniture & Materials",60006-NEW-FURNITURE & EQUIPMENT,394.00,Revenue,03/06/2015,Social Care & Inclusion
WC57 - 0454,BAHIA PROPERTIES,Premises,Rent,43000-RENTS,"3,000.00",Revenue,23/06/2015,Economy & Environment
WC57 - 0455,BAKER & CO,Third Party Payments,Private Contractor Fees,73014-LEGAL FEES-PRIV CONTRACTOR FEES,250.00,Revenue,01/06/2015,Childrens
WC57 - 0456,REDACTED,Transfer Payments,Transfer Payments,76422-DIRECT PAYMENTS TO SOCIAL SERVICES CLIENTS,"3,562.40",Revenue,17/06/2015,Social Care & Inclusion
WC57 - 0457,REDACTED,Transfer Payments,Transfer Payments,76422-DIRECT PAYMENTS TO SOCIAL SERVICES CLIENTS,775.00,Revenue,17/06/2015,Social Care & Inclusion
WC57 - 0458,REDACTED,Transfer Payments,Transfer Payments,76422-DIRECT PAYMENTS TO SOCIAL SERVICES CLIENTS,"1,610.00",Revenue,17/06/2015,Social Care & Inclusion
WC57 - 0459,REDACTED,Transfer Payments,Transfer Payments,76422-DIRECT PAYMENTS TO SOCIAL SERVICES CLIENTS,"1,643.60",Revenue,17/06/2015,Social Care & Inclusion
WC57 - 0460,REDACTED,Transfer Payments,Transfer Payments,76422-DIRECT PAYMENTS TO SOCIAL SERVICES CLIENTS,"1,600.00",Revenue,17/06/2015,Social Care & Inclusion
WC57 - 0461,REDACTED,Transfer Payments,Transfer Payments,76422-DIRECT PAYMENTS TO SOCIAL SERVICES CLIENTS,790.65,Revenue,17/06/2015,Social Care & Inclusion
WC57 - 0462,BARNARDOS SERVICES LTD,Third Party Payments,Private Contractor Fees,74037-INDEPENDENT FOSTER CARE-OTH AGENCY PROVISION,"4,478.57",Revenue,15/06/2015,Childrens
WC57 - 0463,BARNARDOS SERVICES LTD,Supplies & Services,Services,63000-PROFESSIONAL FEES AND SERVICES,"4,884.00",Revenue,18/06/2015,Childrens
WC57 - 0464,BARNARDOS SERVICES LTD,Third Party Payments,Private Contractor Fees,74000-OTHER AGENCY FEES,"9,000.00",Revenue,02/06/2015,Childrens
WC57 - 0465,REDACTED,Supplies & Services,Other Supplies & Services,62515-MISCELLANEOUS SUPPLIES,925.00,Revenue,22/06/2015,Childrens
WC57 - 0466,REDACTED,Third Party Payments,Private Contractor Fees,74006-HOLIDAY/CHRISTMAS ALLOWANCE-FOSTER CARERS-OTH AGENCY PROVISION,"1,255.35",Revenue,22/06/2015,Childrens
WC57 - 0467,BEARWOOD NURSING HOME LTD,Third Party Payments,Private Contractor Fees,73373-RESIDENTIAL & NURSING CARE PLACEMENTS,"1,494.00",Revenue,30/06/2015,Social Care & Inclusion
WC57 - 0468,REDACTED,Transfer Payments,Transfer Payments,76422-DIRECT PAYMENTS TO SOCIAL SERVICES CLIENTS,802.20,Revenue,17/06/2015,Social Care & Inclusion
WC57 - 0469,BEE TEE ALARMS LTD,Supplies & Services,"Equip,Furniture & Materials",60500-GENERAL MATERIALS,667.05,Revenue,10/06/2015,Economy & Environment
WC57 - 0470,REDACTED,Supplies & Services,Other Supplies & Services,62515-MISCELLANEOUS SUPPLIES,354.48,Revenue,22/06/2015,Childrens
WC57 - 0471,BELLEVUE COURT CARE HOME,Third Party Payments,Private Contractor Fees,73373-RESIDENTIAL & NURSING CARE PLACEMENTS,"1,499.24",Revenue,30/06/2015,Social Care & Inclusion
WC57 - 0472,BELLEVUE COURT CARE HOME,Third Party Payments,Private Contractor Fees,73373-RESIDENTIAL & NURSING CARE PLACEMENTS,"1,506.32",Revenue,02/06/2015,Social Care & Inclusion
WC57 - 0473,BELLEVUE COURT CARE HOME,Third Party Payments,Private Contractor Fees,73373-RESIDENTIAL & NURSING CARE PLACEMENTS,"1,506.32",Revenue,23/06/2015,Social Care & Inclusion
WC57 - 0474,BELLEVUE COURT CARE HOME,Third Party Payments,Private Contractor Fees,73373-RESIDENTIAL & NURSING CARE PLACEMENTS,"1,542.80",Revenue,23/06/2015,Social Care & Inclusion
WC57 - 0475,REDACTED,Transfer Payments,Transfer Payments,76422-DIRECT PAYMENTS TO SOCIAL SERVICES CLIENTS,"2,756.25",Revenue,17/06/2015,Social Care & Inclusion
WC57 - 0476,BENTLEY COURT PRIORY,Third Party Payments,Private Contractor Fees,73373-RESIDENTIAL & NURSING CARE PLACEMENTS,"2,150.08",Revenue,16/06/2015,Social Care & Inclusion
WC57 - 0477,BENTLEY WEST J M I,Supplies & Services,Other Supplies & Services,63128-HIRE OF ROOM-SERVICES-FEES,"1,312.00",Revenue,04/06/2015,Childrens
WC57 - 0478,BENTLEY WEST J M I,Supplies & Services,Other Supplies & Services,63128-HIRE OF ROOM-SERVICES-FEES,"4,375.00",Revenue,04/06/2015,Childrens
WC57 - 0479,REDACTED,Transfer Payments,Transfer Payments,76422-DIRECT PAYMENTS TO SOCIAL SERVICES CLIENTS,530.70,Revenue,17/06/2015,Social Care & Inclusion
WC57 - 0480,REDACTED,Transfer Payments,Transfer Payments,76422-DIRECT PAYMENTS TO SOCIAL SERVICES CLIENTS,"1,140.00",Revenue,17/06/2015,Social Care & Inclusion
WC57 - 0481,REDACTED,Supplies & Services,Other Supplies & Services,62515-MISCELLANEOUS SUPPLIES,"1,045.32",Revenue,22/06/2015,Childrens
WC57 - 0482,REDACTED,Third Party Payments,Private Contractor Fees,74006-HOLIDAY/CHRISTMAS ALLOWANCE-FOSTER CARERS-OTH AGENCY PROVISION,"1,142.88",Revenue,22/06/2015,Childrens
WC57 - 0483,REDACTED,Transfer Payments,Transfer Payments,76422-DIRECT PAYMENTS TO SOCIAL SERVICES CLIENTS,"1,210.00",Revenue,17/06/2015,Social Care & Inclusion
WC57 - 0484,BESCOT LODGE RESIDENTIAL CARE HOME,Third Party Payments,Private Contractor Fees,73373-RESIDENTIAL & NURSING CARE PLACEMENTS,"-1,698.49",Revenue,16/06/2015,Social Care & Inclusion
WC57 - 0485,BESCOT LODGE RESIDENTIAL CARE HOME,Third Party Payments,Private Contractor Fees,73373-RESIDENTIAL & NURSING CARE PLACEMENTS,"1,460.40",Revenue,16/06/2015,Social Care & Inclusion
WC57 - 0486,BESCOT LODGE RESIDENTIAL CARE HOME,Third Party Payments,Private Contractor Fees,73373-RESIDENTIAL & NURSING CARE PLACEMENTS,"1,564.71",Revenue,16/06/2015,Social Care & Inclusion
WC57 - 0487,BESCOT LODGE RESIDENTIAL CARE HOME,Third Party Payments,Private Contractor Fees,73373-RESIDENTIAL & NURSING CARE PLACEMENTS,"1,643.70",Revenue,16/06/2015,Social Care & Inclusion
WC57 - 0488,BESCOT LODGE RESIDENTIAL CARE HOME,Third Party Payments,Private Contractor Fees,73373-RESIDENTIAL & NURSING CARE PLACEMENTS,"1,643.70",Revenue,16/06/2015,Social Care & Inclusion
WC57 - 0489,BESCOT LODGE RESIDENTIAL CARE HOME,Third Party Payments,Private Contractor Fees,73373-RESIDENTIAL & NURSING CARE PLACEMENTS,"1,643.70",Revenue,16/06/2015,Social Care & Inclusion
WC57 - 0490,BESCOT LODGE RESIDENTIAL CARE HOME,Third Party Payments,Private Contractor Fees,73373-RESIDENTIAL & NURSING CARE PLACEMENTS,"1,643.70",Revenue,16/06/2015,Social Care & Inclusion
WC57 - 0491,BESCOT LODGE RESIDENTIAL CARE HOME,Third Party Payments,Private Contractor Fees,73373-RESIDENTIAL & NURSING CARE PLACEMENTS,"1,643.70",Revenue,16/06/2015,Social Care & Inclusion
WC57 - 0492,BESCOT LODGE RESIDENTIAL CARE HOME,Third Party Payments,Private Contractor Fees,73373-RESIDENTIAL & NURSING CARE PLACEMENTS,"1,643.70",Revenue,16/06/2015,Social Care & Inclusion
WC57 - 0493,BESCOT LODGE RESIDENTIAL CARE HOME,Third Party Payments,Private Contractor Fees,73373-RESIDENTIAL & NURSING CARE PLACEMENTS,"1,661.27",Revenue,16/06/2015,Social Care & Inclusion
WC57 - 0494,BESCOT LODGE RESIDENTIAL CARE HOME,Third Party Payments,Private Contractor Fees,73373-RESIDENTIAL & NURSING CARE PLACEMENTS,"1,661.36",Revenue,16/06/2015,Social Care & Inclusion
WC57 - 0495,BESCOT LODGE RESIDENTIAL CARE HOME,Third Party Payments,Private Contractor Fees,73373-RESIDENTIAL & NURSING CARE PLACEMENTS,"1,698.49",Revenue,09/06/2015,Social Care & Inclusion
WC57 - 0496,BESCOT PROMOTIONS,Third Party Payments,Private Contractor Fees,73025-PROFESSIONAL SERVICES-PRIV CONTRACTOR & OTHER AGENCIES,"2,600.00",Revenue,02/06/2015,Economy & Environment
WC57 - 0497,BESWICK HOUSE SUPPORTED ACCOMMODATION LTD,Third Party Payments,Private Contractor Fees,73365-BLOCK GROSS-SUPPORTING PEOPLE,"15,045.79",Revenue,03/06/2015,Social Care & Inclusion
WC57 - 0498,REDACTED,Transfer Payments,Transfer Payments,76422-DIRECT PAYMENTS TO SOCIAL SERVICES CLIENTS,"1,186.90",Revenue,17/06/2015,Social Care & Inclusion
WC57 - 0499,REDACTED,Transfer Payments,Transfer Payments,76422-DIRECT PAYMENTS TO SOCIAL SERVICES CLIENTS,"2,480.88",Revenue,17/06/2015,Social Care & Inclusion
WC57 - 0500,BEVAN BRITTAN,Third Party Payments,Private Contractor Fees,73014-LEGAL FEES-PRIV CONTRACTOR FEES,"107,810.60",Revenue,24/06/2015,Economy & Environment
WC57 - 0501,BFA SAFETY TRAINING,Employees,Training,30030-EXTERNAL TRAINING,595.00,Revenue,26/06/2015,Resources
WC57 - 0502,BIFFA WASTE SERVICES LTD,Third Party Payments,Private Contractor Fees,73005-LANDFILL PTYS-PRIV CONTRACTOR FEES,600.64,Revenue,12/06/2015,Economy & Environment
WC57 - 0503,BIFFA WASTE SERVICES LTD,Third Party Payments,Private Contractor Fees,73005-LANDFILL PTYS-PRIV CONTRACTOR FEES,"1,031.67",Revenue,12/06/2015,Economy & Environment
WC57 - 0504,BIFFA WASTE SERVICES LTD,Third Party Payments,Private Contractor Fees,73005-LANDFILL PTYS-PRIV CONTRACTOR FEES,"1,071.37",Revenue,29/06/2015,Economy & Environment
WC57 - 0505,BIFFA WASTE SERVICES LTD,Third Party Payments,Private Contractor Fees,73005-LANDFILL PTYS-PRIV CONTRACTOR FEES,"1,596.34",Revenue,18/06/2015,Economy & Environment
WC57 - 0506,BIFFA WASTE SERVICES LTD,Third Party Payments,Private Contractor Fees,73005-LANDFILL PTYS-PRIV CONTRACTOR FEES,"1,655.61",Revenue,01/06/2015,Economy & Environment
WC57 - 0507,BIFFA WASTE SERVICES LTD,Third Party Payments,Private Contractor Fees,73039-LANDFILL TAX-PRIV CONTRACTOR FEES,"3,750.04",Revenue,12/06/2015,Economy & Environment
WC57 - 0508,BIFFA WASTE SERVICES LTD,Third Party Payments,Private Contractor Fees,73039-LANDFILL TAX-PRIV CONTRACTOR FEES,"6,441.15",Revenue,12/06/2015,Economy & Environment
WC57 - 0509,BIFFA WASTE SERVICES LTD,Third Party Payments,Private Contractor Fees,73039-LANDFILL TAX-PRIV CONTRACTOR FEES,"6,688.94",Revenue,29/06/2015,Economy & Environment
WC57 - 0510,BIFFA WASTE SERVICES LTD,Third Party Payments,Private Contractor Fees,73039-LANDFILL TAX-PRIV CONTRACTOR FEES,"9,966.51",Revenue,18/06/2015,Economy & Environment
WC57 - 0511,BIFFA WASTE SERVICES LTD,Third Party Payments,Private Contractor Fees,73039-LANDFILL TAX-PRIV CONTRACTOR FEES,"10,336.56",Revenue,01/06/2015,Economy & Environment
WC57 - 0512,REDACTED,Transfer Payments,Transfer Payments,76422-DIRECT PAYMENTS TO SOCIAL SERVICES CLIENTS,609.65,Revenue,17/06/2015,Childrens
WC57 - 0513,REDACTED,Transfer Payments,Transfer Payments,76422-DIRECT PAYMENTS TO SOCIAL SERVICES CLIENTS,671.50,Revenue,17/06/2015,Childrens
WC57 - 0514,BIOGAS TECHNOLOGY LIMITED,Supplies & Services,"Equip,Furniture & Materials",60008-MAINTENANCE-FURNITURE & EQUIPMENT,349.50,Revenue,03/06/2015,Economy & Environment
WC57 - 0515,BIRCHILLS C OF E COMMUNITY ACADEMY,Transfer Payments,Transfer Payments,77300-ISB-FORMULA ALLOCATION,"1,312.50",Revenue,08/06/2015,Childrens
WC57 - 0516,BIRCHILLS C OF E COMMUNITY ACADEMY,Transfer Payments,Transfer Payments,77300-ISB-FORMULA ALLOCATION,"1,400.00",Revenue,19/06/2015,Childrens
WC57 - 0517,BIRCHILLS C OF E COMMUNITY ACADEMY,Third Party Payments,Grants to Other Orgs,66505-OTHER-GRANTS TO OTHER ORGS,"8,234.59",Revenue,02/06/2015,Childrens
WC57 - 0518,BIRMINGHAM CITY COUNCIL,Third Party Payments,Grants to Other Orgs,66502-TOP UP FUNDING -GRANTS TO SCHOOLS,"127,160.00",Revenue,03/06/2015,Childrens
WC57 - 0519,BLACK COUNTRY CONSORTIUM LIMITED,Third Party Payments,Grants to Other Orgs,66500-GRANTS TO OTHER ORGS,"97,537.35",Revenue,11/06/2015,Economy & Environment
WC57 - 0520,BLACK COUNTRY CONSORTIUM LIMITED,Supplies & Services,Services,63000-PROFESSIONAL FEES AND SERVICES,"114,036.90",Revenue,11/06/2015,Economy & Environment
WC57 - 0521,BLACK COUNTRY PARTNERSHIP NHS,Third Party Payments,Joint Arrangements,71007-CONTRIBUTION TO PCT,"264,038.00",Revenue,26/06/2015,Social Care & Inclusion
WC57 - 0522,BLACK COUNTRY PARTNERSHIP NHS,Third Party Payments,Joint Arrangements,71007-CONTRIBUTION TO PCT,"264,038.00",Revenue,26/06/2015,Social Care & Inclusion
WC57 - 0523,BLACK COUNTRY TOURING,Supplies & Services,Services,63000-PROFESSIONAL FEES AND SERVICES,"1,000.00",Revenue,15/06/2015,Economy & Environment
WC57 - 0524,BLAKELEY HEATH PRIMARY SCHOOL,Transfer Payments,Transfer Payments,77300-ISB-FORMULA ALLOCATION,"1,000.00",Revenue,08/06/2015,Childrens
WC57 - 0525,BLAKENALL HEATH JMI SCHOOL,Transfer Payments,Transfer Payments,77200-TRANSFER PAYMENTS-OTHER SCHOOLCHILDREN/STUDENT RELATED ITEMS,"3,746.00",Revenue,19/06/2015,Childrens
WC57 - 0526,BLAKENALL HEATH JMI SCHOOL,Transfer Payments,Transfer Payments,77300-ISB-FORMULA ALLOCATION,"88,933.93",Revenue,16/06/2015,Childrens
WC57 - 0527,BLINFORDGRAPHICS LTD,Supplies & Services,Other Supplies & Services,62515-MISCELLANEOUS SUPPLIES,312.50,Revenue,22/06/2015,Resources
WC57 - 0528,BLOXWICH COMMUNITY PARTNERSHIP.,Third Party Payments,Grants to Other Orgs,66500-GRANTS TO OTHER ORGS,"9,999.99",Revenue,15/06/2015,Resources
WC57 - 0529,BNP PARIBAS LEASE GROUP,Supplies & Services,"Equip,Furniture & Materials",60009-LEASING/HIRE/RENTAL-EQUIPMENT,479.74,Revenue,01/06/2015,Social Care & Inclusion
WC57 - 0530,BOLDMERE COURT CARE HOME,Third Party Payments,Private Contractor Fees,73373-RESIDENTIAL & NURSING CARE PLACEMENTS,"1,494.00",Revenue,02/06/2015,Social Care & Inclusion
WC57 - 0531,BOOTS UK LIMITED,Supplies & Services,Services,63000-PROFESSIONAL FEES AND SERVICES,296.00,Revenue,17/06/2015,Economy & Environment
WC57 - 0532,BOOTS UK LIMITED,Supplies & Services,Services,63000-PROFESSIONAL FEES AND SERVICES,391.00,Revenue,17/06/2015,Economy & Environment
WC57 - 0533,BOULTON TRAVEL LIMITED,Transport,Hire,52000-WITH DRIVER-HIRE OF VEHICLES,"1,695.00",Revenue,15/06/2015,Childrens
WC57 - 0534,BOULTON TRAVEL LIMITED,Transport,Hire,52000-WITH DRIVER-HIRE OF VEHICLES,"1,778.00",Revenue,15/06/2015,Childrens
WC57 - 0535,BOWDEN DERRA PARK,Third Party Payments,Private Contractor Fees,73373-RESIDENTIAL & NURSING CARE PLACEMENTS,"10,271.64",Revenue,02/06/2015,Social Care & Inclusion
WC57 - 0536,BRADVALE LTD T/A INSPIRE HEALTHCARE SERVICES,Supplies & Services,"Equip,Furniture & Materials",60520-HEALTH & SAFETY-MATERIALS,414.57,Revenue,02/06/2015,Economy & Environment
WC57 - 0537,BRELMAYNE LTD,Premises,Premises-Repairs & Maintenance,"40000-REPAIRS,ALTERATIONS & MAINTENANCE-PREM",267.34,Revenue,01/06/2015,Economy & Environment
WC57 - 0538,BRELMAYNE LTD,Capital,Capital,01008-SITE WORKS DLO,271.33,Capital,03/06/2015,Economy & Environment
WC57 - 0539,BRELMAYNE LTD,Premises,Premises-Repairs & Maintenance,"40000-REPAIRS,ALTERATIONS & MAINTENANCE-PREM",287.20,Revenue,09/06/2015,Economy & Environment
WC57 - 0540,BRELMAYNE LTD,Capital,Capital,01006-SITE WORKS MAIN CONTRACTORS,288.52,Capital,03/06/2015,Economy & Environment
WC57 - 0541,BRELMAYNE LTD,Third Party Payments,Private Contractor Fees,73025-PROFESSIONAL SERVICES-PRIV CONTRACTOR & OTHER AGENCIES,294.42,Revenue,01/06/2015,Economy & Environment
WC57 - 0542,BRELMAYNE LTD,Capital,Capital,01006-SITE WORKS MAIN CONTRACTORS,352.89,Capital,01/06/2015,Economy & Environment
WC57 - 0543,BRELMAYNE LTD,Third Party Payments,Private Contractor Fees,73025-PROFESSIONAL SERVICES-PRIV CONTRACTOR & OTHER AGENCIES,394.35,Revenue,03/06/2015,Economy & Environment
WC57 - 0544,BRELMAYNE LTD,Capital,Capital,01006-SITE WORKS MAIN CONTRACTORS,406.92,Capital,03/06/2015,Economy & Environment
WC57 - 0545,BRELMAYNE LTD,Capital,Capital,01006-SITE WORKS MAIN CONTRACTORS,408.75,Capital,19/06/2015,Economy & Environment
WC57 - 0546,BRELMAYNE LTD,Third Party Payments,Private Contractor Fees,73025-PROFESSIONAL SERVICES-PRIV CONTRACTOR & OTHER AGENCIES,413.81,Revenue,15/06/2015,Economy & Environment
WC57 - 0547,BRELMAYNE LTD,Third Party Payments,Private Contractor Fees,73025-PROFESSIONAL SERVICES-PRIV CONTRACTOR & OTHER AGENCIES,426.99,Revenue,01/06/2015,Economy & Environment
WC57 - 0548,BRELMAYNE LTD,Supplies & Services,"Equip,Furniture & Materials",60008-MAINTENANCE-FURNITURE & EQUIPMENT,441.16,Revenue,22/06/2015,Economy & Environment
WC57 - 0549,BRELMAYNE LTD,Third Party Payments,Private Contractor Fees,73025-PROFESSIONAL SERVICES-PRIV CONTRACTOR & OTHER AGENCIES,477.36,Revenue,15/06/2015,Economy & Environment
WC57 - 0550,BRELMAYNE LTD,Premises,Premises-Repairs & Maintenance,"40000-REPAIRS,ALTERATIONS & MAINTENANCE-PREM",481.98,Revenue,29/06/2015,Economy & Environment
WC57 - 0551,BRELMAYNE LTD,Third Party Payments,Private Contractor Fees,73025-PROFESSIONAL SERVICES-PRIV CONTRACTOR & OTHER AGENCIES,482.71,Revenue,01/06/2015,Economy & Environment
WC57 - 0552,BRELMAYNE LTD,Third Party Payments,Private Contractor Fees,73025-PROFESSIONAL SERVICES-PRIV CONTRACTOR & OTHER AGENCIES,519.35,Revenue,01/06/2015,Economy & Environment
WC57 - 0553,BRELMAYNE LTD,Third Party Payments,Private Contractor Fees,73025-PROFESSIONAL SERVICES-PRIV CONTRACTOR & OTHER AGENCIES,531.64,Revenue,01/06/2015,Economy & Environment
WC57 - 0554,BRELMAYNE LTD,Third Party Payments,Private Contractor Fees,73025-PROFESSIONAL SERVICES-PRIV CONTRACTOR & OTHER AGENCIES,561.70,Revenue,01/06/2015,Economy & Environment
WC57 - 0555,BRELMAYNE LTD,Third Party Payments,Private Contractor Fees,73025-PROFESSIONAL SERVICES-PRIV CONTRACTOR & OTHER AGENCIES,601.35,Revenue,01/06/2015,Economy & Environment
WC57 - 0556,BRELMAYNE LTD,Third Party Payments,Private Contractor Fees,73025-PROFESSIONAL SERVICES-PRIV CONTRACTOR & OTHER AGENCIES,620.60,Revenue,15/06/2015,Economy & Environment
WC57 - 0557,BRELMAYNE LTD,Third Party Payments,Private Contractor Fees,73025-PROFESSIONAL SERVICES-PRIV CONTRACTOR & OTHER AGENCIES,775.74,Revenue,03/06/2015,Economy & Environment
WC57 - 0558,BRELMAYNE LTD,Premises,Premises-Repairs & Maintenance,"40000-REPAIRS,ALTERATIONS & MAINTENANCE-PREM",898.80,Revenue,01/06/2015,Economy & Environment
WC57 - 0559,BRELMAYNE LTD,Capital,Capital,01006-SITE WORKS MAIN CONTRACTORS,"1,122.00",Capital,15/06/2015,Economy & Environment
WC57 - 0560,BRELMAYNE LTD,Third Party Payments,Private Contractor Fees,73025-PROFESSIONAL SERVICES-PRIV CONTRACTOR & OTHER AGENCIES,"1,124.06",Revenue,15/06/2015,Economy & Environment
WC57 - 0561,BRELMAYNE LTD,Capital,Capital,01006-SITE WORKS MAIN CONTRACTORS,"1,406.73",Capital,29/06/2015,Economy & Environment
WC57 - 0562,BRELMAYNE LTD,Third Party Payments,Private Contractor Fees,73025-PROFESSIONAL SERVICES-PRIV CONTRACTOR & OTHER AGENCIES,"1,534.22",Revenue,01/06/2015,Economy & Environment
WC57 - 0563,REDACTED,Transfer Payments,Transfer Payments,76422-DIRECT PAYMENTS TO SOCIAL SERVICES CLIENTS,550.00,Revenue,17/06/2015,Social Care & Inclusion
WC57 - 0564,REDACTED,Transfer Payments,Transfer Payments,76422-DIRECT PAYMENTS TO SOCIAL SERVICES CLIENTS,271.25,Revenue,17/06/2015,Social Care & Inclusion
WC57 - 0565,REDACTED,Supplies & Services,Other Supplies & Services,62515-MISCELLANEOUS SUPPLIES,"1,445.32",Revenue,22/06/2015,Childrens
WC57 - 0566,REDACTED,Third Party Payments,Private Contractor Fees,74006-HOLIDAY/CHRISTMAS ALLOWANCE-FOSTER CARERS-OTH AGENCY PROVISION,"1,464.58",Revenue,22/06/2015,Childrens
WC57 - 0567,REDACTED,Transfer Payments,Transfer Payments,76422-DIRECT PAYMENTS TO SOCIAL SERVICES CLIENTS,680.00,Revenue,17/06/2015,Social Care & Inclusion
WC57 - 0568,REDACTED,Third Party Payments,Private Contractor Fees,73374-SUPPORTED & OTHER ACCOMMODATION,"2,935.24",Revenue,15/06/2015,Social Care & Inclusion
WC57 - 0569,REDACTED,Transfer Payments,Transfer Payments,76422-DIRECT PAYMENTS TO SOCIAL SERVICES CLIENTS,616.50,Revenue,17/06/2015,Social Care & Inclusion
WC57 - 0570,REDACTED,Transfer Payments,Transfer Payments,76422-DIRECT PAYMENTS TO SOCIAL SERVICES CLIENTS,"1,618.50",Revenue,17/06/2015,Social Care & Inclusion
WC57 - 0571,REDACTED,Transfer Payments,Transfer Payments,76422-DIRECT PAYMENTS TO SOCIAL SERVICES CLIENTS,871.25,Revenue,17/06/2015,Social Care & Inclusion
WC57 - 0572,BRIDGEWOOD HEALTH CARE LTD,Third Party Payments,Private Contractor Fees,73373-RESIDENTIAL & NURSING CARE PLACEMENTS,"5,392.40",Revenue,30/06/2015,Social Care & Inclusion
WC57 - 0573,BRIGHT BOOKS,Supplies & Services,"Equip,Furniture & Materials",60501-LIBRARY BOOKS,"2,909.85",Revenue,02/06/2015,Economy & Environment
WC57 - 0574,BRISTOL OILSKIN & OVERALL CO,Transport,Other Transport,55001-CARRIAGE-OUT,18.55,Revenue,01/06/2015,Economy & Environment
WC57 - 0575,BRISTOL OILSKIN & OVERALL CO,Supplies & Services,"Equip,Furniture & Materials",60006-NEW-FURNITURE & EQUIPMENT,867.75,Revenue,01/06/2015,Economy & Environment
WC57 - 0576,BRITANNIA APPRENTICESHIPS LTD,Third Party Payments,Grants to Other Orgs,65500-GRANTS TO ASSOCIATIONS,"2,840.62",Revenue,10/06/2015,Resources
WC57 - 0577,BRITISH GAS BUSINESS,Premises,Utilities,42001-GAS METERED-ENERGY COSTS,273.53,Revenue,18/06/2015,Childrens
WC57 - 0578,BRITISH GAS BUSINESS,Premises,Utilities,42000-GAS-ENERGY COSTS,291.52,Revenue,19/06/2015,Childrens
WC57 - 0579,BRITISH GAS BUSINESS,Premises,Utilities,42000-GAS-ENERGY COSTS,394.62,Revenue,19/06/2015,Childrens
WC57 - 0580,BRITISH GAS BUSINESS,Premises,Utilities,42000-GAS-ENERGY COSTS,464.92,Revenue,01/06/2015,Childrens
WC57 - 0581,BRITISH GAS BUSINESS,Premises,Utilities,45000-WATER CHARGES,"1,088.78",Revenue,15/06/2015,Economy & Environment
WC57 - 0582,BRITISH GAS BUSINESS,Premises,Utilities,42000-GAS-ENERGY COSTS,"2,317.32",Revenue,22/06/2015,Economy & Environment
WC57 - 0583,BRITISH HGV TRAINING GROUP,Employees,Training,30030-EXTERNAL TRAINING,400.00,Revenue,12/06/2015,Economy & Environment
WC57 - 0584,BROADOAK CARE,Third Party Payments,Private Contractor Fees,73373-RESIDENTIAL & NURSING CARE PLACEMENTS,0.12,Revenue,30/06/2015,Social Care & Inclusion
WC57 - 0585,BROADOAK CARE,Third Party Payments,Private Contractor Fees,73373-RESIDENTIAL & NURSING CARE PLACEMENTS,712.27,Revenue,09/06/2015,Social Care & Inclusion
WC57 - 0586,BROADOAK CARE,Third Party Payments,Private Contractor Fees,73373-RESIDENTIAL & NURSING CARE PLACEMENTS,"1,458.16",Revenue,02/06/2015,Social Care & Inclusion
WC57 - 0587,BROADOAK CARE,Third Party Payments,Private Contractor Fees,73373-RESIDENTIAL & NURSING CARE PLACEMENTS,"1,458.16",Revenue,02/06/2015,Social Care & Inclusion
WC57 - 0588,BROADOAK CARE,Third Party Payments,Private Contractor Fees,73373-RESIDENTIAL & NURSING CARE PLACEMENTS,"1,458.16",Revenue,02/06/2015,Social Care & Inclusion
WC57 - 0589,BROADOAK CARE,Third Party Payments,Private Contractor Fees,73373-RESIDENTIAL & NURSING CARE PLACEMENTS,"1,458.16",Revenue,30/06/2015,Social Care & Inclusion
WC57 - 0590,BROADOAK CARE,Third Party Payments,Private Contractor Fees,73373-RESIDENTIAL & NURSING CARE PLACEMENTS,"1,458.16",Revenue,30/06/2015,Social Care & Inclusion
WC57 - 0591,BROADOAK CARE,Third Party Payments,Private Contractor Fees,73373-RESIDENTIAL & NURSING CARE PLACEMENTS,"1,534.08",Revenue,02/06/2015,Social Care & Inclusion
WC57 - 0592,BROADOAK CARE,Third Party Payments,Private Contractor Fees,73373-RESIDENTIAL & NURSING CARE PLACEMENTS,"1,534.08",Revenue,02/06/2015,Social Care & Inclusion
WC57 - 0593,BROADOAK CARE,Third Party Payments,Private Contractor Fees,73373-RESIDENTIAL & NURSING CARE PLACEMENTS,"1,534.08",Revenue,02/06/2015,Social Care & Inclusion
WC57 - 0594,BROADOAK CARE,Third Party Payments,Private Contractor Fees,73373-RESIDENTIAL & NURSING CARE PLACEMENTS,"1,534.08",Revenue,02/06/2015,Social Care & Inclusion
WC57 - 0595,BROADOAK CARE,Third Party Payments,Private Contractor Fees,73373-RESIDENTIAL & NURSING CARE PLACEMENTS,"1,534.08",Revenue,02/06/2015,Social Care & Inclusion
WC57 - 0596,BROADOAK CARE,Third Party Payments,Private Contractor Fees,73373-RESIDENTIAL & NURSING CARE PLACEMENTS,"1,534.08",Revenue,02/06/2015,Social Care & Inclusion
WC57 - 0597,BROADOAK CARE,Third Party Payments,Private Contractor Fees,73373-RESIDENTIAL & NURSING CARE PLACEMENTS,"1,534.08",Revenue,02/06/2015,Social Care & Inclusion
WC57 - 0598,BROADOAK CARE,Third Party Payments,Private Contractor Fees,73373-RESIDENTIAL & NURSING CARE PLACEMENTS,"1,534.08",Revenue,02/06/2015,Social Care & Inclusion
WC57 - 0599,BROADOAK CARE,Third Party Payments,Private Contractor Fees,73373-RESIDENTIAL & NURSING CARE PLACEMENTS,"1,534.08",Revenue,02/06/2015,Social Care & Inclusion
WC57 - 0600,BROADOAK CARE,Third Party Payments,Private Contractor Fees,73373-RESIDENTIAL & NURSING CARE PLACEMENTS,"1,534.08",Revenue,02/06/2015,Social Care & Inclusion
WC57 - 0601,BROADOAK CARE,Third Party Payments,Private Contractor Fees,73373-RESIDENTIAL & NURSING CARE PLACEMENTS,"1,534.08",Revenue,02/06/2015,Social Care & Inclusion
WC57 - 0602,BROADOAK CARE,Third Party Payments,Private Contractor Fees,73373-RESIDENTIAL & NURSING CARE PLACEMENTS,"1,534.08",Revenue,02/06/2015,Social Care & Inclusion
WC57 - 0603,BROADOAK CARE,Third Party Payments,Private Contractor Fees,73373-RESIDENTIAL & NURSING CARE PLACEMENTS,"1,534.08",Revenue,02/06/2015,Social Care & Inclusion
WC57 - 0604,BROADOAK CARE,Third Party Payments,Private Contractor Fees,73373-RESIDENTIAL & NURSING CARE PLACEMENTS,"1,534.08",Revenue,02/06/2015,Social Care & Inclusion
WC57 - 0605,BROADOAK CARE,Third Party Payments,Private Contractor Fees,73373-RESIDENTIAL & NURSING CARE PLACEMENTS,"1,534.08",Revenue,02/06/2015,Social Care & Inclusion
WC57 - 0606,BROADOAK CARE,Third Party Payments,Private Contractor Fees,73373-RESIDENTIAL & NURSING CARE PLACEMENTS,"1,534.08",Revenue,30/06/2015,Social Care & Inclusion
WC57 - 0607,BROADOAK CARE,Third Party Payments,Private Contractor Fees,73373-RESIDENTIAL & NURSING CARE PLACEMENTS,"1,534.08",Revenue,30/06/2015,Social Care & Inclusion
WC57 - 0608,BROADOAK CARE,Third Party Payments,Private Contractor Fees,73373-RESIDENTIAL & NURSING CARE PLACEMENTS,"1,534.08",Revenue,30/06/2015,Social Care & Inclusion
WC57 - 0609,BROADOAK CARE,Third Party Payments,Private Contractor Fees,73373-RESIDENTIAL & NURSING CARE PLACEMENTS,"1,534.08",Revenue,30/06/2015,Social Care & Inclusion
WC57 - 0610,BROADOAK CARE,Third Party Payments,Private Contractor Fees,73373-RESIDENTIAL & NURSING CARE PLACEMENTS,"1,534.08",Revenue,30/06/2015,Social Care & Inclusion
WC57 - 0611,BROADOAK CARE,Third Party Payments,Private Contractor Fees,73373-RESIDENTIAL & NURSING CARE PLACEMENTS,"1,534.08",Revenue,30/06/2015,Social Care & Inclusion
WC57 - 0612,BROADOAK CARE,Third Party Payments,Private Contractor Fees,73373-RESIDENTIAL & NURSING CARE PLACEMENTS,"1,534.08",Revenue,30/06/2015,Social Care & Inclusion
WC57 - 0613,BROADOAK CARE,Third Party Payments,Private Contractor Fees,73373-RESIDENTIAL & NURSING CARE PLACEMENTS,"1,534.08",Revenue,30/06/2015,Social Care & Inclusion
WC57 - 0614,BROADOAK CARE,Third Party Payments,Private Contractor Fees,73373-RESIDENTIAL & NURSING CARE PLACEMENTS,"1,534.08",Revenue,30/06/2015,Social Care & Inclusion
WC57 - 0615,BROADOAK CARE,Third Party Payments,Private Contractor Fees,73373-RESIDENTIAL & NURSING CARE PLACEMENTS,"1,534.08",Revenue,30/06/2015,Social Care & Inclusion
WC57 - 0616,BROADOAK CARE,Third Party Payments,Private Contractor Fees,73373-RESIDENTIAL & NURSING CARE PLACEMENTS,"1,534.08",Revenue,30/06/2015,Social Care & Inclusion
WC57 - 0617,BROADOAK CARE,Third Party Payments,Private Contractor Fees,73373-RESIDENTIAL & NURSING CARE PLACEMENTS,"1,534.08",Revenue,30/06/2015,Social Care & Inclusion
WC57 - 0618,BROADOAK CARE,Third Party Payments,Private Contractor Fees,73373-RESIDENTIAL & NURSING CARE PLACEMENTS,"1,534.12",Revenue,02/06/2015,Social Care & Inclusion
WC57 - 0619,BROADOAK CARE,Third Party Payments,Private Contractor Fees,73373-RESIDENTIAL & NURSING CARE PLACEMENTS,"1,534.12",Revenue,30/06/2015,Social Care & Inclusion
WC57 - 0620,BROADOAK CARE,Third Party Payments,Private Contractor Fees,73373-RESIDENTIAL & NURSING CARE PLACEMENTS,"2,301.12",Revenue,02/06/2015,Social Care & Inclusion
WC57 - 0621,BROADWAY PHARMACY,Supplies & Services,Services,63000-PROFESSIONAL FEES AND SERVICES,80.80,Revenue,15/06/2015,Economy & Environment
WC57 - 0622,BROADWAY PHARMACY,Supplies & Services,Services,63000-PROFESSIONAL FEES AND SERVICES,98.50,Revenue,01/06/2015,Economy & Environment
WC57 - 0623,BROADWAY PHARMACY,Supplies & Services,Services,63000-PROFESSIONAL FEES AND SERVICES,187.50,Revenue,15/06/2015,Economy & Environment
WC57 - 0624,BROADWAY PHARMACY,Supplies & Services,Services,63000-PROFESSIONAL FEES AND SERVICES,207.50,Revenue,01/06/2015,Economy & Environment
WC57 - 0625,BROADWAY PHARMACY,Third Party Payments,Joint Arrangements,71007-CONTRIBUTION TO PCT,382.98,Revenue,15/06/2015,Economy & Environment
WC57 - 0626,BROADWAY PHARMACY,Third Party Payments,Joint Arrangements,71007-CONTRIBUTION TO PCT,415.16,Revenue,01/06/2015,Economy & Environment
WC57 - 0627,BROADWAY TRAVEL CONNECTIONS,Transport,Hire,52000-WITH DRIVER-HIRE OF VEHICLES,800.00,Revenue,17/06/2015,Childrens
WC57 - 0628,BROADWAY TRAVEL CONNECTIONS,Transport,Hire,52000-WITH DRIVER-HIRE OF VEHICLES,"2,240.00",Revenue,03/06/2015,Childrens
WC57 - 0629,BROADWAY UNITED REFORMED CHURCH,Supplies & Services,Other Supplies & Services,63128-HIRE OF ROOM-SERVICES-FEES,400.00,Revenue,05/06/2015,Resources
WC57 - 0630,BROWNHILLS ASPHALT TARMACADAM,Premises,Premises-Repairs & Maintenance,"40000-REPAIRS,ALTERATIONS & MAINTENANCE-PREM",345.00,Revenue,16/06/2015,Economy & Environment
WC57 - 0631,BROWNHILLS ASPHALT TARMACADAM,Premises,Premises-Repairs & Maintenance,"40000-REPAIRS,ALTERATIONS & MAINTENANCE-PREM",345.00,Revenue,29/06/2015,Economy & Environment
WC57 - 0632,BROWNHILLS ASPHALT TARMACADAM,Capital,Capital,01006-SITE WORKS MAIN CONTRACTORS,485.00,Capital,01/06/2015,Economy & Environment
WC57 - 0633,BROWNHILLS ASPHALT TARMACADAM,Supplies & Services,"Equip,Furniture & Materials",60500-GENERAL MATERIALS,515.00,Revenue,01/06/2015,Economy & Environment
WC57 - 0634,BROWNHILLS ASPHALT TARMACADAM,Third Party Payments,Private Contractor Fees,73025-PROFESSIONAL SERVICES-PRIV CONTRACTOR & OTHER AGENCIES,580.00,Revenue,24/06/2015,Economy & Environment
WC57 - 0635,BROWNHILLS ASPHALT TARMACADAM,Third Party Payments,Private Contractor Fees,73019-PSE'S-PRIV CONTRACTOR FEES,735.00,Revenue,01/06/2015,Childrens
WC57 - 0636,BROWNHILLS ASPHALT TARMACADAM,Capital,Capital,01005-ARCHITECTS INSTRUCTION,756.00,Capital,01/06/2015,Childrens
WC57 - 0637,BROWNHILLS ASPHALT TARMACADAM,Premises,Premises-Repairs & Maintenance,"40000-REPAIRS,ALTERATIONS & MAINTENANCE-PREM",836.00,Revenue,01/06/2015,Economy & Environment
WC57 - 0638,BROWNHILLS ASPHALT TARMACADAM,Premises,Premises-Repairs & Maintenance,"40000-REPAIRS,ALTERATIONS & MAINTENANCE-PREM",925.00,Revenue,01/06/2015,Economy & Environment
WC57 - 0639,BROWNHILLS ASPHALT TARMACADAM,Third Party Payments,Private Contractor Fees,73025-PROFESSIONAL SERVICES-PRIV CONTRACTOR & OTHER AGENCIES,"1,410.00",Revenue,24/06/2015,Economy & Environment
WC57 - 0640,BROWNHILLS ASPHALT TARMACADAM,Third Party Payments,Private Contractor Fees,73025-PROFESSIONAL SERVICES-PRIV CONTRACTOR & OTHER AGENCIES,"1,765.00",Revenue,24/06/2015,Economy & Environment
WC57 - 0641,BROWNHILLS ASPHALT TARMACADAM,Supplies & Services,"Equip,Furniture & Materials",60500-GENERAL MATERIALS,"1,799.00",Revenue,24/06/2015,Economy & Environment
WC57 - 0642,BROWNHILLS ASPHALT TARMACADAM,Capital,Capital,01006-SITE WORKS MAIN CONTRACTORS,"3,560.00",Capital,18/06/2015,Childrens
WC57 - 0643,BROWNHILLS ASPHALT TARMACADAM,Third Party Payments,Private Contractor Fees,73025-PROFESSIONAL SERVICES-PRIV CONTRACTOR & OTHER AGENCIES,"4,800.00",Revenue,16/06/2015,Economy & Environment
WC57 - 0644,BROWNHILLS ASPHALT TARMACADAM,Capital,Capital,01006-SITE WORKS MAIN CONTRACTORS,"7,800.00",Capital,02/06/2015,Childrens
WC57 - 0645,BROWNHILLS ASPHALT TARMACADAM,Capital,Capital,01006-SITE WORKS MAIN CONTRACTORS,"9,039.00",Capital,18/06/2015,Childrens
WC57 - 0646,BROWNHILLS ASPHALT TARMACADAM,Capital,Capital,01006-SITE WORKS MAIN CONTRACTORS,"34,078.00",Capital,02/06/2015,Childrens
WC57 - 0647,BROWNHILLS CARS,Transport,Hire,52001-HIRE OF VEHICLES,560.00,Revenue,01/06/2015,Childrens
WC57 - 0648,BROWNHILLS CARS,Transport,Hire,52001-HIRE OF VEHICLES,780.00,Revenue,01/06/2015,Childrens
WC57 - 0649,BROWNHILLS COMMUNITY ASSOCIATION,Third Party Payments,Grants to Other Orgs,66500-GRANTS TO OTHER ORGS,"6,666.66",Revenue,16/06/2015,Resources
WC57 - 0650,BROWNHILLS LOCAL COMMITTEE,Supplies & Services,Other Supplies & Services,63128-HIRE OF ROOM-SERVICES-FEES,713.00,Revenue,11/06/2015,Economy & Environment
WC57 - 0651,REDACTED,Transfer Payments,Transfer Payments,76422-DIRECT PAYMENTS TO SOCIAL SERVICES CLIENTS,"1,806.25",Revenue,17/06/2015,Social Care & Inclusion
WC57 - 0652,REDACTED,Supplies & Services,Services,63000-PROFESSIONAL FEES AND SERVICES,340.00,Revenue,01/06/2015,Economy & Environment
WC57 - 0653,B-SURE SECURITY SERVICES LTD,Premises,Premises-Repairs & Maintenance,"40000-REPAIRS,ALTERATIONS & MAINTENANCE-PREM",287.00,Revenue,03/06/2015,Economy & Environment
WC57 - 0654,BT PLC,Supplies & Services,Communications & Computing,63603-COST OF CALLS-TELEPHONES,970.00,Revenue,05/06/2015,Resources
WC57 - 0655,BT PLC,Supplies & Services,Communications & Computing,63601-COSTS (NOT INTERNAL RECHARGES)-TELEPHONES,"12,204.07",Revenue,18/06/2015,Resources
WC57 - 0656,BT REDCARE,Supplies & Services,"Equip,Furniture & Materials",60008-MAINTENANCE-FURNITURE & EQUIPMENT,"26,968.60",Revenue,11/06/2015,Social Care & Inclusion
WC57 - 0657,BUPA CARE HOMES (CFHCARE) LTD,Third Party Payments,Private Contractor Fees,73373-RESIDENTIAL & NURSING CARE PLACEMENTS,737.50,Revenue,02/06/2015,Social Care & Inclusion
WC57 - 0658,BUPA CARE HOMES (CFHCARE) LTD,Third Party Payments,Private Contractor Fees,73373-RESIDENTIAL & NURSING CARE PLACEMENTS,983.34,Revenue,02/06/2015,Social Care & Inclusion
WC57 - 0659,BUPA CARE HOMES (CFHCARE) LTD,Third Party Payments,Private Contractor Fees,73373-RESIDENTIAL & NURSING CARE PLACEMENTS,"1,458.00",Revenue,02/06/2015,Social Care & Inclusion
WC57 - 0660,BUPA CARE HOMES (CFHCARE) LTD,Third Party Payments,Private Contractor Fees,73373-RESIDENTIAL & NURSING CARE PLACEMENTS,"1,494.00",Revenue,02/06/2015,Social Care & Inclusion
WC57 - 0661,BUPA CARE HOMES (CFHCARE) LTD,Third Party Payments,Private Contractor Fees,73373-RESIDENTIAL & NURSING CARE PLACEMENTS,"1,494.00",Revenue,30/06/2015,Social Care & Inclusion
WC57 - 0662,BUPA CARE HOMES (CFHCARE) LTD,Third Party Payments,Private Contractor Fees,73373-RESIDENTIAL & NURSING CARE PLACEMENTS,"1,720.84",Revenue,02/06/2015,Social Care & Inclusion
WC57 - 0663,BUPA CARE HOMES (CFHCARE) LTD,Third Party Payments,Private Contractor Fees,73373-RESIDENTIAL & NURSING CARE PLACEMENTS,"1,720.84",Revenue,02/06/2015,Social Care & Inclusion
WC57 - 0664,BUPA CARE HOMES (CFHCARE) LTD,Third Party Payments,Private Contractor Fees,73373-RESIDENTIAL & NURSING CARE PLACEMENTS,"1,720.84",Revenue,02/06/2015,Social Care & Inclusion
WC57 - 0665,BUPA CARE HOMES (CFHCARE) LTD,Third Party Payments,Private Contractor Fees,73373-RESIDENTIAL & NURSING CARE PLACEMENTS,"1,720.84",Revenue,30/06/2015,Social Care & Inclusion
WC57 - 0666,BUPA CARE HOMES (CFHCARE) LTD,Third Party Payments,Private Contractor Fees,73373-RESIDENTIAL & NURSING CARE PLACEMENTS,"1,730.27",Revenue,02/06/2015,Social Care & Inclusion
WC57 - 0667,BUPA CARE HOMES (CFHCARE) LTD,Third Party Payments,Private Contractor Fees,73373-RESIDENTIAL & NURSING CARE PLACEMENTS,"3,060.92",Revenue,02/06/2015,Social Care & Inclusion
WC57 - 0668,BUPA CARE HOMES (CFHCARE) LTD,Third Party Payments,Private Contractor Fees,73373-RESIDENTIAL & NURSING CARE PLACEMENTS,"3,060.92",Revenue,30/06/2015,Social Care & Inclusion
WC57 - 0669,BURTON ADDICTION CENTRE,Supplies & Services,Services,63000-PROFESSIONAL FEES AND SERVICES,"1,157.14",Revenue,29/06/2015,Economy & Environment
WC57 - 0670,BUSH HOME LTD,Third Party Payments,Private Contractor Fees,73373-RESIDENTIAL & NURSING CARE PLACEMENTS,"1,314.96",Revenue,30/06/2015,Social Care & Inclusion
WC57 - 0671,BUSH HOME LTD,Third Party Payments,Private Contractor Fees,73373-RESIDENTIAL & NURSING CARE PLACEMENTS,"1,458.16",Revenue,02/06/2015,Social Care & Inclusion
WC57 - 0672,BUSH HOME LTD,Third Party Payments,Private Contractor Fees,73373-RESIDENTIAL & NURSING CARE PLACEMENTS,"1,458.16",Revenue,16/06/2015,Social Care & Inclusion
WC57 - 0673,BUSH HOME LTD,Third Party Payments,Private Contractor Fees,73373-RESIDENTIAL & NURSING CARE PLACEMENTS,"1,460.40",Revenue,02/06/2015,Social Care & Inclusion
WC57 - 0674,BUSH HOME LTD,Third Party Payments,Private Contractor Fees,73373-RESIDENTIAL & NURSING CARE PLACEMENTS,"1,460.40",Revenue,02/06/2015,Social Care & Inclusion
WC57 - 0675,BUSH HOME LTD,Third Party Payments,Private Contractor Fees,73373-RESIDENTIAL & NURSING CARE PLACEMENTS,"1,460.40",Revenue,02/06/2015,Social Care & Inclusion
WC57 - 0676,BUSH HOME LTD,Third Party Payments,Private Contractor Fees,73373-RESIDENTIAL & NURSING CARE PLACEMENTS,"1,460.40",Revenue,02/06/2015,Social Care & Inclusion
WC57 - 0677,BUSH HOME LTD,Third Party Payments,Private Contractor Fees,73373-RESIDENTIAL & NURSING CARE PLACEMENTS,"1,460.40",Revenue,02/06/2015,Social Care & Inclusion
WC57 - 0678,BUSH HOME LTD,Third Party Payments,Private Contractor Fees,73373-RESIDENTIAL & NURSING CARE PLACEMENTS,"1,460.40",Revenue,09/06/2015,Social Care & Inclusion
WC57 - 0679,BUSH HOME LTD,Third Party Payments,Private Contractor Fees,73373-RESIDENTIAL & NURSING CARE PLACEMENTS,"1,460.40",Revenue,16/06/2015,Social Care & Inclusion
WC57 - 0680,BUSH HOME LTD,Third Party Payments,Private Contractor Fees,73373-RESIDENTIAL & NURSING CARE PLACEMENTS,"1,460.40",Revenue,16/06/2015,Social Care & Inclusion
WC57 - 0681,BUSH HOME LTD,Third Party Payments,Private Contractor Fees,73373-RESIDENTIAL & NURSING CARE PLACEMENTS,"1,460.40",Revenue,16/06/2015,Social Care & Inclusion
WC57 - 0682,BUSH HOME LTD,Third Party Payments,Private Contractor Fees,73373-RESIDENTIAL & NURSING CARE PLACEMENTS,"1,534.12",Revenue,02/06/2015,Social Care & Inclusion
WC57 - 0683,BUSH HOME LTD,Third Party Payments,Private Contractor Fees,73373-RESIDENTIAL & NURSING CARE PLACEMENTS,"1,534.12",Revenue,02/06/2015,Social Care & Inclusion
WC57 - 0684,BUSH HOME LTD,Third Party Payments,Private Contractor Fees,73373-RESIDENTIAL & NURSING CARE PLACEMENTS,"1,534.12",Revenue,02/06/2015,Social Care & Inclusion
WC57 - 0685,BUSH HOME LTD,Third Party Payments,Private Contractor Fees,73373-RESIDENTIAL & NURSING CARE PLACEMENTS,"1,534.12",Revenue,02/06/2015,Social Care & Inclusion
WC57 - 0686,BUSH HOME LTD,Third Party Payments,Private Contractor Fees,73373-RESIDENTIAL & NURSING CARE PLACEMENTS,"1,534.12",Revenue,02/06/2015,Social Care & Inclusion
WC57 - 0687,BUSH HOME LTD,Third Party Payments,Private Contractor Fees,73373-RESIDENTIAL & NURSING CARE PLACEMENTS,"1,534.12",Revenue,02/06/2015,Social Care & Inclusion
WC57 - 0688,BUSH HOME LTD,Third Party Payments,Private Contractor Fees,73373-RESIDENTIAL & NURSING CARE PLACEMENTS,"1,534.12",Revenue,02/06/2015,Social Care & Inclusion
WC57 - 0689,BUSH HOME LTD,Third Party Payments,Private Contractor Fees,73373-RESIDENTIAL & NURSING CARE PLACEMENTS,"1,534.12",Revenue,02/06/2015,Social Care & Inclusion
WC57 - 0690,BUSH HOME LTD,Third Party Payments,Private Contractor Fees,73373-RESIDENTIAL & NURSING CARE PLACEMENTS,"1,534.12",Revenue,09/06/2015,Social Care & Inclusion
WC57 - 0691,BUSH HOME LTD,Third Party Payments,Private Contractor Fees,73373-RESIDENTIAL & NURSING CARE PLACEMENTS,"1,534.12",Revenue,09/06/2015,Social Care & Inclusion
WC57 - 0692,BUSH HOME LTD,Third Party Payments,Private Contractor Fees,73373-RESIDENTIAL & NURSING CARE PLACEMENTS,"1,534.12",Revenue,09/06/2015,Social Care & Inclusion
WC57 - 0693,BUSH HOME LTD,Third Party Payments,Private Contractor Fees,73373-RESIDENTIAL & NURSING CARE PLACEMENTS,"1,534.12",Revenue,09/06/2015,Social Care & Inclusion
WC57 - 0694,BUSH HOME LTD,Third Party Payments,Private Contractor Fees,73373-RESIDENTIAL & NURSING CARE PLACEMENTS,"1,534.12",Revenue,16/06/2015,Social Care & Inclusion
WC57 - 0695,BUSH HOME LTD,Third Party Payments,Private Contractor Fees,73373-RESIDENTIAL & NURSING CARE PLACEMENTS,"1,534.12",Revenue,16/06/2015,Social Care & Inclusion
WC57 - 0696,BUSH HOME LTD,Third Party Payments,Private Contractor Fees,73373-RESIDENTIAL & NURSING CARE PLACEMENTS,"1,534.12",Revenue,16/06/2015,Social Care & Inclusion
WC57 - 0697,BUSH HOME LTD,Third Party Payments,Private Contractor Fees,73373-RESIDENTIAL & NURSING CARE PLACEMENTS,"1,534.12",Revenue,16/06/2015,Social Care & Inclusion
WC57 - 0698,BUSH HOME LTD,Third Party Payments,Private Contractor Fees,73373-RESIDENTIAL & NURSING CARE PLACEMENTS,"1,534.13",Revenue,02/06/2015,Social Care & Inclusion
WC57 - 0699,BUSH HOME LTD,Third Party Payments,Private Contractor Fees,73373-RESIDENTIAL & NURSING CARE PLACEMENTS,"1,534.13",Revenue,09/06/2015,Social Care & Inclusion
WC57 - 0700,BUSH HOME LTD,Third Party Payments,Private Contractor Fees,73373-RESIDENTIAL & NURSING CARE PLACEMENTS,"1,557.60",Revenue,02/06/2015,Social Care & Inclusion
WC57 - 0701,BUSH HOME LTD,Third Party Payments,Private Contractor Fees,73373-RESIDENTIAL & NURSING CARE PLACEMENTS,"1,557.60",Revenue,16/06/2015,Social Care & Inclusion
WC57 - 0702,BY THE BRIDGE,Third Party Payments,Private Contractor Fees,74037-INDEPENDENT FOSTER CARE-OTH AGENCY PROVISION,"6,689.54",Revenue,19/06/2015,Childrens
WC57 - 0703,BYTES SOFTWARE SERVICES LTD,Supplies & Services,Communications & Computing,63820-RECHARGE FOR MAINTENANCE/APPLICATION COSTS-COMPUTER,"15,067.63",Revenue,15/06/2015,Resources
WC57 - 0704,C & V ORCHARD MANOR LTD,Third Party Payments,Private Contractor Fees,73373-RESIDENTIAL & NURSING CARE PLACEMENTS,438.32,Revenue,02/06/2015,Social Care & Inclusion
WC57 - 0705,C & V ORCHARD MANOR LTD,Third Party Payments,Private Contractor Fees,73373-RESIDENTIAL & NURSING CARE PLACEMENTS,493.11,Revenue,02/06/2015,Social Care & Inclusion
WC57 - 0706,C & V ORCHARD MANOR LTD,Third Party Payments,Private Contractor Fees,73373-RESIDENTIAL & NURSING CARE PLACEMENTS,547.90,Revenue,02/06/2015,Social Care & Inclusion
WC57 - 0707,C & V ORCHARD MANOR LTD,Third Party Payments,Private Contractor Fees,73373-RESIDENTIAL & NURSING CARE PLACEMENTS,602.69,Revenue,02/06/2015,Social Care & Inclusion
WC57 - 0708,C & V ORCHARD MANOR LTD,Third Party Payments,Private Contractor Fees,73373-RESIDENTIAL & NURSING CARE PLACEMENTS,"1,150.59",Revenue,02/06/2015,Social Care & Inclusion
WC57 - 0709,C & V ORCHARD MANOR LTD,Third Party Payments,Private Contractor Fees,73373-RESIDENTIAL & NURSING CARE PLACEMENTS,"1,369.75",Revenue,16/06/2015,Social Care & Inclusion
WC57 - 0710,C & V ORCHARD MANOR LTD,Third Party Payments,Private Contractor Fees,73373-RESIDENTIAL & NURSING CARE PLACEMENTS,"1,439.81",Revenue,16/06/2015,Social Care & Inclusion
WC57 - 0711,C & V ORCHARD MANOR LTD,Third Party Payments,Private Contractor Fees,73373-RESIDENTIAL & NURSING CARE PLACEMENTS,"1,460.10",Revenue,30/06/2015,Social Care & Inclusion
WC57 - 0712,C & V ORCHARD MANOR LTD,Third Party Payments,Private Contractor Fees,73373-RESIDENTIAL & NURSING CARE PLACEMENTS,"1,460.40",Revenue,16/06/2015,Social Care & Inclusion
WC57 - 0713,C & V ORCHARD MANOR LTD,Third Party Payments,Private Contractor Fees,73373-RESIDENTIAL & NURSING CARE PLACEMENTS,"1,460.40",Revenue,16/06/2015,Social Care & Inclusion
WC57 - 0714,C & V ORCHARD MANOR LTD,Third Party Payments,Private Contractor Fees,73373-RESIDENTIAL & NURSING CARE PLACEMENTS,"1,460.40",Revenue,16/06/2015,Social Care & Inclusion
WC57 - 0715,C & V ORCHARD MANOR LTD,Third Party Payments,Private Contractor Fees,73373-RESIDENTIAL & NURSING CARE PLACEMENTS,"1,460.40",Revenue,30/06/2015,Social Care & Inclusion
WC57 - 0716,C & V ORCHARD MANOR LTD,Third Party Payments,Private Contractor Fees,73373-RESIDENTIAL & NURSING CARE PLACEMENTS,"1,531.76",Revenue,16/06/2015,Social Care & Inclusion
WC57 - 0717,C & V ORCHARD MANOR LTD,Third Party Payments,Private Contractor Fees,73373-RESIDENTIAL & NURSING CARE PLACEMENTS,"1,531.76",Revenue,16/06/2015,Social Care & Inclusion
WC57 - 0718,C & V ORCHARD MANOR LTD,Third Party Payments,Private Contractor Fees,73373-RESIDENTIAL & NURSING CARE PLACEMENTS,"2,395.55",Revenue,09/06/2015,Social Care & Inclusion
WC57 - 0719,C & V ORCHARD RESIDENTIAL LTD,Third Party Payments,Private Contractor Fees,73373-RESIDENTIAL & NURSING CARE PLACEMENTS,469.41,Revenue,09/06/2015,Social Care & Inclusion
WC57 - 0720,C & V ORCHARD RESIDENTIAL LTD,Third Party Payments,Private Contractor Fees,73373-RESIDENTIAL & NURSING CARE PLACEMENTS,876.64,Revenue,30/06/2015,Social Care & Inclusion
WC57 - 0721,C & V ORCHARD RESIDENTIAL LTD,Third Party Payments,Private Contractor Fees,73373-RESIDENTIAL & NURSING CARE PLACEMENTS,990.99,Revenue,09/06/2015,Social Care & Inclusion
WC57 - 0722,C & V ORCHARD RESIDENTIAL LTD,Third Party Payments,Private Contractor Fees,73373-RESIDENTIAL & NURSING CARE PLACEMENTS,"1,460.40",Revenue,09/06/2015,Social Care & Inclusion
WC57 - 0723,C & V ORCHARD RESIDENTIAL LTD,Third Party Payments,Private Contractor Fees,73373-RESIDENTIAL & NURSING CARE PLACEMENTS,"1,460.40",Revenue,09/06/2015,Social Care & Inclusion
WC57 - 0724,C & V ORCHARD RESIDENTIAL LTD,Third Party Payments,Private Contractor Fees,73373-RESIDENTIAL & NURSING CARE PLACEMENTS,"1,460.40",Revenue,09/06/2015,Social Care & Inclusion
WC57 - 0725,C & V ORCHARD RESIDENTIAL LTD,Third Party Payments,Private Contractor Fees,73373-RESIDENTIAL & NURSING CARE PLACEMENTS,"1,460.40",Revenue,09/06/2015,Social Care & Inclusion
WC57 - 0726,C & V ORCHARD RESIDENTIAL LTD,Third Party Payments,Private Contractor Fees,73373-RESIDENTIAL & NURSING CARE PLACEMENTS,"1,460.40",Revenue,09/06/2015,Social Care & Inclusion
WC57 - 0727,C & V ORCHARD RESIDENTIAL LTD,Third Party Payments,Private Contractor Fees,73373-RESIDENTIAL & NURSING CARE PLACEMENTS,"1,460.40",Revenue,30/06/2015,Social Care & Inclusion
WC57 - 0728,C & V ORCHARD RESIDENTIAL LTD,Third Party Payments,Private Contractor Fees,73373-RESIDENTIAL & NURSING CARE PLACEMENTS,"1,531.00",Revenue,09/06/2015,Social Care & Inclusion
WC57 - 0729,C & V ORCHARD RESIDENTIAL LTD,Third Party Payments,Private Contractor Fees,73373-RESIDENTIAL & NURSING CARE PLACEMENTS,"1,531.76",Revenue,09/06/2015,Social Care & Inclusion
WC57 - 0730,C & V ORCHARD RESIDENTIAL LTD,Third Party Payments,Private Contractor Fees,73373-RESIDENTIAL & NURSING CARE PLACEMENTS,"1,531.76",Revenue,09/06/2015,Social Care & Inclusion
WC57 - 0731,C & V ORCHARD RESIDENTIAL LTD,Third Party Payments,Private Contractor Fees,73373-RESIDENTIAL & NURSING CARE PLACEMENTS,"1,531.80",Revenue,09/06/2015,Social Care & Inclusion
WC57 - 0732,C & V ORCHARD RESIDENTIAL LTD,Third Party Payments,Private Contractor Fees,73373-RESIDENTIAL & NURSING CARE PLACEMENTS,"1,534.12",Revenue,09/06/2015,Social Care & Inclusion
WC57 - 0733,C & V ORCHARD RESIDENTIAL LTD,Third Party Payments,Private Contractor Fees,73373-RESIDENTIAL & NURSING CARE PLACEMENTS,"1,534.12",Revenue,09/06/2015,Social Care & Inclusion
WC57 - 0734,C & V ORCHARD RESIDENTIAL LTD,Third Party Payments,Private Contractor Fees,73373-RESIDENTIAL & NURSING CARE PLACEMENTS,"1,534.12",Revenue,09/06/2015,Social Care & Inclusion
WC57 - 0735,C & V ORCHARD RESIDENTIAL LTD,Third Party Payments,Private Contractor Fees,73373-RESIDENTIAL & NURSING CARE PLACEMENTS,"1,534.12",Revenue,09/06/2015,Social Care & Inclusion
WC57 - 0736,C & V ORCHARD RESIDENTIAL LTD,Third Party Payments,Private Contractor Fees,73373-RESIDENTIAL & NURSING CARE PLACEMENTS,"1,534.12",Revenue,30/06/2015,Social Care & Inclusion
WC57 - 0737,C & V ORCHARD RESIDENTIAL LTD,Third Party Payments,Private Contractor Fees,73373-RESIDENTIAL & NURSING CARE PLACEMENTS,"1,564.71",Revenue,16/06/2015,Social Care & Inclusion
WC57 - 0738,C & V ORCHARD RESIDENTIAL LTD,Third Party Payments,Private Contractor Fees,73373-RESIDENTIAL & NURSING CARE PLACEMENTS,"2,868.64",Revenue,16/06/2015,Social Care & Inclusion
WC57 - 0739,C ART ART TRANSPORT LTD,Third Party Payments,Private Contractor Fees,73032-TRANSPORTATION-PRIV CONTRACTOR FEES,"1,145.00",Revenue,01/06/2015,Economy & Environment
WC57 - 0740,REDACTED,Supplies & Services,Other Supplies & Services,62515-MISCELLANEOUS SUPPLIES,"4,317.64",Revenue,22/06/2015,Childrens
WC57 - 0741,REDACTED,Third Party Payments,Private Contractor Fees,74006-HOLIDAY/CHRISTMAS ALLOWANCE-FOSTER CARERS-OTH AGENCY PROVISION,"4,702.52",Revenue,22/06/2015,Childrens
WC57 - 0742,REDACTED,Supplies & Services,Other Supplies & Services,62515-MISCELLANEOUS SUPPLIES,"1,445.32",Revenue,22/06/2015,Childrens
WC57 - 0743,REDACTED,Third Party Payments,Private Contractor Fees,74006-HOLIDAY/CHRISTMAS ALLOWANCE-FOSTER CARERS-OTH AGENCY PROVISION,"1,461.24",Revenue,22/06/2015,Childrens
WC57 - 0744,C P DAVIDSON & SONS LTD,Central,Leasing,52003-OPERATING LEASES-VEHICLES,-450.00,Revenue,01/06/2015,Economy & Environment
WC57 - 0745,C P DAVIDSON & SONS LTD,Central,Leasing,52003-OPERATING LEASES-VEHICLES,-450.00,Revenue,01/06/2015,Economy & Environment
WC57 - 0746,C P DAVIDSON & SONS LTD,Central,Leasing,52003-OPERATING LEASES-VEHICLES,300.00,Revenue,01/06/2015,Economy & Environment
WC57 - 0747,C P DAVIDSON & SONS LTD,Central,Leasing,52003-OPERATING LEASES-VEHICLES,300.00,Revenue,01/06/2015,Economy & Environment
WC57 - 0748,C P DAVIDSON & SONS LTD,Supplies & Services,"Equip,Furniture & Materials",60500-GENERAL MATERIALS,326.03,Revenue,17/06/2015,Economy & Environment
WC57 - 0749,C P DAVIDSON & SONS LTD,Central,Leasing,52003-OPERATING LEASES-VEHICLES,600.00,Revenue,15/06/2015,Economy & Environment
WC57 - 0750,C P DAVIDSON & SONS LTD,Supplies & Services,"Equip,Furniture & Materials",60500-GENERAL MATERIALS,657.64,Revenue,17/06/2015,Economy & Environment
WC57 - 0751,C P DAVIDSON & SONS LTD,Central,Leasing,52003-OPERATING LEASES-VEHICLES,"2,550.00",Revenue,04/06/2015,Economy & Environment
WC57 - 0752,C P DAVIDSON & SONS LTD,Central,Leasing,52003-OPERATING LEASES-VEHICLES,"3,150.00",Revenue,15/06/2015,Economy & Environment
WC57 - 0753,C P DAVIDSON & SONS LTD,Central,Leasing,52003-OPERATING LEASES-VEHICLES,"3,150.00",Revenue,15/06/2015,Economy & Environment
WC57 - 0754,C P DAVIDSON & SONS LTD,Central,Leasing,52003-OPERATING LEASES-VEHICLES,"3,150.00",Revenue,15/06/2015,Economy & Environment
WC57 - 0755,CALDMORE AREA HOUSING ASS LTD,Third Party Payments,Private Contractor Fees,73374-SUPPORTED & OTHER ACCOMMODATION,267.80,Revenue,03/06/2015,Social Care & Inclusion
WC57 - 0756,CALDMORE AREA HOUSING ASS LTD,Third Party Payments,Private Contractor Fees,73374-SUPPORTED & OTHER ACCOMMODATION,350.20,Revenue,15/06/2015,Social Care & Inclusion
WC57 - 0757,CALDMORE AREA HOUSING ASS LTD,Third Party Payments,Private Contractor Fees,73373-RESIDENTIAL & NURSING CARE PLACEMENTS,530.85,Revenue,09/06/2015,Social Care & Inclusion
WC57 - 0758,CALDMORE AREA HOUSING ASS LTD,Third Party Payments,Private Contractor Fees,73373-RESIDENTIAL & NURSING CARE PLACEMENTS,530.85,Revenue,30/06/2015,Social Care & Inclusion
WC57 - 0759,CALDMORE AREA HOUSING ASS LTD,Third Party Payments,Private Contractor Fees,73373-RESIDENTIAL & NURSING CARE PLACEMENTS,530.85,Revenue,30/06/2015,Social Care & Inclusion
WC57 - 0760,CALDMORE AREA HOUSING ASS LTD,Third Party Payments,Private Contractor Fees,73374-SUPPORTED & OTHER ACCOMMODATION,576.80,Revenue,12/06/2015,Social Care & Inclusion
WC57 - 0761,CALDMORE AREA HOUSING ASS LTD,Third Party Payments,Private Contractor Fees,73374-SUPPORTED & OTHER ACCOMMODATION,576.80,Revenue,12/06/2015,Social Care & Inclusion
WC57 - 0762,CALDMORE AREA HOUSING ASS LTD,Third Party Payments,Private Contractor Fees,73374-SUPPORTED & OTHER ACCOMMODATION,576.80,Revenue,12/06/2015,Social Care & Inclusion
WC57 - 0763,CALDMORE AREA HOUSING ASS LTD,Third Party Payments,Private Contractor Fees,73374-SUPPORTED & OTHER ACCOMMODATION,576.80,Revenue,12/06/2015,Social Care & Inclusion
WC57 - 0764,CALDMORE AREA HOUSING ASS LTD,Third Party Payments,Private Contractor Fees,73374-SUPPORTED & OTHER ACCOMMODATION,576.80,Revenue,12/06/2015,Social Care & Inclusion
WC57 - 0765,CALDMORE AREA HOUSING ASS LTD,Third Party Payments,Private Contractor Fees,73374-SUPPORTED & OTHER ACCOMMODATION,576.80,Revenue,12/06/2015,Social Care & Inclusion
WC57 - 0766,CALDMORE AREA HOUSING ASS LTD,Third Party Payments,Private Contractor Fees,73374-SUPPORTED & OTHER ACCOMMODATION,576.80,Revenue,12/06/2015,Social Care & Inclusion
WC57 - 0767,CALDMORE AREA HOUSING ASS LTD,Third Party Payments,Private Contractor Fees,73373-RESIDENTIAL & NURSING CARE PLACEMENTS,619.33,Revenue,09/06/2015,Social Care & Inclusion
WC57 - 0768,CALDMORE AREA HOUSING ASS LTD,Third Party Payments,Private Contractor Fees,73373-RESIDENTIAL & NURSING CARE PLACEMENTS,619.33,Revenue,09/06/2015,Social Care & Inclusion
WC57 - 0769,CALDMORE AREA HOUSING ASS LTD,Third Party Payments,Private Contractor Fees,73373-RESIDENTIAL & NURSING CARE PLACEMENTS,619.33,Revenue,16/06/2015,Social Care & Inclusion
WC57 - 0770,CALDMORE AREA HOUSING ASS LTD,Third Party Payments,Private Contractor Fees,73373-RESIDENTIAL & NURSING CARE PLACEMENTS,619.33,Revenue,16/06/2015,Social Care & Inclusion
WC57 - 0771,CALDMORE AREA HOUSING ASS LTD,Third Party Payments,Private Contractor Fees,73373-RESIDENTIAL & NURSING CARE PLACEMENTS,619.33,Revenue,16/06/2015,Social Care & Inclusion
WC57 - 0772,CALDMORE AREA HOUSING ASS LTD,Third Party Payments,Private Contractor Fees,73374-SUPPORTED & OTHER ACCOMMODATION,679.80,Revenue,03/06/2015,Social Care & Inclusion
WC57 - 0773,CALDMORE AREA HOUSING ASS LTD,Third Party Payments,Private Contractor Fees,73374-SUPPORTED & OTHER ACCOMMODATION,679.80,Revenue,03/06/2015,Social Care & Inclusion
WC57 - 0774,CALDMORE AREA HOUSING ASS LTD,Third Party Payments,Private Contractor Fees,73374-SUPPORTED & OTHER ACCOMMODATION,679.80,Revenue,03/06/2015,Social Care & Inclusion
WC57 - 0775,CALDMORE AREA HOUSING ASS LTD,Third Party Payments,Private Contractor Fees,73374-SUPPORTED & OTHER ACCOMMODATION,679.80,Revenue,03/06/2015,Social Care & Inclusion
WC57 - 0776,CALDMORE AREA HOUSING ASS LTD,Third Party Payments,Private Contractor Fees,73374-SUPPORTED & OTHER ACCOMMODATION,679.80,Revenue,03/06/2015,Social Care & Inclusion
WC57 - 0777,CALDMORE AREA HOUSING ASS LTD,Third Party Payments,Private Contractor Fees,73374-SUPPORTED & OTHER ACCOMMODATION,679.80,Revenue,03/06/2015,Social Care & Inclusion
WC57 - 0778,CALDMORE AREA HOUSING ASS LTD,Third Party Payments,Private Contractor Fees,73374-SUPPORTED & OTHER ACCOMMODATION,679.80,Revenue,03/06/2015,Social Care & Inclusion
WC57 - 0779,CALDMORE AREA HOUSING ASS LTD,Third Party Payments,Private Contractor Fees,73374-SUPPORTED & OTHER ACCOMMODATION,679.80,Revenue,03/06/2015,Social Care & Inclusion
WC57 - 0780,CALDMORE AREA HOUSING ASS LTD,Third Party Payments,Private Contractor Fees,73373-RESIDENTIAL & NURSING CARE PLACEMENTS,973.23,Revenue,16/06/2015,Social Care & Inclusion
WC57 - 0781,CALDMORE AREA HOUSING ASS LTD,Third Party Payments,Private Contractor Fees,73373-RESIDENTIAL & NURSING CARE PLACEMENTS,973.23,Revenue,30/06/2015,Social Care & Inclusion
WC57 - 0782,CALDMORE AREA HOUSING ASS LTD,Third Party Payments,Private Contractor Fees,73373-RESIDENTIAL & NURSING CARE PLACEMENTS,"1,238.66",Revenue,02/06/2015,Social Care & Inclusion
WC57 - 0783,CALDMORE AREA HOUSING ASS LTD,Third Party Payments,Private Contractor Fees,73373-RESIDENTIAL & NURSING CARE PLACEMENTS,"1,238.66",Revenue,16/06/2015,Social Care & Inclusion
WC57 - 0784,CALDMORE AREA HOUSING ASS LTD,Third Party Payments,Private Contractor Fees,73373-RESIDENTIAL & NURSING CARE PLACEMENTS,"1,592.56",Revenue,16/06/2015,Social Care & Inclusion
WC57 - 0785,CALDMORE AREA HOUSING ASS LTD,Third Party Payments,Private Contractor Fees,73373-RESIDENTIAL & NURSING CARE PLACEMENTS,"2,034.94",Revenue,16/06/2015,Social Care & Inclusion
WC57 - 0786,CALDMORE AREA HOUSING ASS LTD,Third Party Payments,Private Contractor Fees,73373-RESIDENTIAL & NURSING CARE PLACEMENTS,"2,477.32",Revenue,16/06/2015,Social Care & Inclusion
WC57 - 0787,CALDMORE AREA HOUSING ASS LTD,Third Party Payments,Private Contractor Fees,73373-RESIDENTIAL & NURSING CARE PLACEMENTS,"2,477.32",Revenue,16/06/2015,Social Care & Inclusion
WC57 - 0788,CALDMORE AREA HOUSING ASS LTD,Third Party Payments,Private Contractor Fees,73373-RESIDENTIAL & NURSING CARE PLACEMENTS,"2,477.32",Revenue,16/06/2015,Social Care & Inclusion
WC57 - 0789,CALDMORE AREA HOUSING ASS LTD,Third Party Payments,Private Contractor Fees,73373-RESIDENTIAL & NURSING CARE PLACEMENTS,"2,477.32",Revenue,16/06/2015,Social Care & Inclusion
WC57 - 0790,CALDMORE AREA HOUSING ASS LTD,Third Party Payments,Private Contractor Fees,73373-RESIDENTIAL & NURSING CARE PLACEMENTS,"2,477.32",Revenue,16/06/2015,Social Care & Inclusion
WC57 - 0791,CALDMORE AREA HOUSING ASS LTD,Third Party Payments,Private Contractor Fees,73373-RESIDENTIAL & NURSING CARE PLACEMENTS,"2,477.32",Revenue,16/06/2015,Social Care & Inclusion
WC57 - 0792,CALDMORE AREA HOUSING ASS LTD,Third Party Payments,Private Contractor Fees,73373-RESIDENTIAL & NURSING CARE PLACEMENTS,"2,477.32",Revenue,16/06/2015,Social Care & Inclusion
WC57 - 0793,CALDMORE AREA HOUSING ASS LTD,Third Party Payments,Private Contractor Fees,73373-RESIDENTIAL & NURSING CARE PLACEMENTS,"2,477.32",Revenue,16/06/2015,Social Care & Inclusion
WC57 - 0794,CALDMORE AREA HOUSING ASS LTD,Third Party Payments,Private Contractor Fees,73373-RESIDENTIAL & NURSING CARE PLACEMENTS,"2,477.32",Revenue,16/06/2015,Social Care & Inclusion
WC57 - 0795,CALDMORE AREA HOUSING ASS LTD,Third Party Payments,Private Contractor Fees,73373-RESIDENTIAL & NURSING CARE PLACEMENTS,"2,477.32",Revenue,16/06/2015,Social Care & Inclusion
WC57 - 0796,CALDMORE AREA HOUSING ASS LTD,Third Party Payments,Private Contractor Fees,73373-RESIDENTIAL & NURSING CARE PLACEMENTS,"2,565.79",Revenue,09/06/2015,Social Care & Inclusion
WC57 - 0797,CALDMORE AREA HOUSING ASS LTD,Third Party Payments,Private Contractor Fees,73373-RESIDENTIAL & NURSING CARE PLACEMENTS,"2,919.70",Revenue,09/06/2015,Social Care & Inclusion
WC57 - 0798,CALDMORE AREA HOUSING ASS LTD,Third Party Payments,Private Contractor Fees,73373-RESIDENTIAL & NURSING CARE PLACEMENTS,"3,096.65",Revenue,16/06/2015,Social Care & Inclusion
WC57 - 0799,REDACTED,Third Party Payments,Private Contractor Fees,74006-HOLIDAY/CHRISTMAS ALLOWANCE-FOSTER CARERS-OTH AGENCY PROVISION,373.76,Revenue,08/06/2015,Childrens
WC57 - 0800,REDACTED,Transfer Payments,Transfer Payments,76422-DIRECT PAYMENTS TO SOCIAL SERVICES CLIENTS,359.63,Revenue,17/06/2015,Childrens
WC57 - 0801,CAMBIAN CHILDCARE LIMITED,Third Party Payments,Private Contractor Fees,74036-EXTERNAL RESIDENTIAL CARE-OTH AGENCY PROVISION,"2,571.30",Revenue,18/06/2015,Childrens
WC57 - 0802,CAMBIAN CHILDCARE LIMITED,Third Party Payments,Private Contractor Fees,74037-INDEPENDENT FOSTER CARE-OTH AGENCY PROVISION,"2,876.44",Revenue,25/06/2015,Childrens
WC57 - 0803,CAMBIAN CHILDCARE LIMITED,Third Party Payments,Private Contractor Fees,74037-INDEPENDENT FOSTER CARE-OTH AGENCY PROVISION,"3,081.90",Revenue,25/06/2015,Childrens
WC57 - 0804,CAMBIAN CHILDCARE LIMITED,Third Party Payments,Private Contractor Fees,74037-INDEPENDENT FOSTER CARE-OTH AGENCY PROVISION,"3,154.11",Revenue,26/06/2015,Childrens
WC57 - 0805,CAMBIAN CHILDCARE LIMITED,Third Party Payments,Private Contractor Fees,74037-INDEPENDENT FOSTER CARE-OTH AGENCY PROVISION,"3,184.63",Revenue,25/06/2015,Childrens
WC57 - 0806,CAMBIAN CHILDCARE LIMITED,Third Party Payments,Private Contractor Fees,74037-INDEPENDENT FOSTER CARE-OTH AGENCY PROVISION,"3,184.63",Revenue,25/06/2015,Childrens
WC57 - 0807,CAMBIAN CHILDCARE LIMITED,Third Party Payments,Private Contractor Fees,74037-INDEPENDENT FOSTER CARE-OTH AGENCY PROVISION,"3,184.63",Revenue,25/06/2015,Childrens
WC57 - 0808,CAMBIAN CHILDCARE LIMITED,Third Party Payments,Private Contractor Fees,74037-INDEPENDENT FOSTER CARE-OTH AGENCY PROVISION,"3,184.63",Revenue,25/06/2015,Childrens
WC57 - 0809,CAMBIAN CHILDCARE LIMITED,Third Party Payments,Private Contractor Fees,74036-EXTERNAL RESIDENTIAL CARE-OTH AGENCY PROVISION,"13,877.10",Revenue,19/06/2015,Childrens
WC57 - 0810,CAMBIAN LEARNING DISABILITES MIDLANDS LIMITED,Third Party Payments,Private Contractor Fees,73375-IN PATIENT BEDS,"10,557.00",Revenue,05/06/2015,Social Care & Inclusion
WC57 - 0811,CAMERA ONE LIMITED,Supplies & Services,"Equip,Furniture & Materials",60500-GENERAL MATERIALS,455.00,Revenue,17/06/2015,Economy & Environment
WC57 - 0812,CAMERA ONE LIMITED,Third Party Payments,Private Contractor Fees,73025-PROFESSIONAL SERVICES-PRIV CONTRACTOR & OTHER AGENCIES,635.00,Revenue,18/06/2015,Economy & Environment
WC57 - 0813,CAMERA ONE LIMITED,Supplies & Services,"Equip,Furniture & Materials",60006-NEW-FURNITURE & EQUIPMENT,"1,350.00",Revenue,24/06/2015,Economy & Environment
WC57 - 0814,CANAL & RIVER TRUST,Premises,Rent,43000-RENTS,"1,302.75",Revenue,17/06/2015,Economy & Environment
WC57 - 0815,CAPITAL HAIR & BEAUTY LTD,Supplies & Services,Other Supplies & Services,63115-HIRE OF ROOM (duplicate please use 63128)-SERVICES-FEES,800.00,Revenue,03/06/2015,Resources
WC57 - 0816,CAPSTONE FOSTER CARE (SOUTH EAST) LIMITED,Third Party Payments,Private Contractor Fees,74037-INDEPENDENT FOSTER CARE-OTH AGENCY PROVISION,"2,770.65",Revenue,03/06/2015,Childrens
WC57 - 0817,CAPSTONE FOSTER CARE (SOUTH EAST) LIMITED,Third Party Payments,Private Contractor Fees,74037-INDEPENDENT FOSTER CARE-OTH AGENCY PROVISION,"2,770.65",Revenue,03/06/2015,Childrens
WC57 - 0818,CAPSTONE FOSTER CARE (SOUTH EAST) LIMITED,Third Party Payments,Private Contractor Fees,74037-INDEPENDENT FOSTER CARE-OTH AGENCY PROVISION,"3,259.34",Revenue,03/06/2015,Childrens
WC57 - 0819,CAPSTONE FOSTER CARE (SOUTH EAST) LIMITED,Third Party Payments,Private Contractor Fees,74037-INDEPENDENT FOSTER CARE-OTH AGENCY PROVISION,"3,780.10",Revenue,03/06/2015,Childrens
WC57 - 0820,CARE 2 U LIMITED,Third Party Payments,Private Contractor Fees,73372-DOMICILIARY CARE,"42,084.69",Revenue,23/06/2015,Social Care & Inclusion
WC57 - 0821,CARE AVENUES LTD,Third Party Payments,Private Contractor Fees,73372-DOMICILIARY CARE,583.49,Revenue,26/06/2015,Social Care & Inclusion
WC57 - 0822,CARE AVENUES LTD,Third Party Payments,Private Contractor Fees,73372-DOMICILIARY CARE,"7,521.00",Revenue,23/06/2015,Social Care & Inclusion
WC57 - 0823,CARE FIRST CARE HOMES LTD,Third Party Payments,Private Contractor Fees,73373-RESIDENTIAL & NURSING CARE PLACEMENTS,800.36,Revenue,30/06/2015,Social Care & Inclusion
WC57 - 0824,CARE FIRST MANAGEMENT SERVICES LTD,Third Party Payments,Private Contractor Fees,73372-DOMICILIARY CARE,780.00,Revenue,03/06/2015,Social Care & Inclusion
WC57 - 0825,CARE FIRST MANAGEMENT SERVICES LTD,Third Party Payments,Private Contractor Fees,73372-DOMICILIARY CARE,780.00,Revenue,18/06/2015,Social Care & Inclusion
WC57 - 0826,CARE LEAVERS,Supplies & Services,Other Supplies & Services,64002-OTHER EXPENSES-EXPENSES,75.00,Revenue,09/06/2015,Childrens
WC57 - 0827,CARE LEAVERS,Supplies & Services,Other Supplies & Services,63114-OTHER FEES & LICENCES-SERVICES-FEES,82.25,Revenue,09/06/2015,Childrens
WC57 - 0828,CARE LEAVERS,Transfer Payments,Transfer Payments,76000-TRANSFER PAYMENTS - SOCIAL SERVICES CLIENTS,146.20,Revenue,02/06/2015,Childrens
WC57 - 0829,CARE LEAVERS,Supplies & Services,Other Supplies & Services,63114-OTHER FEES & LICENCES-SERVICES-FEES,232.49,Revenue,02/06/2015,Childrens
WC57 - 0830,CARE LEAVERS,Transfer Payments,Transfer Payments,76400-RESIDENTS PERSONAL EXPENSES-ALLOWANCES TO S/S CLIENTS,713.00,Revenue,09/06/2015,Childrens
WC57 - 0831,CARE LEAVERS,Third Party Payments,Private Contractor Fees,74500-CARE LEAVERS MTCE PAYMENTS,"2,029.26",Revenue,02/06/2015,Childrens
WC57 - 0832,CARE LEAVERS,Supplies & Services,Other Supplies & Services,64002-OTHER EXPENSES-EXPENSES,"2,178.92",Revenue,02/06/2015,Childrens
WC57 - 0833,CARE LEAVERS,Transfer Payments,Transfer Payments,76400-RESIDENTS PERSONAL EXPENSES-ALLOWANCES TO S/S CLIENTS,"2,959.40",Revenue,02/06/2015,Childrens
WC57 - 0834,CARE LEAVERS,Transfer Payments,Transfer Payments,76010-ACCOMMODATION AND RELATED COSTS-ASSISTANCE TO S/S CLIENTS,"7,157.68",Revenue,02/06/2015,Childrens
WC57 - 0835,CARE LEAVERS,Transfer Payments,Transfer Payments,76010-ACCOMMODATION AND RELATED COSTS-ASSISTANCE TO S/S CLIENTS,"12,348.30",Revenue,09/06/2015,Childrens
WC57 - 0836,CARE SHOP,Supplies & Services,"Equip,Furniture & Materials",60000-FURNITURE & EQUIPMENT,106.68,Revenue,15/06/2015,Social Care & Inclusion
WC57 - 0837,CARE SHOP,Supplies & Services,"Equip,Furniture & Materials",60539-CLEANING MATERIALS,356.06,Revenue,15/06/2015,Social Care & Inclusion
WC57 - 0838,CARE SHOP,Supplies & Services,"Equip,Furniture & Materials",60500-GENERAL MATERIALS,706.20,Revenue,15/06/2015,Social Care & Inclusion
WC57 - 0839,CARE SHOP,Supplies & Services,"Equip,Furniture & Materials",60539-CLEANING MATERIALS,720.54,Revenue,15/06/2015,Social Care & Inclusion
WC57 - 0840,CARE SHOP,Supplies & Services,"Equip,Furniture & Materials",60539-CLEANING MATERIALS,789.60,Revenue,17/06/2015,Social Care & Inclusion
WC57 - 0841,CARE SHOP,Supplies & Services,"Equip,Furniture & Materials",60539-CLEANING MATERIALS,852.69,Revenue,17/06/2015,Social Care & Inclusion
WC57 - 0842,CARE4HEALTH LTD.,Employees,Agency,34305-AGENCY STAFF-EMPLOYEES,"1,041.30",Revenue,29/06/2015,Social Care & Inclusion
WC57 - 0843,CARE4HEALTH LTD.,Employees,Agency,34305-AGENCY STAFF-EMPLOYEES,"1,041.75",Revenue,03/06/2015,Social Care & Inclusion
WC57 - 0844,CARE4HEALTH LTD.,Employees,Agency,34305-AGENCY STAFF-EMPLOYEES,"1,041.75",Revenue,29/06/2015,Social Care & Inclusion
WC57 - 0845,CARE4HEALTH LTD.,Employees,Agency,34305-AGENCY STAFF-EMPLOYEES,"1,117.50",Revenue,03/06/2015,Social Care & Inclusion
WC57 - 0846,CARE4HEALTH LTD.,Third Party Payments,Private Contractor Fees,73019-PSE'S-PRIV CONTRACTOR FEES,"1,121.55",Revenue,19/06/2015,Social Care & Inclusion
WC57 - 0847,CARE4HEALTH LTD.,Third Party Payments,Private Contractor Fees,73019-PSE'S-PRIV CONTRACTOR FEES,"1,327.20",Revenue,03/06/2015,Social Care & Inclusion
WC57 - 0848,CARE4HEALTH LTD.,Third Party Payments,Private Contractor Fees,73019-PSE'S-PRIV CONTRACTOR FEES,"1,370.33",Revenue,10/06/2015,Social Care & Inclusion
WC57 - 0849,CARETECH COMMUNITY SERVICE,Third Party Payments,Private Contractor Fees,73374-SUPPORTED & OTHER ACCOMMODATION,"1,171.37",Revenue,24/06/2015,Social Care & Inclusion
WC57 - 0850,CARETECH COMMUNITY SERVICE,Third Party Payments,Private Contractor Fees,73374-SUPPORTED & OTHER ACCOMMODATION,"1,210.42",Revenue,03/06/2015,Social Care & Inclusion
WC57 - 0851,CARETECH COMMUNITY SERVICE,Third Party Payments,Private Contractor Fees,73374-SUPPORTED & OTHER ACCOMMODATION,"4,118.83",Revenue,24/06/2015,Social Care & Inclusion
WC57 - 0852,CARETECH COMMUNITY SERVICE,Third Party Payments,Private Contractor Fees,73374-SUPPORTED & OTHER ACCOMMODATION,"4,885.71",Revenue,24/06/2015,Social Care & Inclusion
WC57 - 0853,CARETECH COMMUNITY SERVICE,Third Party Payments,Private Contractor Fees,73374-SUPPORTED & OTHER ACCOMMODATION,"5,048.57",Revenue,03/06/2015,Social Care & Inclusion
WC57 - 0854,CAREVIEW SERVICES LTD,Third Party Payments,Private Contractor Fees,73373-RESIDENTIAL & NURSING CARE PLACEMENTS,"6,438.51",Revenue,09/06/2015,Social Care & Inclusion
WC57 - 0855,CARILLION COMMUNICATIONS LIMITED,Capital,Capital,01044-PURCHASE OF FURNITURE & EQUIPMENT,"2,615.00",Capital,29/06/2015,Economy & Environment
WC57 - 0856,CARING CARE LIMITED,Third Party Payments,Private Contractor Fees,73372-DOMICILIARY CARE,"53,812.84",Revenue,23/06/2015,Social Care & Inclusion
WC57 - 0857,CARING HANDS LIMITED,Third Party Payments,Private Contractor Fees,73372-DOMICILIARY CARE,"55,030.48",Revenue,23/06/2015,Social Care & Inclusion
WC57 - 0858,REDACTED,Employees,Other Staff Costs,32000-MISC FEES AND EXPENSES,68.09,Revenue,19/06/2015,Social Care & Inclusion
WC57 - 0859,REDACTED,Third Party Payments,Private Contractor Fees,73374-SUPPORTED & OTHER ACCOMMODATION,566.54,Revenue,19/06/2015,Social Care & Inclusion
WC57 - 0860,REDACTED,Third Party Payments,Private Contractor Fees,73374-SUPPORTED & OTHER ACCOMMODATION,"4,912.20",Revenue,16/06/2015,Social Care & Inclusion
WC57 - 0861,REDACTED,Transfer Payments,Transfer Payments,76422-DIRECT PAYMENTS TO SOCIAL SERVICES CLIENTS,562.50,Revenue,17/06/2015,Social Care & Inclusion
WC57 - 0862,REDACTED,Third Party Payments,Private Contractor Fees,74006-HOLIDAY/CHRISTMAS ALLOWANCE-FOSTER CARERS-OTH AGENCY PROVISION,469.80,Revenue,22/06/2015,Childrens
WC57 - 0863,REDACTED,Supplies & Services,Other Supplies & Services,62515-MISCELLANEOUS SUPPLIES,540.20,Revenue,22/06/2015,Childrens
WC57 - 0864,REDACTED,Third Party Payments,Private Contractor Fees,74006-HOLIDAY/CHRISTMAS ALLOWANCE-FOSTER CARERS-OTH AGENCY PROVISION,365.60,Revenue,08/06/2015,Childrens
WC57 - 0865,CARTER SYNERGY LTD,Premises,Premises-Repairs & Maintenance,40011-SECURITY SYSTEM-OP MTCE,281.60,Revenue,24/06/2015,Economy & Environment
WC57 - 0866,CARTER SYNERGY LTD,Premises,Premises-Repairs & Maintenance,40007-JOINERY-OP MTCE,668.15,Revenue,09/06/2015,Economy & Environment
WC57 - 0867,CARTER SYNERGY LTD,Capital,Capital,01006-SITE WORKS MAIN CONTRACTORS,738.00,Capital,22/06/2015,Economy & Environment
WC57 - 0868,CARTER SYNERGY LTD,Premises,Premises-Repairs & Maintenance,"40000-REPAIRS,ALTERATIONS & MAINTENANCE-PREM",890.00,Revenue,12/06/2015,Economy & Environment
WC57 - 0869,CARTER SYNERGY LTD,Premises,Premises-Repairs & Maintenance,40216-OTHER-PLAN MTCE,"9,939.41",Revenue,03/06/2015,Economy & Environment
WC57 - 0870,CATCH 22 CHARITY LTD,Supplies & Services,Subscriptions,64500-PUBLICATIONS/ORGANISATIONS-SUBSCRIPTIONS,"2,995.00",Revenue,01/06/2015,Childrens
WC57 - 0871,CATER WALSH TRANSCRIPTION LTD,Third Party Payments,Private Contractor Fees,73014-LEGAL FEES-PRIV CONTRACTOR FEES,341.85,Revenue,01/06/2015,Childrens
WC57 - 0872,REDACTED,Transfer Payments,Transfer Payments,76422-DIRECT PAYMENTS TO SOCIAL SERVICES CLIENTS,778.35,Revenue,17/06/2015,Social Care & Inclusion
WC57 - 0873,REDACTED,Transfer Payments,Transfer Payments,76422-DIRECT PAYMENTS TO SOCIAL SERVICES CLIENTS,863.10,Revenue,17/06/2015,Social Care & Inclusion
WC57 - 0874,REDACTED,Third Party Payments,Private Contractor Fees,74006-HOLIDAY/CHRISTMAS ALLOWANCE-FOSTER CARERS-OTH AGENCY PROVISION,425.08,Revenue,08/06/2015,Childrens
WC57 - 0875,REDACTED,Transfer Payments,Transfer Payments,76422-DIRECT PAYMENTS TO SOCIAL SERVICES CLIENTS,485.50,Revenue,17/06/2015,Social Care & Inclusion
WC57 - 0876,REDACTED,Transfer Payments,Transfer Payments,76422-DIRECT PAYMENTS TO SOCIAL SERVICES CLIENTS,"1,267.83",Revenue,17/06/2015,Childrens
WC57 - 0877,REDACTED,Third Party Payments,Private Contractor Fees,74006-HOLIDAY/CHRISTMAS ALLOWANCE-FOSTER CARERS-OTH AGENCY PROVISION,425.08,Revenue,08/06/2015,Childrens
WC57 - 0878,CCS MEDIA LTD,Supplies & Services,Communications & Computing,63800-COMPUTER EQUIPMENT AND SUPPLIES,530.00,Revenue,02/06/2015,Resources
WC57 - 0879,CE RISK SAFETY AND SECURITY LTD,Third Party Payments,Private Contractor Fees,73002-SECURITY-PRIV CONTRACTOR FEES,284.20,Revenue,10/06/2015,Economy & Environment
WC57 - 0880,CE RISK SAFETY AND SECURITY LTD,Third Party Payments,Private Contractor Fees,73002-SECURITY-PRIV CONTRACTOR FEES,420.00,Revenue,10/06/2015,Economy & Environment
WC57 - 0881,CE RISK SAFETY AND SECURITY LTD,Third Party Payments,Private Contractor Fees,73002-SECURITY-PRIV CONTRACTOR FEES,"6,173.20",Revenue,24/06/2015,Resources
WC57 - 0882,CE RISK SAFETY AND SECURITY LTD,Third Party Payments,Private Contractor Fees,73002-SECURITY-PRIV CONTRACTOR FEES,"7,653.77",Revenue,11/06/2015,Economy & Environment
WC57 - 0883,CE RISK SAFETY AND SECURITY LTD,Third Party Payments,Private Contractor Fees,73002-SECURITY-PRIV CONTRACTOR FEES,"7,653.77",Revenue,11/06/2015,Economy & Environment
WC57 - 0884,CE RISK SAFETY AND SECURITY LTD,Third Party Payments,Private Contractor Fees,73002-SECURITY-PRIV CONTRACTOR FEES,"7,653.77",Revenue,11/06/2015,Economy & Environment
WC57 - 0885,CENTRAL THEATRE SUPPLIES,Supplies & Services,Services,63000-PROFESSIONAL FEES AND SERVICES,575.00,Revenue,18/06/2015,Economy & Environment
WC57 - 0886,CENTRAL TOOLS & PRESSINGS LTD,Supplies & Services,"Printing, Stationery & Office Exp",62001-STATIONERY & GENERAL SUPPLIES-OFFICE EXP,250.00,Revenue,01/06/2015,Resources
WC57 - 0887,CENTRO WMPTA,Transport,Other Transport,53100-OFFICER/STAFF-PUBLIC TRANSPORT,"1,395.00",Revenue,15/06/2015,Economy & Environment
WC57 - 0888,CERTAS ENERGY UK LIMITED,Transport,Other Transport,50301-FUEL-TRANSPORT RUN COSTS,477.90,Revenue,10/06/2015,Economy & Environment
WC57 - 0889,CERTAS ENERGY UK LIMITED,Transport,Other Transport,50301-FUEL-TRANSPORT RUN COSTS,709.80,Revenue,16/06/2015,Economy & Environment
WC57 - 0890,CERTAS ENERGY UK LIMITED,Transport,Other Transport,50301-FUEL-TRANSPORT RUN COSTS,718.35,Revenue,10/06/2015,Economy & Environment
WC57 - 0891,CERTAS ENERGY UK LIMITED,Transport,Other Transport,50301-FUEL-TRANSPORT RUN COSTS,734.10,Revenue,05/06/2015,Economy & Environment
WC57 - 0892,CERTAS ENERGY UK LIMITED,Transport,Other Transport,50301-FUEL-TRANSPORT RUN COSTS,"1,425.00",Revenue,16/06/2015,Economy & Environment
WC57 - 0893,CERTAS ENERGY UK LIMITED,Transport,Other Transport,50301-FUEL-TRANSPORT RUN COSTS,"1,427.70",Revenue,10/06/2015,Economy & Environment
WC57 - 0894,CERTAS ENERGY UK LIMITED,Transport,Other Transport,50301-FUEL-TRANSPORT RUN COSTS,"2,422.48",Revenue,03/06/2015,Economy & Environment
WC57 - 0895,CERTAS ENERGY UK LIMITED,Transport,Other Transport,50301-FUEL-TRANSPORT RUN COSTS,"18,655.85",Revenue,16/06/2015,Economy & Environment
WC57 - 0896,CERTAS ENERGY UK LIMITED,Transport,Other Transport,50301-FUEL-TRANSPORT RUN COSTS,"18,703.61",Revenue,03/06/2015,Economy & Environment
WC57 - 0897,CERTAS ENERGY UK LIMITED,Transport,Other Transport,50301-FUEL-TRANSPORT RUN COSTS,"18,764.52",Revenue,10/06/2015,Economy & Environment
WC57 - 0898,CERTAS ENERGY UK LIMITED,Transport,Other Transport,50301-FUEL-TRANSPORT RUN COSTS,"18,909.05",Revenue,03/06/2015,Economy & Environment
WC57 - 0899,CF CORPORATE FINANCE LTD,Supplies & Services,"Equip,Furniture & Materials",60009-LEASING/HIRE/RENTAL-EQUIPMENT,442.40,Revenue,01/06/2015,Childrens
WC57 - 0900,CFT FOSTERING LIMITED,Third Party Payments,Private Contractor Fees,74037-INDEPENDENT FOSTER CARE-OTH AGENCY PROVISION,"5,938.50",Revenue,22/06/2015,Childrens
WC57 - 0901,REDACTED,Transfer Payments,Transfer Payments,76422-DIRECT PAYMENTS TO SOCIAL SERVICES CLIENTS,935.00,Revenue,17/06/2015,Social Care & Inclusion
WC57 - 0902,REDACTED,Third Party Payments,Private Contractor Fees,74006-HOLIDAY/CHRISTMAS ALLOWANCE-FOSTER CARERS-OTH AGENCY PROVISION,650.92,Revenue,08/06/2015,Childrens
WC57 - 0903,CHARLES CODDY WALKER ACADEMY,Transfer Payments,Transfer Payments,77300-ISB-FORMULA ALLOCATION,600.00,Revenue,08/06/2015,Childrens
WC57 - 0904,CHARLES CODDY WALKER ACADEMY,Transfer Payments,Transfer Payments,77300-ISB-FORMULA ALLOCATION,600.00,Revenue,08/06/2015,Childrens
WC57 - 0905,CHARLES CODDY WALKER ACADEMY,Third Party Payments,Grants to Other Orgs,66505-OTHER-GRANTS TO OTHER ORGS,"9,485.58",Revenue,02/06/2015,Childrens
WC57 - 0906,REDACTED,Transfer Payments,Transfer Payments,76422-DIRECT PAYMENTS TO SOCIAL SERVICES CLIENTS,323.70,Revenue,17/06/2015,Childrens
WC57 - 0907,CHARMEND LTD,Third Party Payments,Private Contractor Fees,73373-RESIDENTIAL & NURSING CARE PLACEMENTS,415.19,Revenue,09/06/2015,Social Care & Inclusion
WC57 - 0908,CHARMEND LTD,Third Party Payments,Private Contractor Fees,73373-RESIDENTIAL & NURSING CARE PLACEMENTS,484.39,Revenue,09/06/2015,Social Care & Inclusion
WC57 - 0909,CHARMEND LTD,Third Party Payments,Private Contractor Fees,73373-RESIDENTIAL & NURSING CARE PLACEMENTS,761.18,Revenue,09/06/2015,Social Care & Inclusion
WC57 - 0910,CHARMEND LTD,Third Party Payments,Private Contractor Fees,73373-RESIDENTIAL & NURSING CARE PLACEMENTS,"1,868.36",Revenue,09/06/2015,Social Care & Inclusion
WC57 - 0911,CHARMEND LTD,Third Party Payments,Private Contractor Fees,73373-RESIDENTIAL & NURSING CARE PLACEMENTS,"2,075.96",Revenue,23/06/2015,Social Care & Inclusion
WC57 - 0912,CHARMEND LTD,Third Party Payments,Private Contractor Fees,73019-PSE'S-PRIV CONTRACTOR FEES,"25,714.29",Revenue,22/06/2015,Social Care & Inclusion
WC57 - 0913,CHARMEND LTD,Third Party Payments,Private Contractor Fees,73019-PSE'S-PRIV CONTRACTOR FEES,"26,571.43",Revenue,03/06/2015,Social Care & Inclusion
WC57 - 0914,CHARTER CARE,Third Party Payments,Private Contractor Fees,73372-DOMICILIARY CARE,774.53,Revenue,01/06/2015,Social Care & Inclusion
WC57 - 0915,CHARTER CARE,Third Party Payments,Private Contractor Fees,73372-DOMICILIARY CARE,798.40,Revenue,01/06/2015,Social Care & Inclusion
WC57 - 0916,CHARTER CARE,Third Party Payments,Private Contractor Fees,73372-DOMICILIARY CARE,"2,610.06",Revenue,01/06/2015,Social Care & Inclusion
WC57 - 0917,CHARTER CARE,Third Party Payments,Private Contractor Fees,73372-DOMICILIARY CARE,"2,811.67",Revenue,09/06/2015,Social Care & Inclusion
WC57 - 0918,CHARTER CARE,Third Party Payments,Private Contractor Fees,73372-DOMICILIARY CARE,"37,130.00",Revenue,23/06/2015,Social Care & Inclusion
WC57 - 0919,CHASE HOME IMPROVEMENTS,Capital,Capital,01045-PRIVATE GRANTS,"6,000.00",Capital,29/06/2015,Resources
WC57 - 0920,CHASE HOME IMPROVEMENTS,Capital,Capital,01045-PRIVATE GRANTS,"6,000.00",Capital,29/06/2015,Resources
WC57 - 0921,CHASE HOUSE AND PARTNER,Third Party Payments,Private Contractor Fees,73373-RESIDENTIAL & NURSING CARE PLACEMENTS,"4,445.68",Revenue,16/06/2015,Social Care & Inclusion
WC57 - 0922,CHASE HOUSE AND PARTNER,Third Party Payments,Private Contractor Fees,73373-RESIDENTIAL & NURSING CARE PLACEMENTS,"4,455.44",Revenue,16/06/2015,Social Care & Inclusion
WC57 - 0923,CHASE HOUSE AND PARTNER,Third Party Payments,Private Contractor Fees,73373-RESIDENTIAL & NURSING CARE PLACEMENTS,"4,562.48",Revenue,16/06/2015,Social Care & Inclusion
WC57 - 0924,CHASE HOUSE AND PARTNER,Third Party Payments,Private Contractor Fees,73373-RESIDENTIAL & NURSING CARE PLACEMENTS,"4,753.76",Revenue,16/06/2015,Social Care & Inclusion
WC57 - 0925,CHASEVIEW CARE HOME,Third Party Payments,Private Contractor Fees,73373-RESIDENTIAL & NURSING CARE PLACEMENTS,"-1,494.00",Revenue,30/06/2015,Social Care & Inclusion
WC57 - 0926,CHEMTECH WASTE MANAGEMENT LTD,Third Party Payments,Private Contractor Fees,73022-DISPOSAL & TRANSPORTATION OF CARDBOARD-PRIV CONTRACTOR FEES,819.00,Revenue,03/06/2015,Economy & Environment
WC57 - 0927,REDACTED,Transfer Payments,Transfer Payments,76422-DIRECT PAYMENTS TO SOCIAL SERVICES CLIENTS,"2,002.00",Revenue,17/06/2015,Social Care & Inclusion
WC57 - 0928,CHILD POVERTY ACTION GROUP,Supplies & Services,"Equip,Furniture & Materials",69400-REFERENCE BOOKS,335.00,Revenue,03/06/2015,Resources
WC57 - 0929,CHILDCARE BUREAU LTD,Third Party Payments,Private Contractor Fees,74037-INDEPENDENT FOSTER CARE-OTH AGENCY PROVISION,"3,731.00",Revenue,01/06/2015,Childrens
WC57 - 0930,CHILDCARE BUREAU LTD,Third Party Payments,Private Contractor Fees,74037-INDEPENDENT FOSTER CARE-OTH AGENCY PROVISION,"3,731.00",Revenue,26/06/2015,Childrens
WC57 - 0931,CHILDCARE BUREAU LTD,Third Party Payments,Private Contractor Fees,74037-INDEPENDENT FOSTER CARE-OTH AGENCY PROVISION,"3,733.52",Revenue,01/06/2015,Childrens
WC57 - 0932,CHILDCARE BUREAU LTD,Third Party Payments,Private Contractor Fees,74037-INDEPENDENT FOSTER CARE-OTH AGENCY PROVISION,"3,733.52",Revenue,24/06/2015,Childrens
WC57 - 0933,CHILDCARE BUREAU LTD,Third Party Payments,Private Contractor Fees,74037-INDEPENDENT FOSTER CARE-OTH AGENCY PROVISION,"6,939.80",Revenue,01/06/2015,Childrens
WC57 - 0934,CHILDCARE BUREAU LTD,Third Party Payments,Private Contractor Fees,74037-INDEPENDENT FOSTER CARE-OTH AGENCY PROVISION,"6,939.80",Revenue,24/06/2015,Childrens
WC57 - 0935,CHILDLINK,Transport,Car Allowances,53001-OTHER/VOLUNTEERS-CAR ALLOWANCES,14.40,Revenue,24/06/2015,Childrens
WC57 - 0936,CHILDLINK,Supplies & Services,Other Supplies & Services,63128-HIRE OF ROOM-SERVICES-FEES,16.00,Revenue,08/06/2015,Childrens
WC57 - 0937,CHILDLINK,Supplies & Services,Other Supplies & Services,63128-HIRE OF ROOM-SERVICES-FEES,22.00,Revenue,01/06/2015,Childrens
WC57 - 0938,CHILDLINK,Supplies & Services,Other Supplies & Services,63128-HIRE OF ROOM-SERVICES-FEES,22.00,Revenue,08/06/2015,Childrens
WC57 - 0939,CHILDLINK,Supplies & Services,Other Supplies & Services,63128-HIRE OF ROOM-SERVICES-FEES,22.00,Revenue,11/06/2015,Childrens
WC57 - 0940,CHILDLINK,Transport,Car Allowances,53001-OTHER/VOLUNTEERS-CAR ALLOWANCES,24.00,Revenue,12/06/2015,Childrens
WC57 - 0941,CHILDLINK,Transport,Car Allowances,53001-OTHER/VOLUNTEERS-CAR ALLOWANCES,24.00,Revenue,12/06/2015,Childrens
WC57 - 0942,CHILDLINK,Transport,Car Allowances,53001-OTHER/VOLUNTEERS-CAR ALLOWANCES,24.00,Revenue,12/06/2015,Childrens
WC57 - 0943,CHILDLINK,Transport,Car Allowances,53003-OTHER-TRAVEL ALLOWANCES,29.25,Revenue,12/06/2015,Childrens
WC57 - 0944,CHILDLINK,Transport,Car Allowances,53003-OTHER-TRAVEL ALLOWANCES,29.25,Revenue,12/06/2015,Childrens
WC57 - 0945,CHILDLINK,Transport,Car Allowances,53003-OTHER-TRAVEL ALLOWANCES,29.25,Revenue,12/06/2015,Childrens
WC57 - 0946,CHILDLINK,Supplies & Services,Other Supplies & Services,63128-HIRE OF ROOM-SERVICES-FEES,30.00,Revenue,08/06/2015,Childrens
WC57 - 0947,CHILDLINK,Transport,Car Allowances,53003-OTHER-TRAVEL ALLOWANCES,35.75,Revenue,24/06/2015,Childrens
WC57 - 0948,CHILDLINK,Supplies & Services,Other Supplies & Services,63128-HIRE OF ROOM-SERVICES-FEES,36.00,Revenue,12/06/2015,Childrens
WC57 - 0949,CHILDLINK,Supplies & Services,Other Supplies & Services,63128-HIRE OF ROOM-SERVICES-FEES,36.00,Revenue,12/06/2015,Childrens
WC57 - 0950,CHILDLINK,Supplies & Services,Other Supplies & Services,63128-HIRE OF ROOM-SERVICES-FEES,36.00,Revenue,12/06/2015,Childrens
WC57 - 0951,CHILDLINK,Supplies & Services,Other Supplies & Services,63128-HIRE OF ROOM-SERVICES-FEES,36.00,Revenue,24/06/2015,Childrens
WC57 - 0952,CHILDLINK,Supplies & Services,Other Supplies & Services,63128-HIRE OF ROOM-SERVICES-FEES,40.00,Revenue,01/06/2015,Childrens
WC57 - 0953,CHILDLINK,Supplies & Services,Other Supplies & Services,63128-HIRE OF ROOM-SERVICES-FEES,40.00,Revenue,11/06/2015,Childrens
WC57 - 0954,CHILDLINK,Transport,Car Allowances,53001-OTHER/VOLUNTEERS-CAR ALLOWANCES,55.20,Revenue,01/06/2015,Childrens
WC57 - 0955,CHILDLINK,Transport,Car Allowances,53001-OTHER/VOLUNTEERS-CAR ALLOWANCES,56.00,Revenue,08/06/2015,Childrens
WC57 - 0956,CHILDLINK,Transport,Car Allowances,53003-OTHER-TRAVEL ALLOWANCES,60.58,Revenue,08/06/2015,Childrens
WC57 - 0957,CHILDLINK,Transport,Car Allowances,53001-OTHER/VOLUNTEERS-CAR ALLOWANCES,63.20,Revenue,11/06/2015,Childrens
WC57 - 0958,CHILDLINK,Transport,Car Allowances,53001-OTHER/VOLUNTEERS-CAR ALLOWANCES,68.80,Revenue,08/06/2015,Childrens
WC57 - 0959,CHILDLINK,Transport,Car Allowances,53003-OTHER-TRAVEL ALLOWANCES,88.40,Revenue,08/06/2015,Childrens
WC57 - 0960,CHILDLINK,Transport,Car Allowances,53003-OTHER-TRAVEL ALLOWANCES,89.96,Revenue,08/06/2015,Childrens
WC57 - 0961,CHILDLINK,Transport,Car Allowances,53001-OTHER/VOLUNTEERS-CAR ALLOWANCES,90.00,Revenue,08/06/2015,Childrens
WC57 - 0962,CHILDLINK,Transport,Car Allowances,53003-OTHER-TRAVEL ALLOWANCES,97.50,Revenue,01/06/2015,Childrens
WC57 - 0963,CHILDLINK,Transport,Car Allowances,53001-OTHER/VOLUNTEERS-CAR ALLOWANCES,98.40,Revenue,08/06/2015,Childrens
WC57 - 0964,CHILDLINK,Third Party Payments,Private Contractor Fees,76003-SECTION 34 (CONTACT),103.99,Revenue,25/06/2015,Childrens
WC57 - 0965,CHILDLINK,Third Party Payments,Private Contractor Fees,76003-SECTION 34 (CONTACT),104.00,Revenue,08/06/2015,Childrens
WC57 - 0966,CHILDLINK,Transport,Car Allowances,53003-OTHER-TRAVEL ALLOWANCES,104.00,Revenue,11/06/2015,Childrens
WC57 - 0967,CHILDLINK,Transport,Car Allowances,53003-OTHER-TRAVEL ALLOWANCES,130.00,Revenue,08/06/2015,Childrens
WC57 - 0968,CHILDLINK,Third Party Payments,Private Contractor Fees,76003-SECTION 34 (CONTACT),143.00,Revenue,01/06/2015,Childrens
WC57 - 0969,CHILDLINK,Third Party Payments,Private Contractor Fees,76003-SECTION 34 (CONTACT),143.00,Revenue,08/06/2015,Childrens
WC57 - 0970,CHILDLINK,Third Party Payments,Private Contractor Fees,76003-SECTION 34 (CONTACT),143.00,Revenue,11/06/2015,Childrens
WC57 - 0971,CHILDLINK,Transport,Car Allowances,53001-OTHER/VOLUNTEERS-CAR ALLOWANCES,150.00,Revenue,25/06/2015,Childrens
WC57 - 0972,CHILDLINK,Transport,Car Allowances,53003-OTHER-TRAVEL ALLOWANCES,190.78,Revenue,25/06/2015,Childrens
WC57 - 0973,CHILDLINK,Third Party Payments,Private Contractor Fees,76003-SECTION 34 (CONTACT),195.00,Revenue,08/06/2015,Childrens
WC57 - 0974,CHILDLINK,Third Party Payments,Private Contractor Fees,76003-SECTION 34 (CONTACT),234.00,Revenue,12/06/2015,Childrens
WC57 - 0975,CHILDLINK,Third Party Payments,Private Contractor Fees,76003-SECTION 34 (CONTACT),234.00,Revenue,12/06/2015,Childrens
WC57 - 0976,CHILDLINK,Third Party Payments,Private Contractor Fees,76003-SECTION 34 (CONTACT),234.00,Revenue,12/06/2015,Childrens
WC57 - 0977,CHILDLINK,Third Party Payments,Private Contractor Fees,76003-SECTION 34 (CONTACT),234.00,Revenue,24/06/2015,Childrens
WC57 - 0978,CHILDLINK,Third Party Payments,Private Contractor Fees,76003-SECTION 34 (CONTACT),260.00,Revenue,01/06/2015,Childrens
WC57 - 0979,CHILDLINK,Third Party Payments,Private Contractor Fees,76003-SECTION 34 (CONTACT),312.00,Revenue,08/06/2015,Childrens
WC57 - 0980,CHILDLINK,Third Party Payments,Private Contractor Fees,76003-SECTION 34 (CONTACT),312.00,Revenue,11/06/2015,Childrens
WC57 - 0981,CHOICECARE 2000 LIMITED,Third Party Payments,Private Contractor Fees,73373-RESIDENTIAL & NURSING CARE PLACEMENTS,"3,040.24",Revenue,02/06/2015,Social Care & Inclusion
WC57 - 0982,CHOICECARE 2000 LIMITED,Third Party Payments,Private Contractor Fees,73373-RESIDENTIAL & NURSING CARE PLACEMENTS,"3,040.24",Revenue,30/06/2015,Social Care & Inclusion
WC57 - 0983,CHOICECARE 2000 LIMITED,Third Party Payments,Private Contractor Fees,73373-RESIDENTIAL & NURSING CARE PLACEMENTS,"4,156.44",Revenue,02/06/2015,Social Care & Inclusion
WC57 - 0984,CHOICECARE 2000 LIMITED,Third Party Payments,Private Contractor Fees,73373-RESIDENTIAL & NURSING CARE PLACEMENTS,"4,156.44",Revenue,30/06/2015,Social Care & Inclusion
WC57 - 0985,CHRISTADELPHIAN CARE HOMES,Third Party Payments,Private Contractor Fees,73373-RESIDENTIAL & NURSING CARE PLACEMENTS,"1,748.58",Revenue,02/06/2015,Social Care & Inclusion
WC57 - 0986,REDACTED,Transfer Payments,Transfer Payments,76422-DIRECT PAYMENTS TO SOCIAL SERVICES CLIENTS,"1,862.03",Revenue,17/06/2015,Social Care & Inclusion
WC57 - 0987,REDACTED,Transfer Payments,Transfer Payments,76422-DIRECT PAYMENTS TO SOCIAL SERVICES CLIENTS,944.13,Revenue,17/06/2015,Social Care & Inclusion
WC57 - 0988,REDACTED,Transfer Payments,Transfer Payments,76422-DIRECT PAYMENTS TO SOCIAL SERVICES CLIENTS,612.00,Revenue,17/06/2015,Social Care & Inclusion
WC57 - 0989,REDACTED,Third Party Payments,Private Contractor Fees,74006-HOLIDAY/CHRISTMAS ALLOWANCE-FOSTER CARERS-OTH AGENCY PROVISION,256.36,Revenue,08/06/2015,Childrens
WC57 - 0990,REDACTED,Transfer Payments,Transfer Payments,76422-DIRECT PAYMENTS TO SOCIAL SERVICES CLIENTS,"1,407.46",Revenue,17/06/2015,Social Care & Inclusion
WC57 - 0991,REDACTED,Third Party Payments,Private Contractor Fees,74006-HOLIDAY/CHRISTMAS ALLOWANCE-FOSTER CARERS-OTH AGENCY PROVISION,746.96,Revenue,08/06/2015,Childrens
WC57 - 0992,REDACTED,Transfer Payments,Transfer Payments,76422-DIRECT PAYMENTS TO SOCIAL SERVICES CLIENTS,345.00,Revenue,17/06/2015,Social Care & Inclusion
WC57 - 0993,REDACTED,Transfer Payments,Transfer Payments,76422-DIRECT PAYMENTS TO SOCIAL SERVICES CLIENTS,"1,027.70",Revenue,17/06/2015,Social Care & Inclusion
WC57 - 0994,REDACTED,Transfer Payments,Transfer Payments,76422-DIRECT PAYMENTS TO SOCIAL SERVICES CLIENTS,735.00,Revenue,17/06/2015,Social Care & Inclusion
WC57 - 0995,CHUBB ELECTRONIC SECURITY LTD,Supplies & Services,"Equip,Furniture & Materials",60008-MAINTENANCE-FURNITURE & EQUIPMENT,"1,473.89",Revenue,01/06/2015,Childrens
WC57 - 0996,CHUBB FIRE & SECURITY LTD,Third Party Payments,Private Contractor Fees,73002-SECURITY-PRIV CONTRACTOR FEES,259.11,Revenue,03/06/2015,Economy & Environment
WC57 - 0997,CHUBB FIRE & SECURITY LTD,Premises,Premises-Repairs & Maintenance,40012-FIRE SYSTEM-OP MTCE,289.94,Revenue,16/06/2015,Childrens
WC57 - 0998,CHUBB FIRE & SECURITY LTD,Third Party Payments,Private Contractor Fees,63239-EXTERNAL WORKS-PAYMENT TO CONTRACTOR,423.94,Revenue,04/06/2015,Childrens
WC57 - 0999,CHUBB FIRE & SECURITY LTD,Third Party Payments,Private Contractor Fees,73002-SECURITY-PRIV CONTRACTOR FEES,539.43,Revenue,17/06/2015,Economy & Environment
WC57 - 1000,CHUBB FIRE & SECURITY LTD,Third Party Payments,Private Contractor Fees,73002-SECURITY-PRIV CONTRACTOR FEES,776.96,Revenue,17/06/2015,Economy & Environment
WC57 - 1001,CHUBB FIRE & SECURITY LTD,Third Party Payments,Private Contractor Fees,63239-EXTERNAL WORKS-PAYMENT TO CONTRACTOR,945.10,Revenue,04/06/2015,Childrens
WC57 - 1002,CIEH,Supplies & Services,Subscriptions,64500-PUBLICATIONS/ORGANISATIONS-SUBSCRIPTIONS,480.00,Revenue,02/06/2015,Economy & Environment
WC57 - 1003,REDACTED,Third Party Payments,Private Contractor Fees,73374-SUPPORTED & OTHER ACCOMMODATION,"1,452.12",Revenue,15/06/2015,Social Care & Inclusion
WC57 - 1004,CIPFA 001,Premises,Premises-Repairs & Maintenance,"40000-REPAIRS,ALTERATIONS & MAINTENANCE-PREM","2,331.00",Revenue,24/06/2015,Resources
WC57 - 1005,CIPFA 001,Supplies & Services,Subscriptions,64500-PUBLICATIONS/ORGANISATIONS-SUBSCRIPTIONS,"3,920.00",Revenue,18/06/2015,Resources
WC57 - 1006,CITY & GUILDS,Supplies & Services,Other Supplies & Services,63013-EXAMINATIONS-SERVICES,582.00,Revenue,03/06/2015,Resources
WC57 - 1007,CITY & GUILDS,Supplies & Services,Other Supplies & Services,63013-EXAMINATIONS-SERVICES,583.00,Revenue,24/06/2015,Resources
WC57 - 1008,CITY & GUILDS,Supplies & Services,Other Supplies & Services,63013-EXAMINATIONS-SERVICES,592.50,Revenue,24/06/2015,Resources
WC57 - 1009,CITY & GUILDS,Supplies & Services,Other Supplies & Services,63013-EXAMINATIONS-SERVICES,665.00,Revenue,24/06/2015,Resources
WC57 - 1010,CITY ELECTRICAL FACTORS LTD (BIRMINGHAM & NORTH WALES),Premises,Premises-Repairs & Maintenance,"40000-REPAIRS,ALTERATIONS & MAINTENANCE-PREM",270.00,Revenue,01/06/2015,Economy & Environment
WC57 - 1011,CIVICARE MIDLANDS LTD,Third Party Payments,Private Contractor Fees,73372-DOMICILIARY CARE,"28,792.21",Revenue,23/06/2015,Social Care & Inclusion
WC57 - 1012,CJP SAFETY,Supplies & Services,Services,63102-CONSULTANTS FEES - CORPORATE,416.40,Revenue,10/06/2015,Childrens
WC57 - 1013,REDACTED,Transfer Payments,Transfer Payments,76422-DIRECT PAYMENTS TO SOCIAL SERVICES CLIENTS,"1,360.00",Revenue,17/06/2015,Social Care & Inclusion
WC57 - 1014,REDACTED,Transfer Payments,Transfer Payments,76422-DIRECT PAYMENTS TO SOCIAL SERVICES CLIENTS,"1,243.35",Revenue,17/06/2015,Social Care & Inclusion
WC57 - 1015,REDACTED,Transfer Payments,Transfer Payments,76422-DIRECT PAYMENTS TO SOCIAL SERVICES CLIENTS,631.13,Revenue,17/06/2015,Social Care & Inclusion
WC57 - 1016,REDACTED,Third Party Payments,Private Contractor Fees,74006-HOLIDAY/CHRISTMAS ALLOWANCE-FOSTER CARERS-OTH AGENCY PROVISION,474.64,Revenue,08/06/2015,Childrens
WC57 - 1017,CLAREGATE PRIMARY SCHOOL,Transfer Payments,Transfer Payments,77300-ISB-FORMULA ALLOCATION,447.85,Revenue,08/06/2015,Childrens
WC57 - 1018,CLAREGATE PRIMARY SCHOOL,Transfer Payments,Transfer Payments,77300-ISB-FORMULA ALLOCATION,780.70,Revenue,08/06/2015,Childrens
WC57 - 1019,CLIFFORD HOUSE FOSTERING LTD,Third Party Payments,Private Contractor Fees,74037-INDEPENDENT FOSTER CARE-OTH AGENCY PROVISION,"2,522.80",Revenue,18/06/2015,Childrens
WC57 - 1020,CLIFFORD HOUSE FOSTERING LTD,Third Party Payments,Private Contractor Fees,74037-INDEPENDENT FOSTER CARE-OTH AGENCY PROVISION,"2,949.56",Revenue,18/06/2015,Childrens
WC57 - 1021,CLIFFORD HOUSE FOSTERING LTD,Third Party Payments,Private Contractor Fees,74037-INDEPENDENT FOSTER CARE-OTH AGENCY PROVISION,"3,006.00",Revenue,01/06/2015,Childrens
WC57 - 1022,CLIFFORD HOUSE FOSTERING LTD,Third Party Payments,Private Contractor Fees,74037-INDEPENDENT FOSTER CARE-OTH AGENCY PROVISION,"3,006.00",Revenue,18/06/2015,Childrens
WC57 - 1023,CLOUD AMBER LTD,Third Party Payments,Private Contractor Fees,73025-PROFESSIONAL SERVICES-PRIV CONTRACTOR & OTHER AGENCIES,"2,000.00",Revenue,08/06/2015,Economy & Environment
WC57 - 1024,COACHWISE LIMITED,Employees,Training,30030-EXTERNAL TRAINING,393.69,Revenue,05/06/2015,Economy & Environment
WC57 - 1025,COBOLT SYSTEMS LTD,Supplies & Services,"Equip,Furniture & Materials",60013-DISABLED-EQUIPMENT,269.85,Revenue,01/06/2015,Social Care & Inclusion
WC57 - 1026,COGNITIVE NETWORK SOLUTIONS LTD,Supplies & Services,Communications & Computing,63820-RECHARGE FOR MAINTENANCE/APPLICATION COSTS-COMPUTER,"10,390.92",Revenue,02/06/2015,Resources
WC57 - 1027,COIN A DRINK LTD,Supplies & Services,Provisions,61305-CATERING,371.94,Revenue,10/06/2015,Resources
WC57 - 1028,COIN A DRINK LTD,Supplies & Services,Provisions,61305-CATERING,403.41,Revenue,10/06/2015,Resources
WC57 - 1029,COIN A DRINK LTD,Supplies & Services,Provisions,61305-CATERING,448.61,Revenue,10/06/2015,Resources
WC57 - 1030,REDACTED,Third Party Payments,Private Contractor Fees,74006-HOLIDAY/CHRISTMAS ALLOWANCE-FOSTER CARERS-OTH AGENCY PROVISION,"2,763.08",Revenue,08/06/2015,Childrens
WC57 - 1031,COLLINGWOOD CENTRE LTD,Supplies & Services,Other Supplies & Services,62515-MISCELLANEOUS SUPPLIES,"2,133.11",Revenue,01/06/2015,Resources
WC57 - 1032,COLLINGWOOD CENTRE LTD,Third Party Payments,Grants to Other Orgs,66500-GRANTS TO OTHER ORGS,"8,100.03",Revenue,01/06/2015,Resources
WC57 - 1033,COMMERCIAL & DOMESTIC,Premises,Premises-Repairs & Maintenance,40705-TESTING-ELEC SERVICES,1.00,Revenue,10/06/2015,Economy & Environment
WC57 - 1034,COMMERCIAL & DOMESTIC,Premises,Premises-Repairs & Maintenance,40705-TESTING-ELEC SERVICES,1.00,Revenue,10/06/2015,Economy & Environment
WC57 - 1035,COMMERCIAL & DOMESTIC,Premises,Premises-Repairs & Maintenance,40705-TESTING-ELEC SERVICES,1.00,Revenue,10/06/2015,Economy & Environment
WC57 - 1036,COMMERCIAL & DOMESTIC,Premises,Premises-Repairs & Maintenance,40705-TESTING-ELEC SERVICES,1.00,Revenue,10/06/2015,Economy & Environment
WC57 - 1037,COMMERCIAL & DOMESTIC,Premises,Premises-Repairs & Maintenance,40705-TESTING-ELEC SERVICES,1.00,Revenue,10/06/2015,Economy & Environment
WC57 - 1038,COMMERCIAL & DOMESTIC,Premises,Premises-Repairs & Maintenance,40705-TESTING-ELEC SERVICES,1.00,Revenue,10/06/2015,Economy & Environment
WC57 - 1039,COMMERCIAL & DOMESTIC,Premises,Premises-Repairs & Maintenance,40705-TESTING-ELEC SERVICES,1.00,Revenue,10/06/2015,Economy & Environment
WC57 - 1040,COMMERCIAL & DOMESTIC,Premises,Premises-Repairs & Maintenance,40705-TESTING-ELEC SERVICES,1.00,Revenue,10/06/2015,Economy & Environment
WC57 - 1041,COMMERCIAL & DOMESTIC,Premises,Premises-Repairs & Maintenance,40705-TESTING-ELEC SERVICES,1.00,Revenue,10/06/2015,Economy & Environment
WC57 - 1042,COMMERCIAL & DOMESTIC,Premises,Premises-Repairs & Maintenance,40705-TESTING-ELEC SERVICES,1.00,Revenue,10/06/2015,Economy & Environment
WC57 - 1043,COMMERCIAL & DOMESTIC,Premises,Premises-Repairs & Maintenance,40705-TESTING-ELEC SERVICES,1.00,Revenue,10/06/2015,Economy & Environment
WC57 - 1044,COMMERCIAL & DOMESTIC,Premises,Premises-Repairs & Maintenance,40705-TESTING-ELEC SERVICES,1.00,Revenue,10/06/2015,Economy & Environment
WC57 - 1045,COMMERCIAL & DOMESTIC,Premises,Premises-Repairs & Maintenance,40705-TESTING-ELEC SERVICES,1.00,Revenue,10/06/2015,Economy & Environment
WC57 - 1046,COMMERCIAL & DOMESTIC,Premises,Premises-Repairs & Maintenance,40705-TESTING-ELEC SERVICES,1.00,Revenue,10/06/2015,Economy & Environment
WC57 - 1047,COMMERCIAL & DOMESTIC,Premises,Premises-Repairs & Maintenance,40705-TESTING-ELEC SERVICES,1.00,Revenue,10/06/2015,Economy & Environment
WC57 - 1048,COMMERCIAL & DOMESTIC,Premises,Premises-Repairs & Maintenance,40705-TESTING-ELEC SERVICES,1.00,Revenue,10/06/2015,Economy & Environment
WC57 - 1049,COMMERCIAL & DOMESTIC,Premises,Premises-Repairs & Maintenance,40705-TESTING-ELEC SERVICES,1.00,Revenue,10/06/2015,Economy & Environment
WC57 - 1050,COMMERCIAL & DOMESTIC,Premises,Premises-Repairs & Maintenance,40705-TESTING-ELEC SERVICES,1.00,Revenue,10/06/2015,Economy & Environment
WC57 - 1051,COMMERCIAL & DOMESTIC,Premises,Premises-Repairs & Maintenance,40705-TESTING-ELEC SERVICES,2.00,Revenue,10/06/2015,Economy & Environment
WC57 - 1052,COMMERCIAL & DOMESTIC,Premises,Premises-Repairs & Maintenance,40705-TESTING-ELEC SERVICES,2.00,Revenue,10/06/2015,Economy & Environment
WC57 - 1053,COMMERCIAL & DOMESTIC,Premises,Premises-Repairs & Maintenance,40705-TESTING-ELEC SERVICES,5.00,Revenue,10/06/2015,Economy & Environment
WC57 - 1054,COMMERCIAL & DOMESTIC,Premises,Premises-Repairs & Maintenance,40705-TESTING-ELEC SERVICES,8.00,Revenue,10/06/2015,Economy & Environment
WC57 - 1055,COMMERCIAL & DOMESTIC,Supplies & Services,"Equip,Furniture & Materials",60007-REPAIR OF EQUIPMENT-EQUIPMENT,15.00,Revenue,10/06/2015,Economy & Environment
WC57 - 1056,COMMERCIAL & DOMESTIC,Supplies & Services,"Equip,Furniture & Materials",60007-REPAIR OF EQUIPMENT-EQUIPMENT,15.00,Revenue,10/06/2015,Economy & Environment
WC57 - 1057,COMMERCIAL & DOMESTIC,Supplies & Services,"Equip,Furniture & Materials",60007-REPAIR OF EQUIPMENT-EQUIPMENT,15.00,Revenue,10/06/2015,Economy & Environment
WC57 - 1058,COMMERCIAL & DOMESTIC,Supplies & Services,"Equip,Furniture & Materials",60007-REPAIR OF EQUIPMENT-EQUIPMENT,15.00,Revenue,10/06/2015,Economy & Environment
WC57 - 1059,COMMERCIAL & DOMESTIC,Supplies & Services,"Equip,Furniture & Materials",60007-REPAIR OF EQUIPMENT-EQUIPMENT,15.00,Revenue,10/06/2015,Economy & Environment
WC57 - 1060,COMMERCIAL & DOMESTIC,Supplies & Services,"Equip,Furniture & Materials",60007-REPAIR OF EQUIPMENT-EQUIPMENT,15.00,Revenue,10/06/2015,Economy & Environment
WC57 - 1061,COMMERCIAL & DOMESTIC,Supplies & Services,"Equip,Furniture & Materials",60007-REPAIR OF EQUIPMENT-EQUIPMENT,15.00,Revenue,10/06/2015,Economy & Environment
WC57 - 1062,COMMERCIAL & DOMESTIC,Supplies & Services,"Equip,Furniture & Materials",60007-REPAIR OF EQUIPMENT-EQUIPMENT,20.00,Revenue,10/06/2015,Economy & Environment
WC57 - 1063,COMMERCIAL & DOMESTIC,Supplies & Services,"Equip,Furniture & Materials",60007-REPAIR OF EQUIPMENT-EQUIPMENT,20.00,Revenue,10/06/2015,Economy & Environment
WC57 - 1064,COMMERCIAL & DOMESTIC,Supplies & Services,"Equip,Furniture & Materials",60007-REPAIR OF EQUIPMENT-EQUIPMENT,20.00,Revenue,10/06/2015,Economy & Environment
WC57 - 1065,COMMERCIAL & DOMESTIC,Supplies & Services,"Equip,Furniture & Materials",60007-REPAIR OF EQUIPMENT-EQUIPMENT,20.00,Revenue,10/06/2015,Economy & Environment
WC57 - 1066,COMMERCIAL & DOMESTIC,Supplies & Services,"Equip,Furniture & Materials",60007-REPAIR OF EQUIPMENT-EQUIPMENT,20.00,Revenue,10/06/2015,Economy & Environment
WC57 - 1067,COMMERCIAL & DOMESTIC,Supplies & Services,"Equip,Furniture & Materials",60007-REPAIR OF EQUIPMENT-EQUIPMENT,20.00,Revenue,10/06/2015,Economy & Environment
WC57 - 1068,COMMERCIAL & DOMESTIC,Supplies & Services,"Equip,Furniture & Materials",60007-REPAIR OF EQUIPMENT-EQUIPMENT,20.00,Revenue,10/06/2015,Economy & Environment
WC57 - 1069,COMMERCIAL & DOMESTIC,Supplies & Services,"Equip,Furniture & Materials",60007-REPAIR OF EQUIPMENT-EQUIPMENT,20.00,Revenue,10/06/2015,Economy & Environment
WC57 - 1070,COMMERCIAL & DOMESTIC,Supplies & Services,"Equip,Furniture & Materials",60007-REPAIR OF EQUIPMENT-EQUIPMENT,20.00,Revenue,10/06/2015,Economy & Environment
WC57 - 1071,COMMERCIAL & DOMESTIC,Supplies & Services,"Equip,Furniture & Materials",60007-REPAIR OF EQUIPMENT-EQUIPMENT,20.00,Revenue,10/06/2015,Economy & Environment
WC57 - 1072,COMMERCIAL & DOMESTIC,Supplies & Services,"Equip,Furniture & Materials",60007-REPAIR OF EQUIPMENT-EQUIPMENT,20.00,Revenue,10/06/2015,Economy & Environment
WC57 - 1073,COMMERCIAL & DOMESTIC,Supplies & Services,"Equip,Furniture & Materials",60007-REPAIR OF EQUIPMENT-EQUIPMENT,20.00,Revenue,10/06/2015,Economy & Environment
WC57 - 1074,COMMERCIAL & DOMESTIC,Supplies & Services,"Equip,Furniture & Materials",60007-REPAIR OF EQUIPMENT-EQUIPMENT,35.00,Revenue,10/06/2015,Economy & Environment
WC57 - 1075,COMMERCIAL & DOMESTIC,Supplies & Services,"Equip,Furniture & Materials",60007-REPAIR OF EQUIPMENT-EQUIPMENT,40.00,Revenue,10/06/2015,Economy & Environment
WC57 - 1076,COMMERCIAL & DOMESTIC,Supplies & Services,"Equip,Furniture & Materials",60007-REPAIR OF EQUIPMENT-EQUIPMENT,60.00,Revenue,10/06/2015,Economy & Environment
WC57 - 1077,COMMERCIAL & DOMESTIC,Supplies & Services,"Equip,Furniture & Materials",60007-REPAIR OF EQUIPMENT-EQUIPMENT,95.00,Revenue,10/06/2015,Economy & Environment
WC57 - 1078,COMMERCIAL & DOMESTIC,Supplies & Services,"Equip,Furniture & Materials",60007-REPAIR OF EQUIPMENT-EQUIPMENT,140.00,Revenue,10/06/2015,Economy & Environment
WC57 - 1079,COMPASS FOSTERING CENTRAL LIMITED,Third Party Payments,Private Contractor Fees,74037-INDEPENDENT FOSTER CARE-OTH AGENCY PROVISION,"1,734.00",Revenue,09/06/2015,Childrens
WC57 - 1080,COMPASS FOSTERING CENTRAL LIMITED,Third Party Payments,Private Contractor Fees,74037-INDEPENDENT FOSTER CARE-OTH AGENCY PROVISION,"2,325.00",Revenue,12/06/2015,Childrens
WC57 - 1081,COMPASS FOSTERING CENTRAL LIMITED,Third Party Payments,Private Contractor Fees,74037-INDEPENDENT FOSTER CARE-OTH AGENCY PROVISION,"2,529.60",Revenue,12/06/2015,Childrens
WC57 - 1082,COMPASS FOSTERING CENTRAL LIMITED,Third Party Payments,Private Contractor Fees,74037-INDEPENDENT FOSTER CARE-OTH AGENCY PROVISION,"2,856.00",Revenue,09/06/2015,Childrens
WC57 - 1083,COMPLETE CARE SERVICES,Third Party Payments,Private Contractor Fees,73372-DOMICILIARY CARE,646.80,Revenue,03/06/2015,Social Care & Inclusion
WC57 - 1084,COMPLETE CARE SERVICES,Third Party Payments,Private Contractor Fees,73372-DOMICILIARY CARE,812.71,Revenue,12/06/2015,Social Care & Inclusion
WC57 - 1085,COMPLETE CARE SERVICES,Third Party Payments,Private Contractor Fees,73372-DOMICILIARY CARE,851.00,Revenue,12/06/2015,Social Care & Inclusion
WC57 - 1086,COMPLETE CARE SERVICES,Third Party Payments,Private Contractor Fees,73372-DOMICILIARY CARE,851.00,Revenue,12/06/2015,Social Care & Inclusion
WC57 - 1087,COMPLETE CARE SERVICES,Third Party Payments,Private Contractor Fees,73372-DOMICILIARY CARE,863.31,Revenue,12/06/2015,Social Care & Inclusion
WC57 - 1088,COMPLETE CARE SERVICES,Third Party Payments,Private Contractor Fees,73372-DOMICILIARY CARE,869.17,Revenue,12/06/2015,Social Care & Inclusion
WC57 - 1089,COMPLETE CARE SERVICES,Third Party Payments,Private Contractor Fees,73372-DOMICILIARY CARE,872.05,Revenue,12/06/2015,Social Care & Inclusion
WC57 - 1090,COMPLETE CARE SERVICES,Third Party Payments,Private Contractor Fees,73372-DOMICILIARY CARE,874.00,Revenue,12/06/2015,Social Care & Inclusion
WC57 - 1091,COMPLETE CARE SERVICES,Third Party Payments,Private Contractor Fees,73372-DOMICILIARY CARE,"68,591.73",Revenue,23/06/2015,Social Care & Inclusion
WC57 - 1092,COMPLETE POOL CONTROLS LIMITED,Supplies & Services,"Equip,Furniture & Materials",60500-GENERAL MATERIALS,357.70,Revenue,16/06/2015,Economy & Environment
WC57 - 1093,COMPLETE POOL CONTROLS LIMITED,Supplies & Services,"Equip,Furniture & Materials",60500-GENERAL MATERIALS,422.20,Revenue,16/06/2015,Economy & Environment
WC57 - 1094,CONDOVER COLLEGE LTD,Third Party Payments,Private Contractor Fees,73373-RESIDENTIAL & NURSING CARE PLACEMENTS,"6,428.57",Revenue,09/06/2015,Social Care & Inclusion
WC57 - 1095,CONDOVER COLLEGE LTD,Third Party Payments,Private Contractor Fees,73373-RESIDENTIAL & NURSING CARE PLACEMENTS,"7,779.60",Revenue,09/06/2015,Social Care & Inclusion
WC57 - 1096,CONNOLLY MUSICAL INSTRUMENT REPAIRS,Supplies & Services,"Equip,Furniture & Materials",60008-MAINTENANCE-FURNITURE & EQUIPMENT,390.00,Revenue,10/06/2015,Economy & Environment
WC57 - 1097,CO-OPERATIVE FUNERAL SERVICES,Supplies & Services,Other Supplies & Services,63110-BURIAL & CREMATION-SERVICES-FEES,664.00,Revenue,17/06/2015,Economy & Environment
WC57 - 1098,COPPERDOWN RESIDENTIAL CARE HOME,Third Party Payments,Private Contractor Fees,73373-RESIDENTIAL & NURSING CARE PLACEMENTS,"1,495.44",Revenue,02/06/2015,Social Care & Inclusion
WC57 - 1099,CORAM CAMBRIDGESHIRE ADOPTION,Third Party Payments,Private Contractor Fees,74000-OTHER AGENCY FEES,"9,000.00",Revenue,16/06/2015,Childrens
WC57 - 1100,CORE ASSETS CHILDRENS SERVICES LIMITED,Supplies & Services,Services,63000-PROFESSIONAL FEES AND SERVICES,420.00,Revenue,18/06/2015,Childrens
WC57 - 1101,CORE ASSETS CHILDRENS SERVICES LIMITED,Supplies & Services,Services,63000-PROFESSIONAL FEES AND SERVICES,946.40,Revenue,11/06/2015,Childrens
WC57 - 1102,CORE ASSETS CHILDRENS SERVICES LIMITED,Supplies & Services,Services,63000-PROFESSIONAL FEES AND SERVICES,946.40,Revenue,16/06/2015,Childrens
WC57 - 1103,CORE ASSETS CHILDRENS SERVICES LIMITED,Supplies & Services,Services,63000-PROFESSIONAL FEES AND SERVICES,946.40,Revenue,16/06/2015,Childrens
WC57 - 1104,CORE ASSETS CHILDRENS SERVICES LIMITED,Supplies & Services,Services,63000-PROFESSIONAL FEES AND SERVICES,"2,450.00",Revenue,03/06/2015,Childrens
WC57 - 1105,CORE ASSETS CHILDRENS SERVICES LIMITED,Supplies & Services,Services,63000-PROFESSIONAL FEES AND SERVICES,"2,450.00",Revenue,16/06/2015,Childrens
WC57 - 1106,CORE ASSETS CHILDRENS SERVICES LIMITED,Supplies & Services,Services,63000-PROFESSIONAL FEES AND SERVICES,"2,450.00",Revenue,16/06/2015,Childrens
WC57 - 1107,CORE ASSETS CHILDRENS SERVICES LIMITED,Supplies & Services,Services,63000-PROFESSIONAL FEES AND SERVICES,"2,450.00",Revenue,16/06/2015,Childrens
WC57 - 1108,CORELOGIC LIMITED,Capital,Capital,01006-SITE WORKS MAIN CONTRACTORS,"2,200.00",Capital,26/06/2015,Childrens
WC57 - 1109,CORELOGIC LIMITED,Capital,Capital,01006-SITE WORKS MAIN CONTRACTORS,"3,465.00",Capital,12/06/2015,Childrens
WC57 - 1110,CORELOGIC LIMITED,Capital,Capital,01006-SITE WORKS MAIN CONTRACTORS,"7,875.00",Capital,26/06/2015,Childrens
WC57 - 1111,CORELOGIC LIMITED,Capital,Capital,01006-SITE WORKS MAIN CONTRACTORS,"7,875.00",Capital,26/06/2015,Childrens
WC57 - 1112,CORELOGIC LIMITED,Capital,Capital,01006-SITE WORKS MAIN CONTRACTORS,"20,465.00",Capital,26/06/2015,Childrens
WC57 - 1113,CORELOGIC LIMITED,Capital,Capital,01006-SITE WORKS MAIN CONTRACTORS,"29,500.00",Capital,26/06/2015,Childrens
WC57 - 1114,CORY ENVIRONMENTAL (CENTRAL) LTD,Third Party Payments,Private Contractor Fees,73005-LANDFILL PTYS-PRIV CONTRACTOR FEES,327.37,Revenue,10/06/2015,Economy & Environment
WC57 - 1115,CORY ENVIRONMENTAL (CENTRAL) LTD,Third Party Payments,Private Contractor Fees,73005-LANDFILL PTYS-PRIV CONTRACTOR FEES,390.79,Revenue,05/06/2015,Economy & Environment
WC57 - 1116,CORY ENVIRONMENTAL (CENTRAL) LTD,Third Party Payments,Private Contractor Fees,73005-LANDFILL PTYS-PRIV CONTRACTOR FEES,392.76,Revenue,15/06/2015,Economy & Environment
WC57 - 1117,CORY ENVIRONMENTAL (CENTRAL) LTD,Third Party Payments,Private Contractor Fees,73005-LANDFILL PTYS-PRIV CONTRACTOR FEES,540.13,Revenue,24/06/2015,Economy & Environment
WC57 - 1118,CORY ENVIRONMENTAL (CENTRAL) LTD,Third Party Payments,Private Contractor Fees,73039-LANDFILL TAX-PRIV CONTRACTOR FEES,"1,790.77",Revenue,10/06/2015,Economy & Environment
WC57 - 1119,CORY ENVIRONMENTAL (CENTRAL) LTD,Third Party Payments,Private Contractor Fees,73039-LANDFILL TAX-PRIV CONTRACTOR FEES,"2,137.69",Revenue,05/06/2015,Economy & Environment
WC57 - 1120,CORY ENVIRONMENTAL (CENTRAL) LTD,Third Party Payments,Private Contractor Fees,73039-LANDFILL TAX-PRIV CONTRACTOR FEES,"2,148.44",Revenue,15/06/2015,Economy & Environment
WC57 - 1121,CORY ENVIRONMENTAL (CENTRAL) LTD,Third Party Payments,Private Contractor Fees,73039-LANDFILL TAX-PRIV CONTRACTOR FEES,"2,954.61",Revenue,24/06/2015,Economy & Environment
WC57 - 1122,COUGAR,Third Party Payments,Private Contractor Fees,63239-EXTERNAL WORKS-PAYMENT TO CONTRACTOR,375.00,Revenue,17/06/2015,Childrens
WC57 - 1123,COUNTRYWIDE CARE HOMES T/A ROSE LODGE CARE HOME,Third Party Payments,Private Contractor Fees,73373-RESIDENTIAL & NURSING CARE PLACEMENTS,"2,003.56",Revenue,09/06/2015,Social Care & Inclusion
WC57 - 1124,COUNTRYWIDE CARE HOMES T/A ROSE LODGE CARE HOME,Third Party Payments,Private Contractor Fees,73373-RESIDENTIAL & NURSING CARE PLACEMENTS,"2,003.56",Revenue,30/06/2015,Social Care & Inclusion
WC57 - 1125,COUNTY CARS (2003) LTD,Transport,Hire,52000-WITH DRIVER-HIRE OF VEHICLES,"2,560.00",Revenue,29/06/2015,Childrens
WC57 - 1126,COVERGOLD,Supplies & Services,"Equip,Furniture & Materials",60007-REPAIR OF EQUIPMENT-EQUIPMENT,349.00,Revenue,23/06/2015,Social Care & Inclusion
WC57 - 1127,CRAEGMOOR,Third Party Payments,Private Contractor Fees,73373-RESIDENTIAL & NURSING CARE PLACEMENTS,"7,645.03",Revenue,09/06/2015,Social Care & Inclusion
WC57 - 1128,CREATIVE ARTS NORTH STAFFS,Supplies & Services,Services,63000-PROFESSIONAL FEES AND SERVICES,250.00,Revenue,17/06/2015,Childrens
WC57 - 1129,CREATIVE JOINERY & INTERIORS LIMITED,Capital,Capital,01006-SITE WORKS MAIN CONTRACTORS,"6,366.90",Capital,10/06/2015,Resources
WC57 - 1130,CROFT ACADEMY,Third Party Payments,Grants to Other Orgs,66505-OTHER-GRANTS TO OTHER ORGS,"8,437.63",Revenue,02/06/2015,Childrens
WC57 - 1131,CROMWELL HOUSE,Third Party Payments,Private Contractor Fees,73373-RESIDENTIAL & NURSING CARE PLACEMENTS,"5,903.44",Revenue,30/06/2015,Social Care & Inclusion
WC57 - 1132,CROSBY MANAGEMENT TRAINING LTD,Third Party Payments,Grants to Other Orgs,66500-GRANTS TO OTHER ORGS,750.00,Revenue,01/06/2015,Economy & Environment
WC57 - 1133,CROSS LANE CHILDRENS HOME,Third Party Payments,Private Contractor Fees,74036-EXTERNAL RESIDENTIAL CARE-OTH AGENCY PROVISION,"8,142.00",Revenue,18/06/2015,Childrens
WC57 - 1134,CROSSWAYS RESIDENTIAL HOME,Third Party Payments,Private Contractor Fees,73373-RESIDENTIAL & NURSING CARE PLACEMENTS,"1,564.72",Revenue,02/06/2015,Social Care & Inclusion
WC57 - 1135,CROSSWAYS RESIDENTIAL HOME,Third Party Payments,Private Contractor Fees,73373-RESIDENTIAL & NURSING CARE PLACEMENTS,"1,602.04",Revenue,02/06/2015,Social Care & Inclusion
WC57 - 1136,CROSSWAYS RESIDENTIAL HOME,Third Party Payments,Private Contractor Fees,73373-RESIDENTIAL & NURSING CARE PLACEMENTS,"1,602.04",Revenue,02/06/2015,Social Care & Inclusion
WC57 - 1137,CROSSWAYS RESIDENTIAL HOME,Third Party Payments,Private Contractor Fees,73373-RESIDENTIAL & NURSING CARE PLACEMENTS,"1,602.04",Revenue,02/06/2015,Social Care & Inclusion
WC57 - 1138,CROSSWAYS RESIDENTIAL HOME,Third Party Payments,Private Contractor Fees,73373-RESIDENTIAL & NURSING CARE PLACEMENTS,"1,626.85",Revenue,02/06/2015,Social Care & Inclusion
WC57 - 1139,CROSSWAYS RESIDENTIAL HOME,Third Party Payments,Private Contractor Fees,73373-RESIDENTIAL & NURSING CARE PLACEMENTS,"1,643.70",Revenue,02/06/2015,Social Care & Inclusion
WC57 - 1140,CROSSWAYS RESIDENTIAL HOME,Third Party Payments,Private Contractor Fees,73373-RESIDENTIAL & NURSING CARE PLACEMENTS,"1,643.70",Revenue,02/06/2015,Social Care & Inclusion
WC57 - 1141,CROSSWAYS RESIDENTIAL HOME,Third Party Payments,Private Contractor Fees,73373-RESIDENTIAL & NURSING CARE PLACEMENTS,"1,834.29",Revenue,02/06/2015,Social Care & Inclusion
WC57 - 1142,CROWN FINE ART,Third Party Payments,Private Contractor Fees,73032-TRANSPORTATION-PRIV CONTRACTOR FEES,"1,560.00",Revenue,17/06/2015,Economy & Environment
WC57 - 1143,CS COMMUNICATION SERVICES LTD,Supplies & Services,Communications & Computing,63800-COMPUTER EQUIPMENT AND SUPPLIES,374.50,Revenue,10/06/2015,Resources
WC57 - 1144,CS COMMUNICATION SERVICES LTD,Supplies & Services,Communications & Computing,63800-COMPUTER EQUIPMENT AND SUPPLIES,"2,390.00",Revenue,10/06/2015,Resources
WC57 - 1145,CSCA LTD,Transport,Car Allowances,53001-OTHER/VOLUNTEERS-CAR ALLOWANCES,52.36,Revenue,22/06/2015,Childrens
WC57 - 1146,CSCA LTD,Transport,Car Allowances,53001-OTHER/VOLUNTEERS-CAR ALLOWANCES,68.17,Revenue,22/06/2015,Childrens
WC57 - 1147,CSCA LTD,Transport,Car Allowances,53003-OTHER-TRAVEL ALLOWANCES,69.87,Revenue,22/06/2015,Childrens
WC57 - 1148,CSCA LTD,Transport,Car Allowances,53001-OTHER/VOLUNTEERS-CAR ALLOWANCES,76.47,Revenue,22/06/2015,Childrens
WC57 - 1149,CSCA LTD,Transport,Car Allowances,53003-OTHER-TRAVEL ALLOWANCES,78.55,Revenue,22/06/2015,Childrens
WC57 - 1150,CSCA LTD,Transport,Car Allowances,53003-OTHER-TRAVEL ALLOWANCES,119.98,Revenue,22/06/2015,Childrens
WC57 - 1151,CSCA LTD,Transport,Car Allowances,53001-OTHER/VOLUNTEERS-CAR ALLOWANCES,130.84,Revenue,22/06/2015,Childrens
WC57 - 1152,CSCA LTD,Third Party Payments,Private Contractor Fees,76003-SECTION 34 (CONTACT),157.09,Revenue,22/06/2015,Childrens
WC57 - 1153,CSCA LTD,Transport,Car Allowances,53003-OTHER-TRAVEL ALLOWANCES,166.24,Revenue,22/06/2015,Childrens
WC57 - 1154,CSCA LTD,Third Party Payments,Private Contractor Fees,76003-SECTION 34 (CONTACT),186.32,Revenue,22/06/2015,Childrens
WC57 - 1155,CSCA LTD,Transport,Car Allowances,53001-OTHER/VOLUNTEERS-CAR ALLOWANCES,188.77,Revenue,22/06/2015,Childrens
WC57 - 1156,CSCA LTD,Transport,Car Allowances,53003-OTHER-TRAVEL ALLOWANCES,251.11,Revenue,22/06/2015,Childrens
WC57 - 1157,CSCA LTD,Third Party Payments,Private Contractor Fees,76003-SECTION 34 (CONTACT),288.00,Revenue,25/06/2015,Childrens
WC57 - 1158,CSCA LTD,Third Party Payments,Private Contractor Fees,76003-SECTION 34 (CONTACT),443.29,Revenue,22/06/2015,Childrens
WC57 - 1159,CSCA LTD,Third Party Payments,Private Contractor Fees,76003-SECTION 34 (CONTACT),476.18,Revenue,22/06/2015,Childrens
WC57 - 1160,CSCA LTD,Third Party Payments,Private Contractor Fees,76003-SECTION 34 (CONTACT),985.75,Revenue,22/06/2015,Childrens
WC57 - 1161,CYCLE TRAINING AFFINITY LTD,Supplies & Services,Other Supplies & Services,62515-MISCELLANEOUS SUPPLIES,936.63,Revenue,24/06/2015,Economy & Environment
WC57 - 1162,CYGNET SOUND,Supplies & Services,Services,63000-PROFESSIONAL FEES AND SERVICES,800.00,Revenue,15/06/2015,Economy & Environment
WC57 - 1163,REDACTED,Transfer Payments,Transfer Payments,76422-DIRECT PAYMENTS TO SOCIAL SERVICES CLIENTS,"1,930.01",Revenue,17/06/2015,Social Care & Inclusion
WC57 - 1164,D C S JONCARE LTD,Supplies & Services,"Equip,Furniture & Materials",60006-NEW-FURNITURE & EQUIPMENT,571.00,Revenue,26/06/2015,Childrens
WC57 - 1165,REDACTED,Supplies & Services,Other Supplies & Services,62515-MISCELLANEOUS SUPPLIES,540.20,Revenue,22/06/2015,Childrens
WC57 - 1166,REDACTED,Third Party Payments,Private Contractor Fees,74006-HOLIDAY/CHRISTMAS ALLOWANCE-FOSTER CARERS-OTH AGENCY PROVISION,571.44,Revenue,22/06/2015,Childrens
WC57 - 1167,REDACTED,Third Party Payments,Private Contractor Fees,74006-HOLIDAY/CHRISTMAS ALLOWANCE-FOSTER CARERS-OTH AGENCY PROVISION,650.92,Revenue,08/06/2015,Childrens
WC57 - 1168,REDACTED,Third Party Payments,Private Contractor Fees,74006-HOLIDAY/CHRISTMAS ALLOWANCE-FOSTER CARERS-OTH AGENCY PROVISION,"2,034.13",Revenue,08/06/2015,Childrens
WC57 - 1169,REDACTED,Employees,Other Staff Costs,32000-MISC FEES AND EXPENSES,598.40,Revenue,01/06/2015,Economy & Environment
WC57 - 1170,REDACTED,Employees,Other Staff Costs,32000-MISC FEES AND EXPENSES,710.60,Revenue,29/06/2015,Economy & Environment
WC57 - 1171,REDACTED,Third Party Payments,Private Contractor Fees,74006-HOLIDAY/CHRISTMAS ALLOWANCE-FOSTER CARERS-OTH AGENCY PROVISION,857.16,Revenue,22/06/2015,Childrens
WC57 - 1172,REDACTED,Supplies & Services,Other Supplies & Services,62515-MISCELLANEOUS SUPPLIES,"1,445.32",Revenue,22/06/2015,Childrens
WC57 - 1173,REDACTED,Supplies & Services,Other Supplies & Services,62515-MISCELLANEOUS SUPPLIES,540.20,Revenue,22/06/2015,Childrens
WC57 - 1174,REDACTED,Third Party Payments,Private Contractor Fees,74006-HOLIDAY/CHRISTMAS ALLOWANCE-FOSTER CARERS-OTH AGENCY PROVISION,810.32,Revenue,22/06/2015,Childrens
WC57 - 1175,REDACTED,Transfer Payments,Transfer Payments,76422-DIRECT PAYMENTS TO SOCIAL SERVICES CLIENTS,"1,866.00",Revenue,17/06/2015,Social Care & Inclusion
WC57 - 1176,REDACTED,Transfer Payments,Transfer Payments,76422-DIRECT PAYMENTS TO SOCIAL SERVICES CLIENTS,"2,027.95",Revenue,17/06/2015,Social Care & Inclusion
WC57 - 1177,REDACTED,Transfer Payments,Transfer Payments,76422-DIRECT PAYMENTS TO SOCIAL SERVICES CLIENTS,300.00,Revenue,17/06/2015,Social Care & Inclusion
WC57 - 1178,REDACTED,Transfer Payments,Transfer Payments,76422-DIRECT PAYMENTS TO SOCIAL SERVICES CLIENTS,"1,618.50",Revenue,17/06/2015,Childrens
WC57 - 1179,REDACTED,Transfer Payments,Transfer Payments,76422-DIRECT PAYMENTS TO SOCIAL SERVICES CLIENTS,"2,362.50",Revenue,17/06/2015,Social Care & Inclusion
WC57 - 1180,REDACTED,Transfer Payments,Transfer Payments,76422-DIRECT PAYMENTS TO SOCIAL SERVICES CLIENTS,944.13,Revenue,17/06/2015,Social Care & Inclusion
WC57 - 1181,REDACTED,Transfer Payments,Transfer Payments,76422-DIRECT PAYMENTS TO SOCIAL SERVICES CLIENTS,"1,154.35",Revenue,17/06/2015,Social Care & Inclusion
WC57 - 1182,DANSHELL GROUP,Third Party Payments,Private Contractor Fees,73373-RESIDENTIAL & NURSING CARE PLACEMENTS,"9,857.14",Revenue,09/06/2015,Social Care & Inclusion
WC57 - 1183,DANSHELL GROUP,Third Party Payments,Private Contractor Fees,73373-RESIDENTIAL & NURSING CARE PLACEMENTS,"11,700.00",Revenue,09/06/2015,Social Care & Inclusion
WC57 - 1184,DANSHELL GROUP,Third Party Payments,Private Contractor Fees,73373-RESIDENTIAL & NURSING CARE PLACEMENTS,"12,090.00",Revenue,30/06/2015,Social Care & Inclusion
WC57 - 1185,DARLASTON FELLOWSHIP DISABLED,Transport,Hire,52000-WITH DRIVER-HIRE OF VEHICLES,430.00,Revenue,02/06/2015,Childrens
WC57 - 1186,DARLASTON FELLOWSHIP DISABLED,Transport,Hire,52000-WITH DRIVER-HIRE OF VEHICLES,430.00,Revenue,02/06/2015,Childrens
WC57 - 1187,DARLASTON FELLOWSHIP DISABLED,Transport,Hire,52000-WITH DRIVER-HIRE OF VEHICLES,430.00,Revenue,02/06/2015,Childrens
WC57 - 1188,DARLASTON FELLOWSHIP DISABLED,Transport,Hire,52000-WITH DRIVER-HIRE OF VEHICLES,430.00,Revenue,15/06/2015,Childrens
WC57 - 1189,DARLASTON FELLOWSHIP DISABLED,Transport,Hire,52000-WITH DRIVER-HIRE OF VEHICLES,430.00,Revenue,15/06/2015,Childrens
WC57 - 1190,DARLASTON FELLOWSHIP DISABLED,Transport,Hire,52000-WITH DRIVER-HIRE OF VEHICLES,430.00,Revenue,15/06/2015,Childrens
WC57 - 1191,DARLASTON FELLOWSHIP DISABLED,Transport,Hire,52000-WITH DRIVER-HIRE OF VEHICLES,430.00,Revenue,24/06/2015,Childrens
WC57 - 1192,DARLASTON FELLOWSHIP DISABLED,Transport,Hire,52000-WITH DRIVER-HIRE OF VEHICLES,430.00,Revenue,24/06/2015,Childrens
WC57 - 1193,DARLASTON FELLOWSHIP DISABLED,Transport,Hire,52000-WITH DRIVER-HIRE OF VEHICLES,430.00,Revenue,24/06/2015,Childrens
WC57 - 1194,DARLASTON FELLOWSHIP DISABLED,Transport,Hire,52000-WITH DRIVER-HIRE OF VEHICLES,460.00,Revenue,02/06/2015,Childrens
WC57 - 1195,DARLASTON FELLOWSHIP DISABLED,Transport,Hire,52000-WITH DRIVER-HIRE OF VEHICLES,460.00,Revenue,15/06/2015,Childrens
WC57 - 1196,DARLASTON FELLOWSHIP DISABLED,Transport,Hire,52000-WITH DRIVER-HIRE OF VEHICLES,460.00,Revenue,24/06/2015,Childrens
WC57 - 1197,DARLASTON FELLOWSHIP DISABLED,Transport,Hire,52000-WITH DRIVER-HIRE OF VEHICLES,550.00,Revenue,02/06/2015,Childrens
WC57 - 1198,DARLASTON FELLOWSHIP DISABLED,Transport,Hire,52000-WITH DRIVER-HIRE OF VEHICLES,550.00,Revenue,15/06/2015,Childrens
WC57 - 1199,DARLASTON FELLOWSHIP DISABLED,Transport,Hire,52000-WITH DRIVER-HIRE OF VEHICLES,550.00,Revenue,24/06/2015,Childrens
WC57 - 1200,DARLASTON FELLOWSHIP DISABLED,Transport,Hire,52000-WITH DRIVER-HIRE OF VEHICLES,560.00,Revenue,02/06/2015,Childrens
WC57 - 1201,DARLASTON FELLOWSHIP DISABLED,Transport,Hire,52000-WITH DRIVER-HIRE OF VEHICLES,560.00,Revenue,15/06/2015,Childrens
WC57 - 1202,DARLASTON FELLOWSHIP DISABLED,Transport,Hire,52000-WITH DRIVER-HIRE OF VEHICLES,560.00,Revenue,24/06/2015,Childrens
WC57 - 1203,DARLASTON METHODIST CHURCH,Supplies & Services,Other Supplies & Services,63128-HIRE OF ROOM-SERVICES-FEES,350.00,Revenue,05/06/2015,Resources
WC57 - 1204,DARLASTON PENTECOSTAL CHURCH,Supplies & Services,Other Supplies & Services,63128-HIRE OF ROOM-SERVICES-FEES,515.00,Revenue,05/06/2015,Resources
WC57 - 1205,REDACTED,Transfer Payments,Transfer Payments,76422-DIRECT PAYMENTS TO SOCIAL SERVICES CLIENTS,743.75,Revenue,17/06/2015,Social Care & Inclusion
WC57 - 1206,REDACTED,Transfer Payments,Transfer Payments,76422-DIRECT PAYMENTS TO SOCIAL SERVICES CLIENTS,314.80,Revenue,17/06/2015,Social Care & Inclusion
WC57 - 1207,REDACTED,Transfer Payments,Transfer Payments,76422-DIRECT PAYMENTS TO SOCIAL SERVICES CLIENTS,422.98,Revenue,17/06/2015,Social Care & Inclusion
WC57 - 1208,REDACTED,Transfer Payments,Transfer Payments,76422-DIRECT PAYMENTS TO SOCIAL SERVICES CLIENTS,"7,654.52",Revenue,17/06/2015,Social Care & Inclusion
WC57 - 1209,DARWIN COURT CARE CENTRE,Third Party Payments,Private Contractor Fees,73373-RESIDENTIAL & NURSING CARE PLACEMENTS,"12,053.57",Revenue,09/06/2015,Social Care & Inclusion
WC57 - 1210,DATATANK LIMITED,Supplies & Services,Other Supplies & Services,63114-OTHER FEES & LICENCES-SERVICES-FEES,"7,486.00",Revenue,16/06/2015,Resources
WC57 - 1211,DATATANK LIMITED,Supplies & Services,Other Supplies & Services,63114-OTHER FEES & LICENCES-SERVICES-FEES,"11,134.00",Revenue,16/06/2015,Resources
WC57 - 1212,DATATANK LIMITED,Supplies & Services,Other Supplies & Services,63114-OTHER FEES & LICENCES-SERVICES-FEES,"15,561.00",Revenue,16/06/2015,Resources
WC57 - 1213,REDACTED,Transfer Payments,Transfer Payments,76000-TRANSFER PAYMENTS - SOCIAL SERVICES CLIENTS,464.00,Revenue,09/06/2015,Childrens
WC57 - 1214,REDACTED,Transfer Payments,Transfer Payments,76000-TRANSFER PAYMENTS - SOCIAL SERVICES CLIENTS,464.00,Revenue,23/06/2015,Childrens
WC57 - 1215,REDACTED,Supplies & Services,Other Supplies & Services,62515-MISCELLANEOUS SUPPLIES,706.76,Revenue,22/06/2015,Childrens
WC57 - 1216,REDACTED,Third Party Payments,Private Contractor Fees,74006-HOLIDAY/CHRISTMAS ALLOWANCE-FOSTER CARERS-OTH AGENCY PROVISION,"1,478.64",Revenue,22/06/2015,Childrens
WC57 - 1217,REDACTED,Transfer Payments,Transfer Payments,76422-DIRECT PAYMENTS TO SOCIAL SERVICES CLIENTS,"2,021.95",Revenue,17/06/2015,Social Care & Inclusion
WC57 - 1218,REDACTED,Supplies & Services,Other Supplies & Services,62515-MISCELLANEOUS SUPPLIES,540.20,Revenue,22/06/2015,Childrens
WC57 - 1219,REDACTED,Third Party Payments,Private Contractor Fees,74006-HOLIDAY/CHRISTMAS ALLOWANCE-FOSTER CARERS-OTH AGENCY PROVISION,"1,478.64",Revenue,22/06/2015,Childrens
WC57 - 1220,REDACTED,Transfer Payments,Transfer Payments,76422-DIRECT PAYMENTS TO SOCIAL SERVICES CLIENTS,"1,317.50",Revenue,17/06/2015,Social Care & Inclusion
WC57 - 1221,REDACTED,Transfer Payments,Transfer Payments,76422-DIRECT PAYMENTS TO SOCIAL SERVICES CLIENTS,"1,338.75",Revenue,17/06/2015,Social Care & Inclusion
WC57 - 1222,REDACTED,Transfer Payments,Transfer Payments,76422-DIRECT PAYMENTS TO SOCIAL SERVICES CLIENTS,"1,679.80",Revenue,17/06/2015,Social Care & Inclusion
WC57 - 1223,DAVID GELL CONSULTANCY,Supplies & Services,Services,73047-CONSULTANTS FEES,300.00,Revenue,24/06/2015,Social Care & Inclusion
WC57 - 1224,DAVID GELL CONSULTANCY,Supplies & Services,Services,63000-PROFESSIONAL FEES AND SERVICES,550.00,Revenue,18/06/2015,Social Care & Inclusion
WC57 - 1225,DAVID GELL CONSULTANCY,Supplies & Services,Services,73047-CONSULTANTS FEES,550.00,Revenue,24/06/2015,Social Care & Inclusion
WC57 - 1226,REDACTED,Transfer Payments,Transfer Payments,76422-DIRECT PAYMENTS TO SOCIAL SERVICES CLIENTS,"1,980.00",Revenue,17/06/2015,Social Care & Inclusion
WC57 - 1227,REDACTED,Transfer Payments,Transfer Payments,76422-DIRECT PAYMENTS TO SOCIAL SERVICES CLIENTS,649.05,Revenue,17/06/2015,Social Care & Inclusion
WC57 - 1228,REDACTED,Transfer Payments,Transfer Payments,76422-DIRECT PAYMENTS TO SOCIAL SERVICES CLIENTS,"1,553.13",Revenue,17/06/2015,Social Care & Inclusion
WC57 - 1229,REDACTED,Transfer Payments,Transfer Payments,76422-DIRECT PAYMENTS TO SOCIAL SERVICES CLIENTS,"2,850.85",Revenue,17/06/2015,Social Care & Inclusion
WC57 - 1230,REDACTED,Transfer Payments,Transfer Payments,76422-DIRECT PAYMENTS TO SOCIAL SERVICES CLIENTS,"1,100.00",Revenue,17/06/2015,Social Care & Inclusion
WC57 - 1231,REDACTED,Transfer Payments,Transfer Payments,76422-DIRECT PAYMENTS TO SOCIAL SERVICES CLIENTS,546.25,Revenue,17/06/2015,Social Care & Inclusion
WC57 - 1232,DAWNUS CONSTRUCTION LTD,Capital,Capital,01001-OTHER CONSULTANTS FEES,"927,792.94",Capital,15/06/2015,Economy & Environment
WC57 - 1233,DAWSON RENTALS SWEEPERS,Transport,Hire,52001-HIRE OF VEHICLES,"1,627.52",Revenue,22/06/2015,Economy & Environment
WC57 - 1234,DAWSON RENTALS SWEEPERS,Transport,Hire,52001-HIRE OF VEHICLES,"1,999.28",Revenue,22/06/2015,Economy & Environment
WC57 - 1235,DAWSON RENTALS SWEEPERS,Transport,Hire,52001-HIRE OF VEHICLES,"1,999.28",Revenue,22/06/2015,Economy & Environment
WC57 - 1236,DAWSON RENTALS SWEEPERS,Transport,Hire,52001-HIRE OF VEHICLES,"1,999.28",Revenue,22/06/2015,Economy & Environment
WC57 - 1237,DAWSON RENTALS SWEEPERS,Transport,Hire,52001-HIRE OF VEHICLES,"1,999.28",Revenue,22/06/2015,Economy & Environment
WC57 - 1238,DAWSON RENTALS SWEEPERS,Transport,Hire,52001-HIRE OF VEHICLES,"1,999.28",Revenue,22/06/2015,Economy & Environment
WC57 - 1239,DAWSON RENTALS SWEEPERS,Transport,Hire,52001-HIRE OF VEHICLES,"1,999.28",Revenue,22/06/2015,Economy & Environment
WC57 - 1240,DAWSON RENTALS SWEEPERS,Transport,Hire,52001-HIRE OF VEHICLES,"2,064.46",Revenue,22/06/2015,Economy & Environment
WC57 - 1241,REDACTED,Supplies & Services,Other Supplies & Services,62515-MISCELLANEOUS SUPPLIES,540.20,Revenue,22/06/2015,Childrens
WC57 - 1242,REDACTED,Third Party Payments,Private Contractor Fees,74006-HOLIDAY/CHRISTMAS ALLOWANCE-FOSTER CARERS-OTH AGENCY PROVISION,810.32,Revenue,22/06/2015,Childrens
WC57 - 1243,REDACTED,Third Party Payments,Private Contractor Fees,74006-HOLIDAY/CHRISTMAS ALLOWANCE-FOSTER CARERS-OTH AGENCY PROVISION,571.44,Revenue,22/06/2015,Childrens
WC57 - 1244,REDACTED,Supplies & Services,Other Supplies & Services,62515-MISCELLANEOUS SUPPLIES,762.71,Revenue,22/06/2015,Childrens
